Workbook

Sheet Simulador
Z2: Fecha: | AA2: =TODAY() -> 2025-02-20 | AH2: =Listas!AF1 -> Rango de N° de Cuotas | AL2: Filtros | AM2: =IF(VLOOKUP(U5,Listas!$H$27:$I$42,2,FALSE)=Listas!A19,Listas!H21,Listas!H2) -> VIVIENDA | AN2: =IF(AND(U3="GRUPAL",U5="CRECE Y MEJORA"),U9,IF(VLOOKUP(U9,Listas!H46:I60,2,FALSE)=Listas!A19,Listas!O25,Listas!O2)) -> 16 | AO2: =IF(VLOOKUP(U13,Listas!H62:I64,2,FALSE)=Listas!A19,Listas!U7,Listas!V2) -> MENSUAL | AP2: =IF(OR(U14=Listas!AC2,U14=Listas!AC3,U14=Listas!AC4,U14=Listas!AC5,U14=Listas!AC6,U14=Listas!AC7,U14=Listas!AC8,U14=Listas!AC9,U14=Listas!AC10),Listas!AC13,Listas!AC2) -> No
S3: LINEA NEGOCIO ↓ | U3: INDIVIDUAL | X3: RESULTADOS DE SIMULACIÓN | AH3: =Listas!AF2 -> Min | AI3: =Listas!AG2 -> 6 | AJ3: =CONCATENATE(AH3," ",AI3) -> Min 6
S4: Moneda ↓ | U4: SOLES | X4: TEA (Tasa Efectiva Anual - Fija) | AA4: =IF(Listas!AO5=Listas!AP3,ROUND((1+U11)^12-1,6),'Simulador '!U11) -> 60.1032% | AH4: =Listas!AF3 -> Max | AI4: =Listas!AG3 -> 72 | AJ4: =CONCATENATE(AH4," ",AI4) -> Max 72
S5: Producto ↓ | U5: CRECE Y MEJORA | X5: TCEA (Tasa de Costo Efectiva Anual) | AA5: =IF(C26="Recalcular","Recalcular",ROUND(C26,4)) -> 71.3900%
S6: Monto Otorgado | U6: 2,000 | X6: Tasa Seguro Desgravamen | AA6: =IF(OR(Listas!$K$6=Listas!$L$3,Listas!$K$6=Listas!$L$4),"No Aplica",IF(AND(Listas!H21=Listas!I17,Listas!U7=Listas!Y3),'Simulador '!AI28,IF(AND(Listas!H21=Listas!I17,Listas!U7=Listas!Y4),'Simulador '!AI29,IF(Listas!H21=Listas!I16,'Simulador '!AI31,IF(Listas!D5=Listas!C2,IF(AND(Listas!A5=Listas!B2,Listas!K6=Listas!L5,U6<=$AI$23),AK23,IF(AND(Listas!A5=Listas!B2,Listas!K6=Listas!L5,U6<=$AI$24),AK24,IF(AND(Listas!A5=Listas!B2,Listas!K6=Listas!L5,U6>$AI$24),AK25,IF(AND(Listas!A5=Listas!B2,U6<=$AI$23),AJ23,IF(AND(Listas!A5=Listas!B2,U6<=$AI$24),AJ24,IF(AND(Listas!A5=Listas!B2,U6>$AI$24),AJ25,IF(AND(Listas!A5=Listas!B2,(U6*$T$120)<=$AI$23),AJ23,IF(AND(Listas!A5=Listas!B2,(U6*$T$120)<=$AI$24),AJ24,AJ25))))))))))))) -> 0.645% | AH6: =Listas!AI1 -> Rango de Monto | AL6: FILTRO SEGURO DESGRAVAMEN
S7: Número de Cuotas | U7: 12 | X7: Prima Mínimo SD | AA7: =IF(AND(Listas!D5=Listas!C2),IF(AA6="No Aplica",AA6,1),IF(AA6="No Aplica",AA6,(1/'Simulador '!$T$120))) -> 1.00 | AH7: =Listas!AI2 -> Min | AI7: =Listas!AJ2 -> 1,000 | AJ7: =CONCATENATE(AH7," ",TEXT(AI7,"#,##")) -> Min 1,000 | AL7: =Listas!K6 -> CON SEGURO | AM7: =IF(AND(Listas!A5=Listas!B2,Listas!K6=Listas!L5),"CORRECTO",IF(AND(Listas!A5=Listas!B3,Listas!K6=Listas!L5),"INCORRECTO","CORRECTO")) -> CORRECTO
S8: Fecha de Desembolso | U8: 2025-02-02 | W8: (día/mes/año) | X8: Valor de Cuota | AA8: =C34 -> 226 | AH8: =Listas!AI3 -> Max | AI8: =Listas!AJ3 -> 300,000 | AJ8: =CONCATENATE(AH8," ",TEXT(AI8,"#,##")) -> Max 300,000 | AM8: CORRECTO
S9: =IF(AND(Listas!A5=Listas!B3,Listas!H21=Listas!I15),"Primer Pago Grupal↓","Dia de Pago (Primer Pago)↓") -> Dia de Pago (Primer Pago)↓ | U9: 16
A10: Alerta | B10: PRODUCTO ESPECIAL | C10: IMPULSA PERU | D10: Primeros 6 meses periodo de gracia parcial | S10: Tipo de Tasa ↓ | U10: TEM (Tasa Efectiva Mensual) | AH10: =Listas!AL1 -> Rango de Tasas | AJ10: Rango
S11: Digite la Tasa | U11: 4.00% | AH11: =Listas!AL2 -> Min | AI11: =Listas!AM2 -> 18.5500% | AJ11: =IF(Listas!AO5=Listas!AP3,Listas!AN2,'Simulador '!AI11) -> 1.4284% | AK11: =CONCATENATE(AH11," ",TEXT(AJ11,"#.#####%")) -> Min 1.4284%
B12: PRODUCTO | C12: =AM2 -> VIVIENDA | S12: Seguro de Desgravamen ↓ | U12: CON SEGURO | AH12: =Listas!AL3 -> Max | AI12: =Listas!AM3 -> 88.4600% | AJ12: =IF(Listas!AO5=Listas!AP3,Listas!AN3,'Simulador '!AI12) -> 5.4229% | AK12: =CONCATENATE(AH12," ",TEXT(AJ12,"#.######%")) -> Max 5.4229%
B13: Grupal | C13: =Listas!U8 -> MENSUAL | D13: =VLOOKUP(C13,Listas!$Y$2:$Z$4,2,FALSE) -> 0 | S13: Periodicidad de Pago↓ | U13: CADA 28 DIAS (CG)
B14: Dia de pago | C14: =Listas!N24 -> 16 | S14: Periodo de Gracia↓ | U14: 180 | AH14: Claves y Llaves
B15: Estado de Cuenta | AH15: Monto | AI15: =IF(AND(U6>=AI7,U6<=AI8),"",CONCATENATE("Revisar"," ",AH15," ",AJ7," ",AJ8)) -> 
B16: ITF % | C16: 0.005% | S16: Alerta: | AH16: N° de Cuota | AI16: =IF(AND(U7>=AI3,U7<=AI4),"",CONCATENATE("Revisar"," ",AH16," ",AJ3," ",AJ4)) -> 
B17: ITF Costo | C17: =C16*C33 -> 0 | E17: =((1+C25)^(M114/30))*C20 -> 3532.371477 | S17: =IFERROR(CONCATENATE(AI15," ",AI16," ",AI17," ",AI18),"Realice todos los cambios en los filtros") -> " | AH17: =IF(U10="TEM (Tasa Efectiva Mensual)","Tasa elegida TEM","Tasa elegida TEA") -> Tasa elegida TEM | AI17: =IF(AND(U11>=AJ11,U11<=AJ12),"",CONCATENATE("Revisar"," ",AH17," ",AK11," ",AK12)) -> 
B18: Monto de Desembolso | C18: =U6 -> 2,000.00 | AH18: SD | AI18: =IF(AND(Listas!A5=Listas!B3,Listas!K6=Listas!L5),"Seguro Desgravamen con devolución no aplica a CREDITO GRUPAL",IF(AND(Listas!A5=Listas!B2,Listas!K6=Listas!L5,L114<720),"Seguro Desgravamen con devolución aplica plazo mayor a 2 años",IF(C14=0,"Revisar de Pago",""""))) -> "
B19: Seguro financiado | C19: 0.00
B20: Monto de Desembolso Total | C20: =SUM(C18:C19) -> 2,000.00
B21: Cuotas | C21: =U7 -> 12
B22: TEA | C22: =AA4 -> 60.10% | D22: TEA a 6 decimales | H22: dia2 | I22: 2089 | J22: 2769 | K22: 4863 | N22: 705 | AH22: Rango de desembolso | AI22: Rango | AJ22: Tasa comercial | AK22: Tasa Con Devolución
B23: Tasa de SD | C23: =IF(C12=C10,0,IF(AA6="No Aplica",0,AA6)) -> 0.645% | D23: =(1+(C23*(L116/L115)*(360/L115)))^(30/360)-1 -> 0.605454% | E23: 0.500% | F23: 0.088% | G23: =(1+(C23*(365/L115)))^(1/12)-1 -> 0.01 | I23: 2,089.40 | J23: 2,769.48 | K23: 4,862.90 | AH23: Hasta S/. 5,000 | AI23: 5000 | AJ23: 0.15% | AK23: 0.33%
B24: TEM | C24: =IF(Listas!AO5=Listas!AP3,U11,(1+U11)^(1/12)-1) -> 4.0000000% | H24: dia2 | I24: =I23-I22 -> 0.40 | J24: 0.48 | K24: =K23-K22 -> -0.10 | AH24: De S/. 5,001 hasta S/. 20,000 | AI24: 20000 | AJ24: 0.13% | AK24: 0.29%
B25: TEM ( + SD) | C25: =C24+D23 -> 4.6055% | I25: 36 | J25: 24 | K25: 12 | AH25: De S/ 20,001 hasta S/. 300,000 | AJ25: 0.11% | AK25: 0.24%
B26: TIR (TCEA) | C26: =IFERROR(AP117,"Recalcular") -> 71.394136%
B27: Periodo de Gracia | C27: =IF(C12=$C$10,0,Listas!AB12) -> 0 | D27: =IF(C27=0,1,(C27/30)+1) -> 1 | I27: 2,074.00 | J27: 2,749.00 | K27: 4,828.00 | AI27: Tasa comercial mensual
B28: Valor Futuro del Préstamo | C28: =((1+C25)^(M114/30))*C20 -> 3,532.37 | D28: =((1+C24)^(L114/30))*C20 -> 3,282.60 | I28: 2,074.43 | J28: 2,750.02 | K28: 4,828.91 | L28: =K28-G29 -> 4,828.9 | AH28: CADA 14 DIAS (CG) | AI28: 0.40%
B29: Cuota Calculo Financiero | C29: =C28/O114 -> 225.75 | D29: =D28/P114 -> 6.84 | I29: =I28-I27 -> 0.43 | J29: =J28-J27 -> 1.02 | K29: =K28-K27 -> 0.91 | AH29: CADA 28 DIAS (CG) | AI29: 0.65%
B30: Entero para ITF | C30: =INT(C29/1000)*1000 -> 0
B31: Redondeo para Cuota | C31: =IF((C29-INT(C29))>=0.5,0.5+INT(C29),INT(C29)) -> 225.50 | G31: Ingresar datos | AH31: CCM | AI31: 0.645%
B32: Cuota con Integración | C32: =C29 -> 225.75 | G32: Calculo financieros para determinar cuota - No hace el sistema este proceso
B33: Entero para ITF | C33: =INT(C32/1000)*1000 -> 0 | G33: Aproximación de cuotas iguales - Sistema hace este proceso de integraciones precio a redondear cuota
B34: Redondeo para Cuota | C34: =ROUND(C32,0) -> 226.00
E36: 2021-10-25 | F36: =WEEKDAY(E36) -> 2
B38: 1er paso, aproximación de cuotas iguales sin redondeo | F38: =WEEKDAY(C41+14) -> 1 | H38: =DI -> 
S39: Plan de Pagos
A40: Fecha Real | B40: N° de Cuota | C40: Fecha Fija | D40: Saldo | E40: Interes | F40: Seguro Desgravamen | G40: Amortización | H40: ITF | I40: Cuota | J40: Estado de Cuenta | K40: Días Transcurridos / Segurps | L40: Días Transcurridos Intereses | M40: Periodo de Gracia | N40: n1 | O40: Factor de actualización | Q40: Meses de Seguro de Desgravamen | S40: Fecha | U40: N° de Cuota | V40: Capital | W40: Amortización | X40: Interes Compensatorio | Y40: Seguro de Desgravamen | Z40: Valor de Cuota | AA40: ITF | AB40: Pago Total | AG40: Días Transcurridos | AH40: n1 | AI40: Meses de Seguro de Desgravamen | AL40: Fecha Fija | AP40: Cuota | AQ40: Estado de Cuenta
A41: =C41 -> 2025-02-02 | B41: 0 | C41: =U8 -> 2025-02-02 | D41: =C20 -> 2,000.00 | N41: =M114 -> 379 | S41: =IF(A41=0,"",A41) -> 2025-02-02 | U41: 0 | V41: =C20 -> 2,000.00 | Z41: =V41 -> 2,000.00 | AC41: =IF(U41="","1","") ->  | AH41: =L114 -> 379 | AL41: =IF(S41="",0,IF(S41="Total",0,S41)) -> 2025-02-02 | AP41: =IF(S41="Total","",IF(S41="","",-V41)) -> -2,000.00
A42: =IF(IFERROR(VLOOKUP(C42,Listas!AT:AV,3,FALSE),0)=1,IF(WEEKDAY(C42+1)=7,C42+2,C42+1),C42) -> 2025-03-17 | B42: 1 | C42: =IF(Listas!$H$21=Listas!$I$17,IF(WEEKDAY(C41+$C$14)=1,C41+$C$14+1,C41+$C$14),IF(B42<=$C$21,IF((DATE(YEAR(C41),MONTH(C41)+D27,DAY($C$14))-C41)>=27,IF(WEEKDAY(DATE(YEAR(C41),MONTH(C41)+D27,DAY($C$14)))=1,DATE(YEAR(C41),MONTH(C41)+D27,DAY($C$14)+1),DATE(YEAR(C41),MONTH(C41)+D27,DAY($C$14))),DATE(YEAR(C41),MONTH(C41)+D27+1,DAY($C$14))),"")) -> 2025-03-17 | D42: =IF(B42<=$C$21,D41-G42,"") -> 1,902.80 | E42: =IFERROR(ROUND(((1+$C$24)^(L42/30)-1)*D41,2),"") -> 115.65 | F42: =IF($C$23=0,0,IF(OR(Listas!$K$6=Listas!$L$3,Listas!$K$6=Listas!$L$4),0,IF($C$23="",0,IF(Listas!$D$5=Listas!$C$3,ROUND(IF(B42<=$C$21,IF(ROUND((D41/$T$120)*$C$23*Q42,2)<(1/$T$120),ROUND((1/$T$120),2),ROUND((D41/$T$120)*$C$23,2)*Q42),0),2),IF(Listas!$D$5=Listas!$C$2,ROUND(IF(B42<=$C$21,IF(ROUND(D41*$C$23*Q42,2)<1,1,ROUND(D41*$C$23,2)*Q42),0),2)))))) -> 12.90 | G42: =IF($C$12=$C$10,0,IF(B42>$C$21,D41,I42-E42-F42-H42)) -> 97.20 | I42: =IF($C$12=$C$10,SUM(E42:G42),IF(B42<=$C$21,$C$32,0)) -> 225.75 | J42: =IF(B42<=$C$21,$C$15,0) -> 0 | K42: =L42*Q42 -> 43 | L42: =IF(B42<=$C$21,A42-A41,0) -> 43 | M42: =IF($C$12=$C$10,0,IF(B42<=$C$21,A42-A41,0)) -> 43 | N42: =N41-M42 -> 336 | O42: =IF($C$12=$C$10,0,IF(B42<=$C$21,ROUND((1+$C$25)^(N42/30),6),0)) -> 1.6558 | P42: =IF(B42<=$C$21,ROUND((1+$C$24)^(N42/30),8),0)*K42*Q42 -> 66.7178 | Q42: =IF(Listas!$H$21=Listas!$I$15,1,IF(B42<=$C$21,ROUND((EOMONTH(A42,0)-EOMONTH(A41,0))/30,0),0)) -> 1 | S42: 2025-03-17 | U42: =IF(C42="","",B42) -> 1 | V42: =IF(U42<=$C$21,V41-W42,0) -> 1,902.55 | W42: =IF($C$12=$C$10,0,IF(U42=$C$21,V41,Z42-X42-Y42)) -> 97.45 | X42: =ROUND(((1+$C$24)^(AG42/30)-1)*V41,2) -> 115.65 | Y42: =IF($C$23=0,0,IF(OR(Listas!$K$6=Listas!$L$3,Listas!$K$6=Listas!$L$4),0,IF($C$23="",0,IF(Listas!$D$5=Listas!$C$3,ROUND(IF(U42<=$C$21,IF(ROUND((V41/$T$120)*$C$23*AI42,2)<(1/$T$120),ROUND((1/$T$120),2),ROUND((V41/$T$120)*$C$23,2)*AI42),0),2),IF(Listas!$D$5=Listas!$C$2,ROUND(IF(U42<=$C$21,IF(ROUND(V41*$C$23*AI42,2)<1,1,ROUND(V41*$C$23,2)*AI42),0),2)))))) -> 12.90 | Z42: =IF($C$12=$C$10,SUM(W42:Y42),IF(U42=$C$21,SUM(W42,X42,Y42,AQ42),IF(U42<$C$21,$C$34,0))) -> 226.00 | AA42: =IF(Z42<1000,0,IF(U42<=$C$21,$C$17,0)) -> 0 | AB42: =SUM(Z42:AA42) -> 226.00 | AG42: =IF(U42<=$C$21,S42-S41,0) -> 43 | AH42: =AH41-AG42 -> 336 | AI42: =IF(Listas!$H$21=Listas!$I$17,1,IF(U42<=$C$21,ROUND((EOMONTH(S42,0)-EOMONTH(S41,0))/30,0),0)) -> 1 | AL42: 2025-03-17 | AP42: =IF(S42="Total",0,IF(S42="",0,Z42)) -> 226.00 | AQ42: =IF(U42<=$C$21,$C$15,0) -> 0 | AU42: 2021-11-01 | AV42: 1 | AW42: 1,000.00 | AX42: 0 | AY42: 0 | AZ42: 0 | BA42: 0 | BB42: 0
A43: =IF(IFERROR(VLOOKUP(C43,Listas!AT:AV,3,FALSE),0)=1,IF(WEEKDAY(C43+1)=7,C43+2,C43+1),C43) -> 2025-04-16 | B43: 2 | C43: =IF(Listas!$H$21=Listas!$I$17,IF(WEEKDAY(C42+$D$13)=1,C42+$D$13+1,C42+$D$13),IF(B43<=$C$21,IF((DATE(YEAR(C42),MONTH(C42)+1,DAY($C$14))-C42)>=27,IF(WEEKDAY(DATE(YEAR(C42),MONTH(C42)+1,DAY($C$14)))=1,DATE(YEAR(C42),MONTH(C42)+1,DAY($C$14)+1),DATE(YEAR(C42),MONTH(C42)+1,DAY($C$14))),DATE(YEAR(C42),MONTH(C42)+2,DAY($C$14))),"")) -> 2025-04-16 | D43: =IF(B43<=$C$21,D42-G43,"") -> 1,765.44 | E43: 76.11 | F43: =IF($C$23=0,0,IF(OR(Listas!$K$6=Listas!$L$3,Listas!$K$6=Listas!$L$4),0,IF($C$23="",0,IF(Listas!$D$5=Listas!$C$3,ROUND(IF(B43<=$C$21,IF(ROUND((D42/$T$120)*$C$23*Q43,2)<(1/$T$120),ROUND((1/$T$120),2),ROUND((D42/$T$120)*$C$23,2)*Q43),0),2),IF(Listas!$D$5=Listas!$C$2,ROUND(IF(B43<=$C$21,IF(ROUND(D42*$C$23*Q43,2)<1,1,ROUND(D42*$C$23,2)*Q43),0),2)))))) -> 12.27 | G43: =IF($C$12=$C$10,0,IF(B43>$C$21,D42,I43-E43-F43-H43)) -> 137.37 | I43: =IF($C$12=$C$10,SUM(E43:G43),IF(B43<=$C$21,$C$32,0)) -> 225.75 | J43: 0 | K43: =L43*Q43 -> 30 | L43: 30 | M43: =IF($C$12=$C$10,0,IF(B43<=$C$21,A43-A42,0)) -> 30 | N43: =N42-M43 -> 306 | O43: =IF($C$12=$C$10,0,IF(B43<=$C$21,ROUND((1+$C$25)^(N43/30),6),0)) -> 1.5829 | P43: =IF(B43<=$C$21,ROUND((1+$C$24)^(N43/30),8),0)*K43*Q43 -> 44.7570 | Q43: =IF(Listas!$H$21=Listas!$I$15,1,IF(B43<=$C$21,ROUND((EOMONTH(A43,0)-EOMONTH(A42,0))/30,0),0)) -> 1 | S43: 2025-04-16 | U43: 2 | V43: 1,764.92 | W43: =IF($C$12=$C$10,0,IF(U43=$C$21,V42,Z43-X43-Y43)) -> 137.63 | X43: 76.10 | Y43: =IF($C$23=0,0,IF(OR(Listas!$K$6=Listas!$L$3,Listas!$K$6=Listas!$L$4),0,IF($C$23="",0,IF(Listas!$D$5=Listas!$C$3,ROUND(IF(U43<=$C$21,IF(ROUND((V42/$T$120)*$C$23*AI43,2)<(1/$T$120),ROUND((1/$T$120),2),ROUND((V42/$T$120)*$C$23,2)*AI43),0),2),IF(Listas!$D$5=Listas!$C$2,ROUND(IF(U43<=$C$21,IF(ROUND(V42*$C$23*AI43,2)<1,1,ROUND(V42*$C$23,2)*AI43),0),2)))))) -> 12.27 | Z43: 226.00 | AA43: =IF(Z43<1000,0,IF(U43<=$C$21,$C$17,0)) -> 0 | AB43: 226.00 | AG43: 30 | AH43: 306 | AI43: =IF(Listas!$H$21=Listas!$I$17,1,IF(U43<=$C$21,ROUND((EOMONTH(S43,0)-EOMONTH(S42,0))/30,0),0)) -> 1 | AL43: 2025-04-16 | AP43: 226.00 | AQ43: 0 | AU43: 2021-12-03 | AV43: 1 | AW43: 94 | AX43: 73.82 | AY43: 18.68 | AZ43: 1.5 | BA43: 0 | BB43: 0
A44: =IF(IFERROR(VLOOKUP(C44,Listas!AT:AV,3,FALSE),0)=1,IF(WEEKDAY(C44+1)=7,C44+2,C44+1),C44) -> 2025-05-16 | B44: 3 | C44: =IF(B44>$C$21,"",IF(Listas!$H$21=Listas!$I$17,IF(WEEKDAY(C43+$D$13)=1,C43+$D$13+1,C43+$D$13),IF(B44<=$C$21,IF((DATE(YEAR(C43),MONTH(C43)+1,DAY($C$14))-C43)>=27,IF(WEEKDAY(DATE(YEAR(C43),MONTH(C43)+1,DAY($C$14)))=1,DATE(YEAR(C43),MONTH(C43)+1,DAY($C$14)+1),DATE(YEAR(C43),MONTH(C43)+1,DAY($C$14))),DATE(YEAR(C43),MONTH(C43)+2,DAY($C$14))),""))) -> 2025-05-16 | D44: 1,621.70 | E44: 70.62 | F44: =IF($C$23=0,0,IF(OR(Listas!$K$6=Listas!$L$3,Listas!$K$6=Listas!$L$4),0,IF($C$23="",0,IF(Listas!$D$5=Listas!$C$3,ROUND(IF(B44<=$C$21,IF(ROUND((D43/$T$120)*$C$23*Q44,2)<(1/$T$120),ROUND((1/$T$120),2),ROUND((D43/$T$120)*$C$23,2)*Q44),0),2),IF(Listas!$D$5=Listas!$C$2,ROUND(IF(B44<=$C$21,IF(ROUND(D43*$C$23*Q44,2)<1,1,ROUND(D43*$C$23,2)*Q44),0),2)))))) -> 11.39 | G44: 143.74 | I44: 225.75 | J44: 0 | K44: 30 | L44: =IF(B44<=$C$21,A44-A43,0) -> 30 | M44: 30 | N44: 276 | O44: 1.5132 | P44: 43.0356 | Q44: =IF(Listas!$H$21=Listas!$I$15,1,IF(B44<=$C$21,ROUND((EOMONTH(A44,0)-EOMONTH(A43,0))/30,0),0)) -> 1 | S44: 2025-05-16 | U44: 3 | V44: 1,620.90 | W44: =IF($C$12=$C$10,0,IF(U44=$C$21,V43,Z44-X44-Y44)) -> 144.02 | X44: 70.60 | Y44: =IF($C$23=0,0,IF(OR(Listas!$K$6=Listas!$L$3,Listas!$K$6=Listas!$L$4),0,IF($C$23="",0,IF(Listas!$D$5=Listas!$C$3,ROUND(IF(U44<=$C$21,IF(ROUND((V43/$T$120)*$C$23*AI44,2)<(1/$T$120),ROUND((1/$T$120),2),ROUND((V43/$T$120)*$C$23,2)*AI44),0),2),IF(Listas!$D$5=Listas!$C$2,ROUND(IF(U44<=$C$21,IF(ROUND(V43*$C$23*AI44,2)<1,1,ROUND(V43*$C$23,2)*AI44),0),2)))))) -> 11.38 | Z44: 226.00 | AA44: 0 | AB44: 226.00 | AG44: 30 | AH44: 276 | AI44: =IF(Listas!$H$21=Listas!$I$17,1,IF(U44<=$C$21,ROUND((EOMONTH(S44,0)-EOMONTH(S43,0))/30,0),0)) -> 1 | AL44: 2025-05-16 | AP44: 226.00 | AQ44: 0 | AU44: 2022-01-03 | AV44: 2 | AW44: 94 | AX44: 75.86 | AY44: 16.75 | AZ44: 1.39 | BA44: 0 | BB44: 0
A45: =IF(IFERROR(VLOOKUP(C45,Listas!AT:AV,3,FALSE),0)=1,IF(WEEKDAY(C45+1)=7,C45+2,C45+1),C45) -> 2025-06-16 | B45: 4 | C45: =IF(B45>$C$21,"",IF(Listas!$H$21=Listas!$I$17,IF(WEEKDAY(C44+$D$13)=1,C44+$D$13+1,C44+$D$13),IF(B45<=$C$21,IF((DATE(YEAR(C44),MONTH(C44)+1,DAY($C$14))-C44)>=27,IF(WEEKDAY(DATE(YEAR(C44),MONTH(C44)+1,DAY($C$14)))=1,DATE(YEAR(C44),MONTH(C44)+1,DAY($C$14)+1),DATE(YEAR(C44),MONTH(C44)+1,DAY($C$14))),DATE(YEAR(C44),MONTH(C44)+2,DAY($C$14))),""))) -> 2025-06-16 | D45: 1,473.49 | E45: 67.07 | F45: =IF($C$23=0,0,IF(OR(Listas!$K$6=Listas!$L$3,Listas!$K$6=Listas!$L$4),0,IF($C$23="",0,IF(Listas!$D$5=Listas!$C$3,ROUND(IF(B45<=$C$21,IF(ROUND((D44/$T$120)*$C$23*Q45,2)<(1/$T$120),ROUND((1/$T$120),2),ROUND((D44/$T$120)*$C$23,2)*Q45),0),2),IF(Listas!$D$5=Listas!$C$2,ROUND(IF(B45<=$C$21,IF(ROUND(D44*$C$23*Q45,2)<1,1,ROUND(D44*$C$23,2)*Q45),0),2)))))) -> 10.46 | G45: 148.22 | I45: 225.75 | J45: 0 | K45: 31 | L45: 31 | M45: 31 | N45: 245 | O45: 1.4444 | P45: 42.7039 | Q45: =IF(Listas!$H$21=Listas!$I$15,1,IF(B45<=$C$21,ROUND((EOMONTH(A45,0)-EOMONTH(A44,0))/30,0),0)) -> 1 | S45: =IF(A45=0,"",A45) -> 2025-06-16 | U45: 4 | V45: 1,472.39 | W45: 148.51 | X45: 67.04 | Y45: =IF($C$23=0,0,IF(OR(Listas!$K$6=Listas!$L$3,Listas!$K$6=Listas!$L$4),0,IF($C$23="",0,IF(Listas!$D$5=Listas!$C$3,ROUND(IF(U45<=$C$21,IF(ROUND((V44/$T$120)*$C$23*AI45,2)<(1/$T$120),ROUND((1/$T$120),2),ROUND((V44/$T$120)*$C$23,2)*AI45),0),2),IF(Listas!$D$5=Listas!$C$2,ROUND(IF(U45<=$C$21,IF(ROUND(V44*$C$23*AI45,2)<1,1,ROUND(V44*$C$23,2)*AI45),0),2)))))) -> 10.45 | Z45: 226.00 | AA45: 0 | AB45: 226.00 | AG45: 31 | AH45: 245 | AI45: =IF(Listas!$H$21=Listas!$I$17,1,IF(U45<=$C$21,ROUND((EOMONTH(S45,0)-EOMONTH(S44,0))/30,0),0)) -> 1 | AL45: 2025-06-16 | AP45: 226.00 | AQ45: 0 | AU45: 2022-02-03 | AV45: 3 | AW45: 94 | AX45: 77.34 | AY45: 15.38 | AZ45: 1.28 | BA45: 0 | BB45: 0
A46: =IF(IFERROR(VLOOKUP(C46,Listas!AT:AV,3,FALSE),0)=1,IF(WEEKDAY(C46+1)=7,C46+2,C46+1),C46) -> 2025-07-16 | B46: 5 | C46: =IF(B46>$C$21,"",IF(Listas!$H$21=Listas!$I$17,IF(WEEKDAY(C45+$D$13)=1,C45+$D$13+1,C45+$D$13),IF(B46<=$C$21,IF((DATE(YEAR(C45),MONTH(C45)+1,DAY($C$14))-C45)>=27,IF(WEEKDAY(DATE(YEAR(C45),MONTH(C45)+1,DAY($C$14)))=1,DATE(YEAR(C45),MONTH(C45)+1,DAY($C$14)+1),DATE(YEAR(C45),MONTH(C45)+1,DAY($C$14))),DATE(YEAR(C45),MONTH(C45)+2,DAY($C$14))),""))) -> 2025-07-16 | D46: 1,316.18 | E46: 58.94 | F46: =IF($C$23=0,0,IF(OR(Listas!$K$6=Listas!$L$3,Listas!$K$6=Listas!$L$4),0,IF($C$23="",0,IF(Listas!$D$5=Listas!$C$3,ROUND(IF(B46<=$C$21,IF(ROUND((D45/$T$120)*$C$23*Q46,2)<(1/$T$120),ROUND((1/$T$120),2),ROUND((D45/$T$120)*$C$23,2)*Q46),0),2),IF(Listas!$D$5=Listas!$C$2,ROUND(IF(B46<=$C$21,IF(ROUND(D45*$C$23*Q46,2)<1,1,ROUND(D45*$C$23,2)*Q46),0),2)))))) -> 9.50 | G46: 157.31 | I46: 225.75 | J46: 0 | K46: 30 | L46: 30 | M46: 30 | N46: 215 | O46: 1.3808 | P46: 39.7369 | Q46: =IF(Listas!$H$21=Listas!$I$15,1,IF(B46<=$C$21,ROUND((EOMONTH(A46,0)-EOMONTH(A45,0))/30,0),0)) -> 1 | S46: 2025-07-16 | U46: 5 | V46: 1,314.79 | W46: 157.60 | X46: 58.90 | Y46: =IF($C$23=0,0,IF(OR(Listas!$K$6=Listas!$L$3,Listas!$K$6=Listas!$L$4),0,IF($C$23="",0,IF(Listas!$D$5=Listas!$C$3,ROUND(IF(U46<=$C$21,IF(ROUND((V45/$T$120)*$C$23*AI46,2)<(1/$T$120),ROUND((1/$T$120),2),ROUND((V45/$T$120)*$C$23,2)*AI46),0),2),IF(Listas!$D$5=Listas!$C$2,ROUND(IF(U46<=$C$21,IF(ROUND(V45*$C$23*AI46,2)<1,1,ROUND(V45*$C$23,2)*AI46),0),2)))))) -> 9.50 | Z46: 226.00 | AA46: 0 | AB46: 226.00 | AG46: 30 | AH46: 215 | AI46: =IF(Listas!$H$21=Listas!$I$17,1,IF(U46<=$C$21,ROUND((EOMONTH(S46,0)-EOMONTH(S45,0))/30,0),0)) -> 1 | AL46: 2025-07-16 | AP46: 226.00 | AQ46: 0 | AU46: 2022-03-03 | AV46: 4 | AW46: 94 | AX46: 80.22 | AY46: 12.62 | AZ46: 1.16 | BA46: 0 | BB46: 0
A47: =IF(IFERROR(VLOOKUP(C47,Listas!AT:AV,3,FALSE),0)=1,IF(WEEKDAY(C47+1)=7,C47+2,C47+1),C47) -> 2025-08-16 | B47: 6 | C47: =IF(B47>$C$21,"",IF(Listas!$H$21=Listas!$I$17,IF(WEEKDAY(C46+$D$13)=1,C46+$D$13+1,C46+$D$13),IF(B47<=$C$21,IF((DATE(YEAR(C46),MONTH(C46)+1,DAY($C$14))-C46)>=27,IF(WEEKDAY(DATE(YEAR(C46),MONTH(C46)+1,DAY($C$14)))=1,DATE(YEAR(C46),MONTH(C46)+1,DAY($C$14)+1),DATE(YEAR(C46),MONTH(C46)+1,DAY($C$14))),DATE(YEAR(C46),MONTH(C46)+2,DAY($C$14))),""))) -> 2025-08-16 | D47: 1,153.37 | E47: 54.44 | F47: =IF($C$23=0,0,IF(OR(Listas!$K$6=Listas!$L$3,Listas!$K$6=Listas!$L$4),0,IF($C$23="",0,IF(Listas!$D$5=Listas!$C$3,ROUND(IF(B47<=$C$21,IF(ROUND((D46/$T$120)*$C$23*Q47,2)<(1/$T$120),ROUND((1/$T$120),2),ROUND((D46/$T$120)*$C$23,2)*Q47),0),2),IF(Listas!$D$5=Listas!$C$2,ROUND(IF(B47<=$C$21,IF(ROUND(D46*$C$23*Q47,2)<1,1,ROUND(D46*$C$23,2)*Q47),0),2)))))) -> 8.49 | G47: 162.82 | I47: 225.75 | J47: 0 | K47: 31 | L47: 31 | M47: 31 | N47: 184 | O47: 1.3181 | P47: 39.4306 | Q47: =IF(Listas!$H$21=Listas!$I$15,1,IF(B47<=$C$21,ROUND((EOMONTH(A47,0)-EOMONTH(A46,0))/30,0),0)) -> 1 | S47: 2025-08-16 | U47: 6 | V47: 1,151.65 | W47: 163.14 | X47: 54.38 | Y47: =IF($C$23=0,0,IF(OR(Listas!$K$6=Listas!$L$3,Listas!$K$6=Listas!$L$4),0,IF($C$23="",0,IF(Listas!$D$5=Listas!$C$3,ROUND(IF(U47<=$C$21,IF(ROUND((V46/$T$120)*$C$23*AI47,2)<(1/$T$120),ROUND((1/$T$120),2),ROUND((V46/$T$120)*$C$23,2)*AI47),0),2),IF(Listas!$D$5=Listas!$C$2,ROUND(IF(U47<=$C$21,IF(ROUND(V46*$C$23*AI47,2)<1,1,ROUND(V46*$C$23,2)*AI47),0),2)))))) -> 8.48 | Z47: 226.00 | AA47: 0 | AB47: 226.00 | AG47: 31 | AH47: 184 | AI47: =IF(Listas!$H$21=Listas!$I$17,1,IF(U47<=$C$21,ROUND((EOMONTH(S47,0)-EOMONTH(S46,0))/30,0),0)) -> 1 | AL47: 2025-08-16 | AP47: 226.00 | AQ47: 0 | AU47: 2022-04-04 | AV47: 5 | AW47: 94 | AX47: 80.02 | AY47: 12.94 | AZ47: 1.04 | BA47: 0 | BB47: 0
A48: =IF(IFERROR(VLOOKUP(C48,Listas!AT:AV,3,FALSE),0)=1,IF(WEEKDAY(C48+1)=7,C48+2,C48+1),C48) -> 2025-09-16 | B48: 7 | C48: =IF(B48>$C$21,"",IF(Listas!$H$21=Listas!$I$17,IF(WEEKDAY(C47+$D$13)=1,C47+$D$13+1,C47+$D$13),IF(B48<=$C$21,IF((DATE(YEAR(C47),MONTH(C47)+1,DAY($C$14))-C47)>=27,IF(WEEKDAY(DATE(YEAR(C47),MONTH(C47)+1,DAY($C$14)))=1,DATE(YEAR(C47),MONTH(C47)+1,DAY($C$14)+1),DATE(YEAR(C47),MONTH(C47)+1,DAY($C$14))),DATE(YEAR(C47),MONTH(C47)+2,DAY($C$14))),""))) -> 2025-09-16 | D48: 982.76 | E48: 47.70 | F48: =IF($C$23=0,0,IF(OR(Listas!$K$6=Listas!$L$3,Listas!$K$6=Listas!$L$4),0,IF($C$23="",0,IF(Listas!$D$5=Listas!$C$3,ROUND(IF(B48<=$C$21,IF(ROUND((D47/$T$120)*$C$23*Q48,2)<(1/$T$120),ROUND((1/$T$120),2),ROUND((D47/$T$120)*$C$23,2)*Q48),0),2),IF(Listas!$D$5=Listas!$C$2,ROUND(IF(B48<=$C$21,IF(ROUND(D47*$C$23*Q48,2)<1,1,ROUND(D47*$C$23,2)*Q48),0),2)))))) -> 7.44 | G48: =IF(B48>$C$21,D47,I48-E48-F48-H48) -> 170.61 | I48: =IF(B48<=$C$21,$C$32,0) -> 225.75 | J48: 0 | K48: 31 | L48: 31 | M48: =IF(B48<=$C$21,A48-A47,0) -> 31 | N48: 153 | O48: =IF(B48<=$C$21,ROUND((1+$C$25)^(N48/30),6),0) -> 1.2581 | P48: 37.8645 | Q48: =IF(Listas!$H$21=Listas!$I$15,1,IF(B48<=$C$21,ROUND((EOMONTH(A48,0)-EOMONTH(A47,0))/30,0),0)) -> 1 | S48: 2025-09-16 | U48: 7 | V48: 980.71 | W48: 170.94 | X48: 47.63 | Y48: =IF($C$23=0,0,IF(OR(Listas!$K$6=Listas!$L$3,Listas!$K$6=Listas!$L$4),0,IF($C$23="",0,IF(Listas!$D$5=Listas!$C$3,ROUND(IF(U48<=$C$21,IF(ROUND((V47/$T$120)*$C$23*AI48,2)<(1/$T$120),ROUND((1/$T$120),2),ROUND((V47/$T$120)*$C$23,2)*AI48),0),2),IF(Listas!$D$5=Listas!$C$2,ROUND(IF(U48<=$C$21,IF(ROUND(V47*$C$23*AI48,2)<1,1,ROUND(V47*$C$23,2)*AI48),0),2)))))) -> 7.43 | Z48: =IF(U48=$C$21,SUM(W48,X48,Y48,AQ48),IF(U48<$C$21,$C$34,0)) -> 226.00 | AA48: =IF(U48<=$C$21,$C$17,0) -> 0 | AB48: 226.00 | AG48: 31 | AH48: 153 | AI48: =IF(Listas!$H$21=Listas!$I$17,1,IF(U48<=$C$21,ROUND((EOMONTH(S48,0)-EOMONTH(S47,0))/30,0),0)) -> 1 | AL48: 2025-09-16 | AP48: 226.00 | AQ48: 0 | AU48: 2022-05-03 | AV48: 6 | AW48: 94 | AX48: 82.64 | AY48: 10.36 | AZ48: 1 | BA48: 0 | BB48: 0
A49: =IF(IFERROR(VLOOKUP(C49,Listas!AT:AV,3,FALSE),0)=1,IF(WEEKDAY(C49+1)=7,C49+2,C49+1),C49) -> 2025-10-16 | B49: 8 | C49: =IF(B49>$C$21,"",IF(Listas!$H$21=Listas!$I$17,IF(WEEKDAY(C48+$D$13)=1,C48+$D$13+1,C48+$D$13),IF(B49<=$C$21,IF((DATE(YEAR(C48),MONTH(C48)+1,DAY($C$14))-C48)>=27,IF(WEEKDAY(DATE(YEAR(C48),MONTH(C48)+1,DAY($C$14)))=1,DATE(YEAR(C48),MONTH(C48)+1,DAY($C$14)+1),DATE(YEAR(C48),MONTH(C48)+1,DAY($C$14))),DATE(YEAR(C48),MONTH(C48)+2,DAY($C$14))),""))) -> 2025-10-16 | D49: 802.67 | E49: 39.31 | F49: =IF($C$23=0,0,IF(OR(Listas!$K$6=Listas!$L$3,Listas!$K$6=Listas!$L$4),0,IF($C$23="",0,IF(Listas!$D$5=Listas!$C$3,ROUND(IF(B49<=$C$21,IF(ROUND((D48/$T$120)*$C$23*Q49,2)<(1/$T$120),ROUND((1/$T$120),2),ROUND((D48/$T$120)*$C$23,2)*Q49),0),2),IF(Listas!$D$5=Listas!$C$2,ROUND(IF(B49<=$C$21,IF(ROUND(D48*$C$23*Q49,2)<1,1,ROUND(D48*$C$23,2)*Q49),0),2)))))) -> 6.34 | G49: 180.10 | I49: 225.75 | J49: 0 | K49: 30 | L49: 30 | M49: =IF(B49<=$C$21,A49-A48,0) -> 30 | N49: 123 | O49: 1.2027 | P49: 35.2337 | Q49: =IF(Listas!$H$21=Listas!$I$15,1,IF(B49<=$C$21,ROUND((EOMONTH(A49,0)-EOMONTH(A48,0))/30,0),0)) -> 1 | S49: 2025-10-16 | U49: 8 | V49: 800.27 | W49: 180.44 | X49: 39.23 | Y49: =IF($C$23=0,0,IF(OR(Listas!$K$6=Listas!$L$3,Listas!$K$6=Listas!$L$4),0,IF($C$23="",0,IF(Listas!$D$5=Listas!$C$3,ROUND(IF(U49<=$C$21,IF(ROUND((V48/$T$120)*$C$23*AI49,2)<(1/$T$120),ROUND((1/$T$120),2),ROUND((V48/$T$120)*$C$23,2)*AI49),0),2),IF(Listas!$D$5=Listas!$C$2,ROUND(IF(U49<=$C$21,IF(ROUND(V48*$C$23*AI49,2)<1,1,ROUND(V48*$C$23,2)*AI49),0),2)))))) -> 6.33 | Z49: 226.00 | AA49: 0 | AB49: 226.00 | AG49: 30 | AH49: 123 | AI49: =IF(Listas!$H$21=Listas!$I$17,1,IF(U49<=$C$21,ROUND((EOMONTH(S49,0)-EOMONTH(S48,0))/30,0),0)) -> 1 | AL49: 2025-10-16 | AP49: 226.00 | AQ49: 0 | AU49: 2022-06-03 | AV49: 7 | AW49: 94 | AX49: 83.41 | AY49: 9.59 | AZ49: 1 | BA49: 0 | BB49: 0
A50: =IF(IFERROR(VLOOKUP(C50,Listas!AT:AV,3,FALSE),0)=1,IF(WEEKDAY(C50+1)=7,C50+2,C50+1),C50) -> 2025-11-17 | B50: 9 | C50: =IF(B50>$C$21,"",IF(Listas!$H$21=Listas!$I$17,IF(WEEKDAY(C49+$D$13)=1,C49+$D$13+1,C49+$D$13),IF(B50<=$C$21,IF((DATE(YEAR(C49),MONTH(C49)+1,DAY($C$14))-C49)>=27,IF(WEEKDAY(DATE(YEAR(C49),MONTH(C49)+1,DAY($C$14)))=1,DATE(YEAR(C49),MONTH(C49)+1,DAY($C$14)+1),DATE(YEAR(C49),MONTH(C49)+1,DAY($C$14))),DATE(YEAR(C49),MONTH(C49)+2,DAY($C$14))),""))) -> 2025-11-17 | D50: 616.39 | E50: 34.29 | F50: =IF($C$23=0,0,IF(OR(Listas!$K$6=Listas!$L$3,Listas!$K$6=Listas!$L$4),0,IF($C$23="",0,IF(Listas!$D$5=Listas!$C$3,ROUND(IF(B50<=$C$21,IF(ROUND((D49/$T$120)*$C$23*Q50,2)<(1/$T$120),ROUND((1/$T$120),2),ROUND((D49/$T$120)*$C$23,2)*Q50),0),2),IF(Listas!$D$5=Listas!$C$2,ROUND(IF(B50<=$C$21,IF(ROUND(D49*$C$23*Q50,2)<1,1,ROUND(D49*$C$23,2)*Q50),0),2)))))) -> 5.18 | G50: 186.28 | I50: 225.75 | J50: 0 | K50: 32 | L50: 32 | M50: 32 | N50: 91 | O50: 1.1463 | P50: 36.0427 | Q50: =IF(Listas!$H$21=Listas!$I$15,1,IF(B50<=$C$21,ROUND((EOMONTH(A50,0)-EOMONTH(A49,0))/30,0),0)) -> 1 | S50: 2025-11-17 | U50: 9 | V50: 613.62 | W50: =IF(U50=$C$21,V49,Z50-X50-Y50) -> 186.65 | X50: 34.19 | Y50: =IF($C$23=0,0,IF(OR(Listas!$K$6=Listas!$L$3,Listas!$K$6=Listas!$L$4),0,IF($C$23="",0,IF(Listas!$D$5=Listas!$C$3,ROUND(IF(U50<=$C$21,IF(ROUND((V49/$T$120)*$C$23*AI50,2)<(1/$T$120),ROUND((1/$T$120),2),ROUND((V49/$T$120)*$C$23,2)*AI50),0),2),IF(Listas!$D$5=Listas!$C$2,ROUND(IF(U50<=$C$21,IF(ROUND(V49*$C$23*AI50,2)<1,1,ROUND(V49*$C$23,2)*AI50),0),2)))))) -> 5.16 | Z50: 226.00 | AA50: 0 | AB50: 226.00 | AG50: 32 | AH50: 91 | AI50: =IF(Listas!$H$21=Listas!$I$17,1,IF(U50<=$C$21,ROUND((EOMONTH(S50,0)-EOMONTH(S49,0))/30,0),0)) -> 1 | AL50: 2025-11-17 | AP50: 226.00 | AQ50: 0 | AU50: 2022-07-04 | AV50: 8 | AW50: 94 | AX50: 84.92 | AY50: 8.08 | AZ50: 1 | BA50: 0 | BB50: 0
A51: =IF(IFERROR(VLOOKUP(C51,Listas!AT:AV,3,FALSE),0)=1,IF(WEEKDAY(C51+1)=7,C51+2,C51+1),C51) -> 2025-12-16 | B51: 10 | C51: =IF(B51>$C$21,"",IF(Listas!$H$21=Listas!$I$17,IF(WEEKDAY(C50+$D$13)=1,C50+$D$13+1,C50+$D$13),IF(B51<=$C$21,IF((DATE(YEAR(C50),MONTH(C50)+1,DAY($C$14))-C50)>=27,IF(WEEKDAY(DATE(YEAR(C50),MONTH(C50)+1,DAY($C$14)))=1,DATE(YEAR(C50),MONTH(C50)+1,DAY($C$14)+1),DATE(YEAR(C50),MONTH(C50)+1,DAY($C$14))),DATE(YEAR(C50),MONTH(C50)+2,DAY($C$14))),""))) -> 2025-12-16 | D51: 418.45 | E51: 23.82 | F51: =IF($C$23=0,0,IF(OR(Listas!$K$6=Listas!$L$3,Listas!$K$6=Listas!$L$4),0,IF($C$23="",0,IF(Listas!$D$5=Listas!$C$3,ROUND(IF(B51<=$C$21,IF(ROUND((D50/$T$120)*$C$23*Q51,2)<(1/$T$120),ROUND((1/$T$120),2),ROUND((D50/$T$120)*$C$23,2)*Q51),0),2),IF(Listas!$D$5=Listas!$C$2,ROUND(IF(B51<=$C$21,IF(ROUND(D50*$C$23*Q51,2)<1,1,ROUND(D50*$C$23,2)*Q51),0),2)))))) -> 3.98 | G51: 197.95 | I51: 225.75 | J51: 0 | K51: 29 | L51: 29 | M51: 29 | N51: 62 | O51: 1.0975 | P51: 31.4485 | Q51: =IF(Listas!$H$21=Listas!$I$15,1,IF(B51<=$C$21,ROUND((EOMONTH(A51,0)-EOMONTH(A50,0))/30,0),0)) -> 1 | S51: 2025-12-16 | U51: 10 | V51: 415.29 | W51: 198.33 | X51: 23.71 | Y51: =IF($C$23=0,0,IF(OR(Listas!$K$6=Listas!$L$3,Listas!$K$6=Listas!$L$4),0,IF($C$23="",0,IF(Listas!$D$5=Listas!$C$3,ROUND(IF(U51<=$C$21,IF(ROUND((V50/$T$120)*$C$23*AI51,2)<(1/$T$120),ROUND((1/$T$120),2),ROUND((V50/$T$120)*$C$23,2)*AI51),0),2),IF(Listas!$D$5=Listas!$C$2,ROUND(IF(U51<=$C$21,IF(ROUND(V50*$C$23*AI51,2)<1,1,ROUND(V50*$C$23,2)*AI51),0),2)))))) -> 3.96 | Z51: 226.00 | AA51: 0 | AB51: 226.00 | AG51: 29 | AH51: 62 | AI51: =IF(Listas!$H$21=Listas!$I$17,1,IF(U51<=$C$21,ROUND((EOMONTH(S51,0)-EOMONTH(S50,0))/30,0),0)) -> 1 | AL51: 2025-12-16 | AP51: 226.00 | AQ51: 0 | AU51: 2022-08-03 | AV51: 9 | AW51: 94 | AX51: 86.67 | AY51: 6.33 | AZ51: 1 | BA51: 0 | BB51: 0
A52: =IF(IFERROR(VLOOKUP(C52,Listas!AT:AV,3,FALSE),0)=1,IF(WEEKDAY(C52+1)=7,C52+2,C52+1),C52) -> 2026-01-16 | B52: 11 | C52: =IF(B52>$C$21,"",IF(Listas!$H$21=Listas!$I$17,IF(WEEKDAY(C51+$D$13)=1,C51+$D$13+1,C51+$D$13),IF(B52<=$C$21,IF((DATE(YEAR(C51),MONTH(C51)+1,DAY($C$14))-C51)>=27,IF(WEEKDAY(DATE(YEAR(C51),MONTH(C51)+1,DAY($C$14)))=1,DATE(YEAR(C51),MONTH(C51)+1,DAY($C$14)+1),DATE(YEAR(C51),MONTH(C51)+1,DAY($C$14))),DATE(YEAR(C51),MONTH(C51)+2,DAY($C$14))),""))) -> 2026-01-16 | D52: 212.71 | E52: 17.31 | F52: =IF($C$23=0,0,IF(OR(Listas!$K$6=Listas!$L$3,Listas!$K$6=Listas!$L$4),0,IF($C$23="",0,IF(Listas!$D$5=Listas!$C$3,ROUND(IF(B52<=$C$21,IF(ROUND((D51/$T$120)*$C$23*Q52,2)<(1/$T$120),ROUND((1/$T$120),2),ROUND((D51/$T$120)*$C$23,2)*Q52),0),2),IF(Listas!$D$5=Listas!$C$2,ROUND(IF(B52<=$C$21,IF(ROUND(D51*$C$23*Q52,2)<1,1,ROUND(D51*$C$23,2)*Q52),0),2)))))) -> 2.70 | G52: 205.74 | I52: 225.75 | J52: 0 | K52: 31 | L52: 31 | M52: 31 | N52: 31 | O52: 1.0476 | P52: 32.2822 | Q52: =IF(Listas!$H$21=Listas!$I$15,1,IF(B52<=$C$21,ROUND((EOMONTH(A52,0)-EOMONTH(A51,0))/30,0),0)) -> 1 | S52: 2026-01-16 | U52: 11 | V52: 209.15 | W52: 206.14 | X52: 17.18 | Y52: =IF($C$23=0,0,IF(OR(Listas!$K$6=Listas!$L$3,Listas!$K$6=Listas!$L$4),0,IF($C$23="",0,IF(Listas!$D$5=Listas!$C$3,ROUND(IF(U52<=$C$21,IF(ROUND((V51/$T$120)*$C$23*AI52,2)<(1/$T$120),ROUND((1/$T$120),2),ROUND((V51/$T$120)*$C$23,2)*AI52),0),2),IF(Listas!$D$5=Listas!$C$2,ROUND(IF(U52<=$C$21,IF(ROUND(V51*$C$23*AI52,2)<1,1,ROUND(V51*$C$23,2)*AI52),0),2)))))) -> 2.68 | Z52: 226.00 | AA52: 0 | AB52: 226.00 | AG52: 31 | AH52: 31 | AI52: =IF(Listas!$H$21=Listas!$I$17,1,IF(U52<=$C$21,ROUND((EOMONTH(S52,0)-EOMONTH(S51,0))/30,0),0)) -> 1 | AL52: 2026-01-16 | AP52: 226.00 | AQ52: 0 | AU52: 2022-09-03 | AV52: 10 | AW52: 94 | AX52: 88.02 | AY52: 4.98 | AZ52: 1 | BA52: 0 | BB52: 0
A53: =IF(IFERROR(VLOOKUP(C53,Listas!AT:AV,3,FALSE),0)=1,IF(WEEKDAY(C53+1)=7,C53+2,C53+1),C53) -> 2026-02-16 | B53: 12 | C53: =IF(B53>$C$21,"",IF(Listas!$H$21=Listas!$I$17,IF(WEEKDAY(C52+$D$13)=1,C52+$D$13+1,C52+$D$13),IF(B53<=$C$21,IF((DATE(YEAR(C52),MONTH(C52)+1,DAY($C$14))-C52)>=27,IF(WEEKDAY(DATE(YEAR(C52),MONTH(C52)+1,DAY($C$14)))=1,DATE(YEAR(C52),MONTH(C52)+1,DAY($C$14)+1),DATE(YEAR(C52),MONTH(C52)+1,DAY($C$14))),DATE(YEAR(C52),MONTH(C52)+2,DAY($C$14))),""))) -> 2026-02-16 | D53: -2.87 | E53: 8.80 | F53: =IF($C$23=0,0,IF(OR(Listas!$K$6=Listas!$L$3,Listas!$K$6=Listas!$L$4),0,IF($C$23="",0,IF(Listas!$D$5=Listas!$C$3,ROUND(IF(B53<=$C$21,IF(ROUND((D52/$T$120)*$C$23*Q53,2)<(1/$T$120),ROUND((1/$T$120),2),ROUND((D52/$T$120)*$C$23,2)*Q53),0),2),IF(Listas!$D$5=Listas!$C$2,ROUND(IF(B53<=$C$21,IF(ROUND(D52*$C$23*Q53,2)<1,1,ROUND(D52*$C$23,2)*Q53),0),2)))))) -> 1.37 | G53: 215.58 | I53: 225.75 | J53: 0 | K53: 31 | L53: 31 | M53: 31 | N53: 0 | O53: 1.0000 | P53: 31.0000 | Q53: =IF(Listas!$H$21=Listas!$I$15,1,IF(B53<=$C$21,ROUND((EOMONTH(A53,0)-EOMONTH(A52,0))/30,0),0)) -> 1 | S53: 2026-02-16 | U53: 12 | V53: 0 | W53: 209.15 | X53: 8.65 | Y53: =IF($C$23=0,0,IF(OR(Listas!$K$6=Listas!$L$3,Listas!$K$6=Listas!$L$4),0,IF($C$23="",0,IF(Listas!$D$5=Listas!$C$3,ROUND(IF(U53<=$C$21,IF(ROUND((V52/$T$120)*$C$23*AI53,2)<(1/$T$120),ROUND((1/$T$120),2),ROUND((V52/$T$120)*$C$23,2)*AI53),0),2),IF(Listas!$D$5=Listas!$C$2,ROUND(IF(U53<=$C$21,IF(ROUND(V52*$C$23*AI53,2)<1,1,ROUND(V52*$C$23,2)*AI53),0),2)))))) -> 1.35 | Z53: 219.15 | AA53: 0 | AB53: 219.15 | AD53: =S53 -> 2026-02-16 | AE53: =IF(S53<>"",1,0) -> 1 | AG53: 31 | AH53: 0 | AI53: =IF(Listas!$H$21=Listas!$I$17,1,IF(U53<=$C$21,ROUND((EOMONTH(S53,0)-EOMONTH(S52,0))/30,0),0)) -> 1 | AL53: 2026-02-16 | AP53: 219.15 | AQ53: 0 | AU53: 2022-10-03 | AV53: 11 | AW53: 94 | AX53: 89.73 | AY53: 3.27 | AZ53: 1 | BA53: 0 | BB53: 0
A54: =IF(IFERROR(VLOOKUP(C54,Listas!AT:AV,3,FALSE),0)=1,IF(WEEKDAY(C54+1)=7,C54+2,C54+1),C54) ->  | B54: 13 | C54: =IF(B54>$C$21,"",IF(Listas!$H$21=Listas!$I$17,IF(WEEKDAY(C53+$D$13)=1,C53+$D$13+1,C53+$D$13),IF(B54<=$C$21,IF((DATE(YEAR(C53),MONTH(C53)+1,DAY($C$14))-C53)>=27,IF(WEEKDAY(DATE(YEAR(C53),MONTH(C53)+1,DAY($C$14)))=1,DATE(YEAR(C53),MONTH(C53)+1,DAY($C$14)+1),DATE(YEAR(C53),MONTH(C53)+1,DAY($C$14))),DATE(YEAR(C53),MONTH(C53)+2,DAY($C$14))),""))) ->  | E54: 0 | F54: =IF($C$23=0,0,IF(OR(Listas!$K$6=Listas!$L$3,Listas!$K$6=Listas!$L$4),0,IF($C$23="",0,IF(Listas!$D$5=Listas!$C$3,ROUND(IF(B54<=$C$21,IF(ROUND((D53/$T$120)*$C$23*Q54,2)<(1/$T$120),ROUND((1/$T$120),2),ROUND((D53/$T$120)*$C$23,2)*Q54),0),2),IF(Listas!$D$5=Listas!$C$2,ROUND(IF(B54<=$C$21,IF(ROUND(D53*$C$23*Q54,2)<1,1,ROUND(D53*$C$23,2)*Q54),0),2)))))) -> 0 | G54: -2.87 | I54: 0 | J54: 0 | K54: 0 | L54: 0 | M54: 0 | N54: 0 | O54: 0 | P54: 0 | Q54: =IF(Listas!$H$21=Listas!$I$15,1,IF(B54<=$C$21,ROUND((EOMONTH(A54,0)-EOMONTH(A53,0))/30,0),0)) -> 0 | S54: =IF(A53="","",IF(A54="","Total",A54)) -> Total | V54: =IF(U53="","",IF(U54<=$C$21,V53-W54,0)) -> 0 | W54: =IF(U53="","",IF(U54="",SUM($W$42:W53),IF(U54=$C$21,V53,Z54-X54-Y54))) -> 2,000.00 | X54: =IF(U53="","",IF(U54="",SUM($X$42:X53),ROUND(((1+$C$24)^(AG54/30)-1)*V53,2))) -> 613.26 | Y54: =IF($C$23=0,0,IF(OR(Listas!$K$6=Listas!$L$3,Listas!$K$6=Listas!$L$4),0,IF($C$23="",0,IF(Listas!$D$5=Listas!$C$3,ROUND(IF(U54<=$C$21,IF(ROUND((V53/$T$120)*$C$23*AI54,2)<(1/$T$120),ROUND((1/$T$120),2),ROUND((V53/$T$120)*$C$23,2)*AI54),0),2),IF(Listas!$D$5=Listas!$C$2,ROUND(IF(U54<=$C$21,IF(ROUND(V53*$C$23*AI54,2)<1,1,ROUND(V53*$C$23,2)*AI54),0),2)))))) -> 0 | Z54: =IF(U53="","",IF(U54="",SUM($Z$42:Z53),IF(U54=$C$21,SUM(W54,X54,Y54,AQ54),IF(U54<$C$21,$C$34,0)))) -> 2,705.15 | AA54: =IF(U53="","",IF(U54="",SUM($AA$42:AA53),IF(U54<=$C$21,$C$17,0))) -> 0 | AB54: 2,705.15 | AD54: Total | AE54: 1 | AG54: 0 | AH54: 0 | AI54: =IF(Listas!$H$21=Listas!$I$17,1,IF(U54<=$C$21,ROUND((EOMONTH(S54,0)-EOMONTH(S53,0))/30,0),0)) -> 0 | AL54: 00:00:00 | AP54: 0 | AQ54: 0 | AU54: 2022-11-03 | AV54: 12 | AW54: 100.11 | AX54: 97.35 | AY54: 1.76 | AZ54: 1 | BA54: 0 | BB54: 0
A55: =IF(IFERROR(VLOOKUP(C55,Listas!AT:AV,3,FALSE),0)=1,IF(WEEKDAY(C55+1)=7,C55+2,C55+1),C55) ->  | B55: 14 | C55: =IF(B55>$C$21,"",IF(Listas!$H$21=Listas!$I$17,IF(WEEKDAY(C54+$D$13)=1,C54+$D$13+1,C54+$D$13),IF(B55<=$C$21,IF((DATE(YEAR(C54),MONTH(C54)+1,DAY($C$14))-C54)>=27,IF(WEEKDAY(DATE(YEAR(C54),MONTH(C54)+1,DAY($C$14)))=1,DATE(YEAR(C54),MONTH(C54)+1,DAY($C$14)+1),DATE(YEAR(C54),MONTH(C54)+1,DAY($C$14))),DATE(YEAR(C54),MONTH(C54)+2,DAY($C$14))),""))) ->  | F55: =IF($C$23=0,0,IF(OR(Listas!$K$6=Listas!$L$3,Listas!$K$6=Listas!$L$4),0,IF($C$23="",0,IF(Listas!$D$5=Listas!$C$3,ROUND(IF(B55<=$C$21,IF(ROUND((D54/$T$120)*$C$23*Q55,2)<(1/$T$120),ROUND((1/$T$120),2),ROUND((D54/$T$120)*$C$23,2)*Q55),0),2),IF(Listas!$D$5=Listas!$C$2,ROUND(IF(B55<=$C$21,IF(ROUND(D54*$C$23*Q55,2)<1,1,ROUND(D54*$C$23,2)*Q55),0),2)))))) -> 0 | I55: 0 | J55: 0 | K55: 0 | L55: 0 | M55: 0 | N55: 0 | O55: 0 | P55: 0 | Q55: =IF(Listas!$H$21=Listas!$I$15,1,IF(B55<=$C$21,ROUND((EOMONTH(A55,0)-EOMONTH(A54,0))/30,0),0)) -> 0 | S55: =IF(A54="","",IF(A55="","Total",A55)) ->  | U55: =IF(C55="","",B55) ->  | V55: =IF(U54="","",IF(U55<=$C$21,V54-W55,0)) ->  | W55: =IF(U54="","",IF(U55="",SUM($W$42:W54),IF(U55=$C$21,V54,Z55-X55-Y55))) ->  | X55: =IF(U54="","",IF(U55="",SUM($X$42:X54),ROUND(((1+$C$24)^(AG55/30)-1)*V54,2))) ->  | Y55: =IF($C$23=0,0,IF(OR(Listas!$K$6=Listas!$L$3,Listas!$K$6=Listas!$L$4),0,IF($C$23="",0,IF(Listas!$D$5=Listas!$C$3,ROUND(IF(U55<=$C$21,IF(ROUND((V54/$T$120)*$C$23*AI55,2)<(1/$T$120),ROUND((1/$T$120),2),ROUND((V54/$T$120)*$C$23,2)*AI55),0),2),IF(Listas!$D$5=Listas!$C$2,ROUND(IF(U55<=$C$21,IF(ROUND(V54*$C$23*AI55,2)<1,1,ROUND(V54*$C$23,2)*AI55),0),2)))))) -> 0 | Z55: =IF(U54="","",IF(U55="",SUM($Z$42:Z54),IF(U55=$C$21,SUM(W55,X55,Y55,AQ55),IF(U55<$C$21,$C$34,0)))) ->  | AA55: =IF(U54="","",IF(U55="",SUM($AA$42:AA54),IF(U55<=$C$21,$C$17,0))) ->  | AB55: 0 | AE55: 0 | AG55: 0 | AH55: 0 | AI55: =IF(Listas!$H$21=Listas!$I$17,1,IF(U55<=$C$21,ROUND((EOMONTH(S55,0)-EOMONTH(S54,0))/30,0),0)) -> 0 | AL55: 00:00:00 | AP55: 0 | AQ55: 0
A56: =IF(IFERROR(VLOOKUP(C56,Listas!AT:AV,3,FALSE),0)=1,IF(WEEKDAY(C56+1)=7,C56+2,C56+1),C56) ->  | B56: 15 | C56: =IF(B56>$C$21,"",IF(Listas!$H$21=Listas!$I$17,IF(WEEKDAY(C55+$D$13)=1,C55+$D$13+1,C55+$D$13),IF(B56<=$C$21,IF((DATE(YEAR(C55),MONTH(C55)+1,DAY($C$14))-C55)>=27,IF(WEEKDAY(DATE(YEAR(C55),MONTH(C55)+1,DAY($C$14)))=1,DATE(YEAR(C55),MONTH(C55)+1,DAY($C$14)+1),DATE(YEAR(C55),MONTH(C55)+1,DAY($C$14))),DATE(YEAR(C55),MONTH(C55)+2,DAY($C$14))),""))) ->  | F56: =IF($C$23=0,0,IF(OR(Listas!$K$6=Listas!$L$3,Listas!$K$6=Listas!$L$4),0,IF($C$23="",0,IF(Listas!$D$5=Listas!$C$3,ROUND(IF(B56<=$C$21,IF(ROUND((D55/$T$120)*$C$23*Q56,2)<(1/$T$120),ROUND((1/$T$120),2),ROUND((D55/$T$120)*$C$23,2)*Q56),0),2),IF(Listas!$D$5=Listas!$C$2,ROUND(IF(B56<=$C$21,IF(ROUND(D55*$C$23*Q56,2)<1,1,ROUND(D55*$C$23,2)*Q56),0),2)))))) -> 0 | I56: 0 | J56: 0 | K56: 0 | L56: 0 | M56: 0 | N56: 0 | O56: 0 | P56: 0 | Q56: =IF(Listas!$H$21=Listas!$I$15,1,IF(B56<=$C$21,ROUND((EOMONTH(A56,0)-EOMONTH(A55,0))/30,0),0)) -> 0 | W56: =IF(U55="","",IF(U56="",SUM($W$42:W55),IF(U56=$C$21,V55,Z56-X56-Y56))) ->  | X56: =IF(U55="","",IF(U56="",SUM($X$42:X55),ROUND(((1+$C$24)^(AG56/30)-1)*V55,2))) ->  | Y56: =IF($C$23=0,0,IF(OR(Listas!$K$6=Listas!$L$3,Listas!$K$6=Listas!$L$4),0,IF($C$23="",0,IF(Listas!$D$5=Listas!$C$3,ROUND(IF(U56<=$C$21,IF(ROUND((V55/$T$120)*$C$23*AI56,2)<(1/$T$120),ROUND((1/$T$120),2),ROUND((V55/$T$120)*$C$23,2)*AI56),0),2),IF(Listas!$D$5=Listas!$C$2,ROUND(IF(U56<=$C$21,IF(ROUND(V55*$C$23*AI56,2)<1,1,ROUND(V55*$C$23,2)*AI56),0),2)))))) -> 0 | Z56: =IF(U55="","",IF(U56="",SUM($Z$42:Z55),IF(U56=$C$21,SUM(W56,X56,Y56,AQ56),IF(U56<$C$21,$C$34,0)))) ->  | AA56: =IF(U55="","",IF(U56="",SUM($AA$42:AA55),IF(U56<=$C$21,$C$17,0))) ->  | AB56: 0 | AE56: 0 | AG56: 0 | AH56: 0 | AI56: =IF(Listas!$H$21=Listas!$I$17,1,IF(U56<=$C$21,ROUND((EOMONTH(S56,0)-EOMONTH(S55,0))/30,0),0)) -> 0 | AL56: 00:00:00 | AP56: 0 | AQ56: 0
A57: =IF(IFERROR(VLOOKUP(C57,Listas!AT:AV,3,FALSE),0)=1,IF(WEEKDAY(C57+1)=7,C57+2,C57+1),C57) ->  | B57: 16 | C57: =IF(B57>$C$21,"",IF(Listas!$H$21=Listas!$I$17,IF(WEEKDAY(C56+$D$13)=1,C56+$D$13+1,C56+$D$13),IF(B57<=$C$21,IF((DATE(YEAR(C56),MONTH(C56)+1,DAY($C$14))-C56)>=27,IF(WEEKDAY(DATE(YEAR(C56),MONTH(C56)+1,DAY($C$14)))=1,DATE(YEAR(C56),MONTH(C56)+1,DAY($C$14)+1),DATE(YEAR(C56),MONTH(C56)+1,DAY($C$14))),DATE(YEAR(C56),MONTH(C56)+2,DAY($C$14))),""))) ->  | F57: =IF($C$23=0,0,IF(OR(Listas!$K$6=Listas!$L$3,Listas!$K$6=Listas!$L$4),0,IF($C$23="",0,IF(Listas!$D$5=Listas!$C$3,ROUND(IF(B57<=$C$21,IF(ROUND((D56/$T$120)*$C$23*Q57,2)<(1/$T$120),ROUND((1/$T$120),2),ROUND((D56/$T$120)*$C$23,2)*Q57),0),2),IF(Listas!$D$5=Listas!$C$2,ROUND(IF(B57<=$C$21,IF(ROUND(D56*$C$23*Q57,2)<1,1,ROUND(D56*$C$23,2)*Q57),0),2)))))) -> 0 | I57: 0 | J57: 0 | K57: 0 | L57: 0 | M57: 0 | N57: 0 | O57: 0 | P57: 0 | Q57: =IF(Listas!$H$21=Listas!$I$15,1,IF(B57<=$C$21,ROUND((EOMONTH(A57,0)-EOMONTH(A56,0))/30,0),0)) -> 0 | W57: =IF(U56="","",IF(U57="",SUM($W$42:W56),IF(U57=$C$21,V56,Z57-X57-Y57))) ->  | X57: =IF(U56="","",IF(U57="",SUM($X$42:X56),ROUND(((1+$C$24)^(AG57/30)-1)*V56,2))) ->  | Y57: =IF($C$23=0,0,IF(OR(Listas!$K$6=Listas!$L$3,Listas!$K$6=Listas!$L$4),0,IF($C$23="",0,IF(Listas!$D$5=Listas!$C$3,ROUND(IF(U57<=$C$21,IF(ROUND((V56/$T$120)*$C$23*AI57,2)<(1/$T$120),ROUND((1/$T$120),2),ROUND((V56/$T$120)*$C$23,2)*AI57),0),2),IF(Listas!$D$5=Listas!$C$2,ROUND(IF(U57<=$C$21,IF(ROUND(V56*$C$23*AI57,2)<1,1,ROUND(V56*$C$23,2)*AI57),0),2)))))) -> 0 | Z57: =IF(U56="","",IF(U57="",SUM($Z$42:Z56),IF(U57=$C$21,SUM(W57,X57,Y57,AQ57),IF(U57<$C$21,$C$34,0)))) ->  | AA57: =IF(U56="","",IF(U57="",SUM($AA$42:AA56),IF(U57<=$C$21,$C$17,0))) ->  | AB57: 0 | AE57: 0 | AG57: 0 | AH57: 0 | AI57: =IF(Listas!$H$21=Listas!$I$17,1,IF(U57<=$C$21,ROUND((EOMONTH(S57,0)-EOMONTH(S56,0))/30,0),0)) -> 0 | AL57: 00:00:00 | AP57: 0 | AQ57: 0
A58: =IF(IFERROR(VLOOKUP(C58,Listas!AT:AV,3,FALSE),0)=1,IF(WEEKDAY(C58+1)=7,C58+2,C58+1),C58) ->  | B58: 17 | C58: =IF(B58>$C$21,"",IF(Listas!$H$21=Listas!$I$17,IF(WEEKDAY(C57+$D$13)=1,C57+$D$13+1,C57+$D$13),IF(B58<=$C$21,IF((DATE(YEAR(C57),MONTH(C57)+1,DAY($C$14))-C57)>=27,IF(WEEKDAY(DATE(YEAR(C57),MONTH(C57)+1,DAY($C$14)))=1,DATE(YEAR(C57),MONTH(C57)+1,DAY($C$14)+1),DATE(YEAR(C57),MONTH(C57)+1,DAY($C$14))),DATE(YEAR(C57),MONTH(C57)+2,DAY($C$14))),""))) ->  | F58: =IF($C$23=0,0,IF(OR(Listas!$K$6=Listas!$L$3,Listas!$K$6=Listas!$L$4),0,IF($C$23="",0,IF(Listas!$D$5=Listas!$C$3,ROUND(IF(B58<=$C$21,IF(ROUND((D57/$T$120)*$C$23*Q58,2)<(1/$T$120),ROUND((1/$T$120),2),ROUND((D57/$T$120)*$C$23,2)*Q58),0),2),IF(Listas!$D$5=Listas!$C$2,ROUND(IF(B58<=$C$21,IF(ROUND(D57*$C$23*Q58,2)<1,1,ROUND(D57*$C$23,2)*Q58),0),2)))))) -> 0 | I58: 0 | J58: 0 | K58: 0 | L58: 0 | M58: 0 | N58: 0 | O58: 0 | P58: 0 | Q58: =IF(Listas!$H$21=Listas!$I$15,1,IF(B58<=$C$21,ROUND((EOMONTH(A58,0)-EOMONTH(A57,0))/30,0),0)) -> 0 | W58: =IF(U57="","",IF(U58="",SUM($W$42:W57),IF(U58=$C$21,V57,Z58-X58-Y58))) ->  | X58: =IF(U57="","",IF(U58="",SUM($X$42:X57),ROUND(((1+$C$24)^(AG58/30)-1)*V57,2))) ->  | Y58: =IF($C$23=0,0,IF(OR(Listas!$K$6=Listas!$L$3,Listas!$K$6=Listas!$L$4),0,IF($C$23="",0,IF(Listas!$D$5=Listas!$C$3,ROUND(IF(U58<=$C$21,IF(ROUND((V57/$T$120)*$C$23*AI58,2)<(1/$T$120),ROUND((1/$T$120),2),ROUND((V57/$T$120)*$C$23,2)*AI58),0),2),IF(Listas!$D$5=Listas!$C$2,ROUND(IF(U58<=$C$21,IF(ROUND(V57*$C$23*AI58,2)<1,1,ROUND(V57*$C$23,2)*AI58),0),2)))))) -> 0 | Z58: =IF(U57="","",IF(U58="",SUM($Z$42:Z57),IF(U58=$C$21,SUM(W58,X58,Y58,AQ58),IF(U58<$C$21,$C$34,0)))) ->  | AA58: =IF(U57="","",IF(U58="",SUM($AA$42:AA57),IF(U58<=$C$21,$C$17,0))) ->  | AB58: 0 | AE58: 0 | AG58: 0 | AH58: 0 | AI58: =IF(Listas!$H$21=Listas!$I$17,1,IF(U58<=$C$21,ROUND((EOMONTH(S58,0)-EOMONTH(S57,0))/30,0),0)) -> 0 | AL58: 00:00:00 | AP58: 0 | AQ58: 0
A59: =IF(IFERROR(VLOOKUP(C59,Listas!AT:AV,3,FALSE),0)=1,IF(WEEKDAY(C59+1)=7,C59+2,C59+1),C59) ->  | B59: 18 | C59: =IF(B59>$C$21,"",IF(Listas!$H$21=Listas!$I$17,IF(WEEKDAY(C58+$D$13)=1,C58+$D$13+1,C58+$D$13),IF(B59<=$C$21,IF((DATE(YEAR(C58),MONTH(C58)+1,DAY($C$14))-C58)>=27,IF(WEEKDAY(DATE(YEAR(C58),MONTH(C58)+1,DAY($C$14)))=1,DATE(YEAR(C58),MONTH(C58)+1,DAY($C$14)+1),DATE(YEAR(C58),MONTH(C58)+1,DAY($C$14))),DATE(YEAR(C58),MONTH(C58)+2,DAY($C$14))),""))) ->  | F59: =IF($C$23=0,0,IF(OR(Listas!$K$6=Listas!$L$3,Listas!$K$6=Listas!$L$4),0,IF($C$23="",0,IF(Listas!$D$5=Listas!$C$3,ROUND(IF(B59<=$C$21,IF(ROUND((D58/$T$120)*$C$23*Q59,2)<(1/$T$120),ROUND((1/$T$120),2),ROUND((D58/$T$120)*$C$23,2)*Q59),0),2),IF(Listas!$D$5=Listas!$C$2,ROUND(IF(B59<=$C$21,IF(ROUND(D58*$C$23*Q59,2)<1,1,ROUND(D58*$C$23,2)*Q59),0),2)))))) -> 0 | I59: 0 | J59: 0 | K59: 0 | L59: 0 | M59: 0 | N59: 0 | O59: 0 | P59: 0 | Q59: =IF(Listas!$H$21=Listas!$I$15,1,IF(B59<=$C$21,ROUND((EOMONTH(A59,0)-EOMONTH(A58,0))/30,0),0)) -> 0 | W59: =IF(U58="","",IF(U59="",SUM($W$42:W58),IF(U59=$C$21,V58,Z59-X59-Y59))) ->  | X59: =IF(U58="","",IF(U59="",SUM($X$42:X58),ROUND(((1+$C$24)^(AG59/30)-1)*V58,2))) ->  | Y59: =IF($C$23=0,0,IF(OR(Listas!$K$6=Listas!$L$3,Listas!$K$6=Listas!$L$4),0,IF($C$23="",0,IF(Listas!$D$5=Listas!$C$3,ROUND(IF(U59<=$C$21,IF(ROUND((V58/$T$120)*$C$23*AI59,2)<(1/$T$120),ROUND((1/$T$120),2),ROUND((V58/$T$120)*$C$23,2)*AI59),0),2),IF(Listas!$D$5=Listas!$C$2,ROUND(IF(U59<=$C$21,IF(ROUND(V58*$C$23*AI59,2)<1,1,ROUND(V58*$C$23,2)*AI59),0),2)))))) -> 0 | Z59: =IF(U58="","",IF(U59="",SUM($Z$42:Z58),IF(U59=$C$21,SUM(W59,X59,Y59,AQ59),IF(U59<$C$21,$C$34,0)))) ->  | AA59: =IF(U58="","",IF(U59="",SUM($AA$42:AA58),IF(U59<=$C$21,$C$17,0))) ->  | AB59: 0 | AE59: 0 | AG59: 0 | AH59: 0 | AI59: =IF(Listas!$H$21=Listas!$I$17,1,IF(U59<=$C$21,ROUND((EOMONTH(S59,0)-EOMONTH(S58,0))/30,0),0)) -> 0 | AL59: 00:00:00 | AP59: 0 | AQ59: 0
A60: =IF(IFERROR(VLOOKUP(C60,Listas!AT:AV,3,FALSE),0)=1,IF(WEEKDAY(C60+1)=7,C60+2,C60+1),C60) ->  | B60: 19 | C60: =IF(B60>$C$21,"",IF(Listas!$H$21=Listas!$I$17,IF(WEEKDAY(C59+$D$13)=1,C59+$D$13+1,C59+$D$13),IF(B60<=$C$21,IF((DATE(YEAR(C59),MONTH(C59)+1,DAY($C$14))-C59)>=27,IF(WEEKDAY(DATE(YEAR(C59),MONTH(C59)+1,DAY($C$14)))=1,DATE(YEAR(C59),MONTH(C59)+1,DAY($C$14)+1),DATE(YEAR(C59),MONTH(C59)+1,DAY($C$14))),DATE(YEAR(C59),MONTH(C59)+2,DAY($C$14))),""))) ->  | F60: =IF($C$23=0,0,IF(OR(Listas!$K$6=Listas!$L$3,Listas!$K$6=Listas!$L$4),0,IF($C$23="",0,IF(Listas!$D$5=Listas!$C$3,ROUND(IF(B60<=$C$21,IF(ROUND((D59/$T$120)*$C$23*Q60,2)<(1/$T$120),ROUND((1/$T$120),2),ROUND((D59/$T$120)*$C$23,2)*Q60),0),2),IF(Listas!$D$5=Listas!$C$2,ROUND(IF(B60<=$C$21,IF(ROUND(D59*$C$23*Q60,2)<1,1,ROUND(D59*$C$23,2)*Q60),0),2)))))) -> 0 | I60: 0 | J60: 0 | K60: 0 | L60: 0 | M60: 0 | N60: 0 | O60: 0 | P60: 0 | Q60: =IF(Listas!$H$21=Listas!$I$15,1,IF(B60<=$C$21,ROUND((EOMONTH(A60,0)-EOMONTH(A59,0))/30,0),0)) -> 0 | W60: =IF(U59="","",IF(U60="",SUM($W$42:W59),IF(U60=$C$21,V59,Z60-X60-Y60))) ->  | X60: =IF(U59="","",IF(U60="",SUM($X$42:X59),ROUND(((1+$C$24)^(AG60/30)-1)*V59,2))) ->  | Y60: =IF($C$23=0,0,IF(OR(Listas!$K$6=Listas!$L$3,Listas!$K$6=Listas!$L$4),0,IF($C$23="",0,IF(Listas!$D$5=Listas!$C$3,ROUND(IF(U60<=$C$21,IF(ROUND((V59/$T$120)*$C$23*AI60,2)<(1/$T$120),ROUND((1/$T$120),2),ROUND((V59/$T$120)*$C$23,2)*AI60),0),2),IF(Listas!$D$5=Listas!$C$2,ROUND(IF(U60<=$C$21,IF(ROUND(V59*$C$23*AI60,2)<1,1,ROUND(V59*$C$23,2)*AI60),0),2)))))) -> 0 | Z60: =IF(U59="","",IF(U60="",SUM($Z$42:Z59),IF(U60=$C$21,SUM(W60,X60,Y60,AQ60),IF(U60<$C$21,$C$34,0)))) ->  | AA60: =IF(U59="","",IF(U60="",SUM($AA$42:AA59),IF(U60<=$C$21,$C$17,0))) ->  | AB60: 0 | AE60: 0 | AG60: 0 | AH60: 0 | AI60: =IF(Listas!$H$21=Listas!$I$17,1,IF(U60<=$C$21,ROUND((EOMONTH(S60,0)-EOMONTH(S59,0))/30,0),0)) -> 0 | AL60: 00:00:00 | AP60: 0 | AQ60: 0
A61: =IF(IFERROR(VLOOKUP(C61,Listas!AT:AV,3,FALSE),0)=1,IF(WEEKDAY(C61+1)=7,C61+2,C61+1),C61) ->  | B61: 20 | C61: =IF(B61>$C$21,"",IF(Listas!$H$21=Listas!$I$17,IF(WEEKDAY(C60+$D$13)=1,C60+$D$13+1,C60+$D$13),IF(B61<=$C$21,IF((DATE(YEAR(C60),MONTH(C60)+1,DAY($C$14))-C60)>=27,IF(WEEKDAY(DATE(YEAR(C60),MONTH(C60)+1,DAY($C$14)))=1,DATE(YEAR(C60),MONTH(C60)+1,DAY($C$14)+1),DATE(YEAR(C60),MONTH(C60)+1,DAY($C$14))),DATE(YEAR(C60),MONTH(C60)+2,DAY($C$14))),""))) ->  | F61: =IF($C$23=0,0,IF(OR(Listas!$K$6=Listas!$L$3,Listas!$K$6=Listas!$L$4),0,IF($C$23="",0,IF(Listas!$D$5=Listas!$C$3,ROUND(IF(B61<=$C$21,IF(ROUND((D60/$T$120)*$C$23*Q61,2)<(1/$T$120),ROUND((1/$T$120),2),ROUND((D60/$T$120)*$C$23,2)*Q61),0),2),IF(Listas!$D$5=Listas!$C$2,ROUND(IF(B61<=$C$21,IF(ROUND(D60*$C$23*Q61,2)<1,1,ROUND(D60*$C$23,2)*Q61),0),2)))))) -> 0 | I61: 0 | J61: 0 | K61: 0 | L61: 0 | M61: 0 | N61: 0 | O61: 0 | P61: 0 | Q61: =IF(Listas!$H$21=Listas!$I$15,1,IF(B61<=$C$21,ROUND((EOMONTH(A61,0)-EOMONTH(A60,0))/30,0),0)) -> 0 | W61: =IF(U60="","",IF(U61="",SUM($W$42:W60),IF(U61=$C$21,V60,Z61-X61-Y61))) ->  | X61: =IF(U60="","",IF(U61="",SUM($X$42:X60),ROUND(((1+$C$24)^(AG61/30)-1)*V60,2))) ->  | Y61: =IF($C$23=0,0,IF(OR(Listas!$K$6=Listas!$L$3,Listas!$K$6=Listas!$L$4),0,IF($C$23="",0,IF(Listas!$D$5=Listas!$C$3,ROUND(IF(U61<=$C$21,IF(ROUND((V60/$T$120)*$C$23*AI61,2)<(1/$T$120),ROUND((1/$T$120),2),ROUND((V60/$T$120)*$C$23,2)*AI61),0),2),IF(Listas!$D$5=Listas!$C$2,ROUND(IF(U61<=$C$21,IF(ROUND(V60*$C$23*AI61,2)<1,1,ROUND(V60*$C$23,2)*AI61),0),2)))))) -> 0 | Z61: =IF(U60="","",IF(U61="",SUM($Z$42:Z60),IF(U61=$C$21,SUM(W61,X61,Y61,AQ61),IF(U61<$C$21,$C$34,0)))) ->  | AA61: =IF(U60="","",IF(U61="",SUM($AA$42:AA60),IF(U61<=$C$21,$C$17,0))) ->  | AB61: 0 | AE61: 0 | AG61: 0 | AH61: 0 | AI61: =IF(Listas!$H$21=Listas!$I$17,1,IF(U61<=$C$21,ROUND((EOMONTH(S61,0)-EOMONTH(S60,0))/30,0),0)) -> 0 | AL61: 00:00:00 | AP61: 0 | AQ61: 0
A62: =IF(IFERROR(VLOOKUP(C62,Listas!AT:AV,3,FALSE),0)=1,IF(WEEKDAY(C62+1)=7,C62+2,C62+1),C62) ->  | B62: 21 | C62: =IF(B62>$C$21,"",IF(Listas!$H$21=Listas!$I$17,IF(WEEKDAY(C61+$D$13)=1,C61+$D$13+1,C61+$D$13),IF(B62<=$C$21,IF((DATE(YEAR(C61),MONTH(C61)+1,DAY($C$14))-C61)>=27,IF(WEEKDAY(DATE(YEAR(C61),MONTH(C61)+1,DAY($C$14)))=1,DATE(YEAR(C61),MONTH(C61)+1,DAY($C$14)+1),DATE(YEAR(C61),MONTH(C61)+1,DAY($C$14))),DATE(YEAR(C61),MONTH(C61)+2,DAY($C$14))),""))) ->  | F62: =IF($C$23=0,0,IF(OR(Listas!$K$6=Listas!$L$3,Listas!$K$6=Listas!$L$4),0,IF($C$23="",0,IF(Listas!$D$5=Listas!$C$3,ROUND(IF(B62<=$C$21,IF(ROUND((D61/$T$120)*$C$23*Q62,2)<(1/$T$120),ROUND((1/$T$120),2),ROUND((D61/$T$120)*$C$23,2)*Q62),0),2),IF(Listas!$D$5=Listas!$C$2,ROUND(IF(B62<=$C$21,IF(ROUND(D61*$C$23*Q62,2)<1,1,ROUND(D61*$C$23,2)*Q62),0),2)))))) -> 0 | I62: 0 | J62: 0 | K62: 0 | L62: 0 | M62: 0 | N62: 0 | O62: 0 | P62: 0 | Q62: =IF(Listas!$H$21=Listas!$I$15,1,IF(B62<=$C$21,ROUND((EOMONTH(A62,0)-EOMONTH(A61,0))/30,0),0)) -> 0 | W62: =IF(U61="","",IF(U62="",SUM($W$42:W61),IF(U62=$C$21,V61,Z62-X62-Y62))) ->  | X62: =IF(U61="","",IF(U62="",SUM($X$42:X61),ROUND(((1+$C$24)^(AG62/30)-1)*V61,2))) ->  | Y62: =IF($C$23=0,0,IF(OR(Listas!$K$6=Listas!$L$3,Listas!$K$6=Listas!$L$4),0,IF($C$23="",0,IF(Listas!$D$5=Listas!$C$3,ROUND(IF(U62<=$C$21,IF(ROUND((V61/$T$120)*$C$23*AI62,2)<(1/$T$120),ROUND((1/$T$120),2),ROUND((V61/$T$120)*$C$23,2)*AI62),0),2),IF(Listas!$D$5=Listas!$C$2,ROUND(IF(U62<=$C$21,IF(ROUND(V61*$C$23*AI62,2)<1,1,ROUND(V61*$C$23,2)*AI62),0),2)))))) -> 0 | Z62: =IF(U61="","",IF(U62="",SUM($Z$42:Z61),IF(U62=$C$21,SUM(W62,X62,Y62,AQ62),IF(U62<$C$21,$C$34,0)))) ->  | AA62: =IF(U61="","",IF(U62="",SUM($AA$42:AA61),IF(U62<=$C$21,$C$17,0))) ->  | AB62: 0 | AE62: 0 | AG62: 0 | AH62: 0 | AI62: =IF(Listas!$H$21=Listas!$I$17,1,IF(U62<=$C$21,ROUND((EOMONTH(S62,0)-EOMONTH(S61,0))/30,0),0)) -> 0 | AL62: 00:00:00 | AP62: 0 | AQ62: 0
A63: =IF(IFERROR(VLOOKUP(C63,Listas!AT:AV,3,FALSE),0)=1,IF(WEEKDAY(C63+1)=7,C63+2,C63+1),C63) ->  | B63: 22 | C63: =IF(B63>$C$21,"",IF(Listas!$H$21=Listas!$I$17,IF(WEEKDAY(C62+$D$13)=1,C62+$D$13+1,C62+$D$13),IF(B63<=$C$21,IF((DATE(YEAR(C62),MONTH(C62)+1,DAY($C$14))-C62)>=27,IF(WEEKDAY(DATE(YEAR(C62),MONTH(C62)+1,DAY($C$14)))=1,DATE(YEAR(C62),MONTH(C62)+1,DAY($C$14)+1),DATE(YEAR(C62),MONTH(C62)+1,DAY($C$14))),DATE(YEAR(C62),MONTH(C62)+2,DAY($C$14))),""))) ->  | F63: =IF($C$23=0,0,IF(OR(Listas!$K$6=Listas!$L$3,Listas!$K$6=Listas!$L$4),0,IF($C$23="",0,IF(Listas!$D$5=Listas!$C$3,ROUND(IF(B63<=$C$21,IF(ROUND((D62/$T$120)*$C$23*Q63,2)<(1/$T$120),ROUND((1/$T$120),2),ROUND((D62/$T$120)*$C$23,2)*Q63),0),2),IF(Listas!$D$5=Listas!$C$2,ROUND(IF(B63<=$C$21,IF(ROUND(D62*$C$23*Q63,2)<1,1,ROUND(D62*$C$23,2)*Q63),0),2)))))) -> 0 | I63: 0 | J63: 0 | K63: 0 | L63: 0 | M63: 0 | N63: 0 | O63: 0 | P63: 0 | Q63: =IF(Listas!$H$21=Listas!$I$15,1,IF(B63<=$C$21,ROUND((EOMONTH(A63,0)-EOMONTH(A62,0))/30,0),0)) -> 0 | W63: =IF(U62="","",IF(U63="",SUM($W$42:W62),IF(U63=$C$21,V62,Z63-X63-Y63))) ->  | X63: =IF(U62="","",IF(U63="",SUM($X$42:X62),ROUND(((1+$C$24)^(AG63/30)-1)*V62,2))) ->  | Y63: =IF($C$23=0,0,IF(OR(Listas!$K$6=Listas!$L$3,Listas!$K$6=Listas!$L$4),0,IF($C$23="",0,IF(Listas!$D$5=Listas!$C$3,ROUND(IF(U63<=$C$21,IF(ROUND((V62/$T$120)*$C$23*AI63,2)<(1/$T$120),ROUND((1/$T$120),2),ROUND((V62/$T$120)*$C$23,2)*AI63),0),2),IF(Listas!$D$5=Listas!$C$2,ROUND(IF(U63<=$C$21,IF(ROUND(V62*$C$23*AI63,2)<1,1,ROUND(V62*$C$23,2)*AI63),0),2)))))) -> 0 | Z63: =IF(U62="","",IF(U63="",SUM($Z$42:Z62),IF(U63=$C$21,SUM(W63,X63,Y63,AQ63),IF(U63<$C$21,$C$34,0)))) ->  | AA63: =IF(U62="","",IF(U63="",SUM($AA$42:AA62),IF(U63<=$C$21,$C$17,0))) ->  | AB63: 0 | AE63: 0 | AG63: 0 | AH63: 0 | AI63: =IF(Listas!$H$21=Listas!$I$17,1,IF(U63<=$C$21,ROUND((EOMONTH(S63,0)-EOMONTH(S62,0))/30,0),0)) -> 0 | AL63: 00:00:00 | AP63: 0 | AQ63: 0
A64: =IF(IFERROR(VLOOKUP(C64,Listas!AT:AV,3,FALSE),0)=1,IF(WEEKDAY(C64+1)=7,C64+2,C64+1),C64) ->  | B64: 23 | C64: =IF(B64>$C$21,"",IF(Listas!$H$21=Listas!$I$17,IF(WEEKDAY(C63+$D$13)=1,C63+$D$13+1,C63+$D$13),IF(B64<=$C$21,IF((DATE(YEAR(C63),MONTH(C63)+1,DAY($C$14))-C63)>=27,IF(WEEKDAY(DATE(YEAR(C63),MONTH(C63)+1,DAY($C$14)))=1,DATE(YEAR(C63),MONTH(C63)+1,DAY($C$14)+1),DATE(YEAR(C63),MONTH(C63)+1,DAY($C$14))),DATE(YEAR(C63),MONTH(C63)+2,DAY($C$14))),""))) ->  | F64: =IF($C$23=0,0,IF(OR(Listas!$K$6=Listas!$L$3,Listas!$K$6=Listas!$L$4),0,IF($C$23="",0,IF(Listas!$D$5=Listas!$C$3,ROUND(IF(B64<=$C$21,IF(ROUND((D63/$T$120)*$C$23*Q64,2)<(1/$T$120),ROUND((1/$T$120),2),ROUND((D63/$T$120)*$C$23,2)*Q64),0),2),IF(Listas!$D$5=Listas!$C$2,ROUND(IF(B64<=$C$21,IF(ROUND(D63*$C$23*Q64,2)<1,1,ROUND(D63*$C$23,2)*Q64),0),2)))))) -> 0 | I64: 0 | J64: 0 | K64: 0 | L64: 0 | M64: 0 | N64: 0 | O64: 0 | P64: 0 | Q64: =IF(Listas!$H$21=Listas!$I$15,1,IF(B64<=$C$21,ROUND((EOMONTH(A64,0)-EOMONTH(A63,0))/30,0),0)) -> 0 | W64: =IF(U63="","",IF(U64="",SUM($W$42:W63),IF(U64=$C$21,V63,Z64-X64-Y64))) ->  | X64: =IF(U63="","",IF(U64="",SUM($X$42:X63),ROUND(((1+$C$24)^(AG64/30)-1)*V63,2))) ->  | Y64: =IF($C$23=0,0,IF(OR(Listas!$K$6=Listas!$L$3,Listas!$K$6=Listas!$L$4),0,IF($C$23="",0,IF(Listas!$D$5=Listas!$C$3,ROUND(IF(U64<=$C$21,IF(ROUND((V63/$T$120)*$C$23*AI64,2)<(1/$T$120),ROUND((1/$T$120),2),ROUND((V63/$T$120)*$C$23,2)*AI64),0),2),IF(Listas!$D$5=Listas!$C$2,ROUND(IF(U64<=$C$21,IF(ROUND(V63*$C$23*AI64,2)<1,1,ROUND(V63*$C$23,2)*AI64),0),2)))))) -> 0 | Z64: =IF(U63="","",IF(U64="",SUM($Z$42:Z63),IF(U64=$C$21,SUM(W64,X64,Y64,AQ64),IF(U64<$C$21,$C$34,0)))) ->  | AA64: =IF(U63="","",IF(U64="",SUM($AA$42:AA63),IF(U64<=$C$21,$C$17,0))) ->  | AB64: 0 | AE64: 0 | AG64: 0 | AH64: 0 | AI64: =IF(Listas!$H$21=Listas!$I$17,1,IF(U64<=$C$21,ROUND((EOMONTH(S64,0)-EOMONTH(S63,0))/30,0),0)) -> 0 | AL64: 00:00:00 | AP64: 0 | AQ64: 0
A65: =IF(IFERROR(VLOOKUP(C65,Listas!AT:AV,3,FALSE),0)=1,IF(WEEKDAY(C65+1)=7,C65+2,C65+1),C65) ->  | B65: 24 | C65: =IF(B65>$C$21,"",IF(Listas!$H$21=Listas!$I$17,IF(WEEKDAY(C64+$D$13)=1,C64+$D$13+1,C64+$D$13),IF(B65<=$C$21,IF((DATE(YEAR(C64),MONTH(C64)+1,DAY($C$14))-C64)>=27,IF(WEEKDAY(DATE(YEAR(C64),MONTH(C64)+1,DAY($C$14)))=1,DATE(YEAR(C64),MONTH(C64)+1,DAY($C$14)+1),DATE(YEAR(C64),MONTH(C64)+1,DAY($C$14))),DATE(YEAR(C64),MONTH(C64)+2,DAY($C$14))),""))) ->  | F65: =IF($C$23=0,0,IF(OR(Listas!$K$6=Listas!$L$3,Listas!$K$6=Listas!$L$4),0,IF($C$23="",0,IF(Listas!$D$5=Listas!$C$3,ROUND(IF(B65<=$C$21,IF(ROUND((D64/$T$120)*$C$23*Q65,2)<(1/$T$120),ROUND((1/$T$120),2),ROUND((D64/$T$120)*$C$23,2)*Q65),0),2),IF(Listas!$D$5=Listas!$C$2,ROUND(IF(B65<=$C$21,IF(ROUND(D64*$C$23*Q65,2)<1,1,ROUND(D64*$C$23,2)*Q65),0),2)))))) -> 0 | I65: 0 | J65: 0 | K65: 0 | L65: 0 | M65: 0 | N65: 0 | O65: 0 | P65: 0 | Q65: =IF(Listas!$H$21=Listas!$I$15,1,IF(B65<=$C$21,ROUND((EOMONTH(A65,0)-EOMONTH(A64,0))/30,0),0)) -> 0 | W65: =IF(U64="","",IF(U65="",SUM($W$42:W64),IF(U65=$C$21,V64,Z65-X65-Y65))) ->  | X65: =IF(U64="","",IF(U65="",SUM($X$42:X64),ROUND(((1+$C$24)^(AG65/30)-1)*V64,2))) ->  | Y65: =IF($C$23=0,0,IF(OR(Listas!$K$6=Listas!$L$3,Listas!$K$6=Listas!$L$4),0,IF($C$23="",0,IF(Listas!$D$5=Listas!$C$3,ROUND(IF(U65<=$C$21,IF(ROUND((V64/$T$120)*$C$23*AI65,2)<(1/$T$120),ROUND((1/$T$120),2),ROUND((V64/$T$120)*$C$23,2)*AI65),0),2),IF(Listas!$D$5=Listas!$C$2,ROUND(IF(U65<=$C$21,IF(ROUND(V64*$C$23*AI65,2)<1,1,ROUND(V64*$C$23,2)*AI65),0),2)))))) -> 0 | Z65: =IF(U64="","",IF(U65="",SUM($Z$42:Z64),IF(U65=$C$21,SUM(W65,X65,Y65,AQ65),IF(U65<$C$21,$C$34,0)))) ->  | AA65: =IF(U64="","",IF(U65="",SUM($AA$42:AA64),IF(U65<=$C$21,$C$17,0))) ->  | AB65: 0 | AE65: 0 | AG65: 0 | AH65: 0 | AI65: =IF(Listas!$H$21=Listas!$I$17,1,IF(U65<=$C$21,ROUND((EOMONTH(S65,0)-EOMONTH(S64,0))/30,0),0)) -> 0 | AL65: 00:00:00 | AP65: 0 | AQ65: 0
A66: =IF(IFERROR(VLOOKUP(C66,Listas!AT:AV,3,FALSE),0)=1,IF(WEEKDAY(C66+1)=7,C66+2,C66+1),C66) ->  | B66: 25 | C66: =IF(B66>$C$21,"",IF(Listas!$H$21=Listas!$I$17,IF(WEEKDAY(C65+$D$13)=1,C65+$D$13+1,C65+$D$13),IF(B66<=$C$21,IF((DATE(YEAR(C65),MONTH(C65)+1,DAY($C$14))-C65)>=27,IF(WEEKDAY(DATE(YEAR(C65),MONTH(C65)+1,DAY($C$14)))=1,DATE(YEAR(C65),MONTH(C65)+1,DAY($C$14)+1),DATE(YEAR(C65),MONTH(C65)+1,DAY($C$14))),DATE(YEAR(C65),MONTH(C65)+2,DAY($C$14))),""))) ->  | F66: =IF($C$23=0,0,IF(OR(Listas!$K$6=Listas!$L$3,Listas!$K$6=Listas!$L$4),0,IF($C$23="",0,IF(Listas!$D$5=Listas!$C$3,ROUND(IF(B66<=$C$21,IF(ROUND((D65/$T$120)*$C$23*Q66,2)<(1/$T$120),ROUND((1/$T$120),2),ROUND((D65/$T$120)*$C$23,2)*Q66),0),2),IF(Listas!$D$5=Listas!$C$2,ROUND(IF(B66<=$C$21,IF(ROUND(D65*$C$23*Q66,2)<1,1,ROUND(D65*$C$23,2)*Q66),0),2)))))) -> 0 | I66: 0 | J66: 0 | K66: 0 | L66: 0 | M66: 0 | N66: 0 | O66: 0 | P66: 0 | Q66: =IF(Listas!$H$21=Listas!$I$15,1,IF(B66<=$C$21,ROUND((EOMONTH(A66,0)-EOMONTH(A65,0))/30,0),0)) -> 0 | W66: =IF(U65="","",IF(U66="",SUM($W$42:W65),IF(U66=$C$21,V65,Z66-X66-Y66))) ->  | X66: =IF(U65="","",IF(U66="",SUM($X$42:X65),ROUND(((1+$C$24)^(AG66/30)-1)*V65,2))) ->  | Y66: =IF($C$23=0,0,IF(OR(Listas!$K$6=Listas!$L$3,Listas!$K$6=Listas!$L$4),0,IF($C$23="",0,IF(Listas!$D$5=Listas!$C$3,ROUND(IF(U66<=$C$21,IF(ROUND((V65/$T$120)*$C$23*AI66,2)<(1/$T$120),ROUND((1/$T$120),2),ROUND((V65/$T$120)*$C$23,2)*AI66),0),2),IF(Listas!$D$5=Listas!$C$2,ROUND(IF(U66<=$C$21,IF(ROUND(V65*$C$23*AI66,2)<1,1,ROUND(V65*$C$23,2)*AI66),0),2)))))) -> 0 | Z66: =IF(U65="","",IF(U66="",SUM($Z$42:Z65),IF(U66=$C$21,SUM(W66,X66,Y66,AQ66),IF(U66<$C$21,$C$34,0)))) ->  | AA66: =IF(U65="","",IF(U66="",SUM($AA$42:AA65),IF(U66<=$C$21,$C$17,0))) ->  | AB66: 0 | AE66: 0 | AG66: 0 | AH66: 0 | AI66: =IF(Listas!$H$21=Listas!$I$17,1,IF(U66<=$C$21,ROUND((EOMONTH(S66,0)-EOMONTH(S65,0))/30,0),0)) -> 0 | AL66: 00:00:00 | AP66: 0 | AQ66: 0
A67: =IF(IFERROR(VLOOKUP(C67,Listas!AT:AV,3,FALSE),0)=1,IF(WEEKDAY(C67+1)=7,C67+2,C67+1),C67) ->  | B67: 26 | C67: =IF(B67>$C$21,"",IF(Listas!$H$21=Listas!$I$17,IF(WEEKDAY(C66+$D$13)=1,C66+$D$13+1,C66+$D$13),IF(B67<=$C$21,IF((DATE(YEAR(C66),MONTH(C66)+1,DAY($C$14))-C66)>=27,IF(WEEKDAY(DATE(YEAR(C66),MONTH(C66)+1,DAY($C$14)))=1,DATE(YEAR(C66),MONTH(C66)+1,DAY($C$14)+1),DATE(YEAR(C66),MONTH(C66)+1,DAY($C$14))),DATE(YEAR(C66),MONTH(C66)+2,DAY($C$14))),""))) ->  | F67: =IF($C$23=0,0,IF(OR(Listas!$K$6=Listas!$L$3,Listas!$K$6=Listas!$L$4),0,IF($C$23="",0,IF(Listas!$D$5=Listas!$C$3,ROUND(IF(B67<=$C$21,IF(ROUND((D66/$T$120)*$C$23*Q67,2)<(1/$T$120),ROUND((1/$T$120),2),ROUND((D66/$T$120)*$C$23,2)*Q67),0),2),IF(Listas!$D$5=Listas!$C$2,ROUND(IF(B67<=$C$21,IF(ROUND(D66*$C$23*Q67,2)<1,1,ROUND(D66*$C$23,2)*Q67),0),2)))))) -> 0 | I67: 0 | J67: 0 | K67: 0 | L67: 0 | M67: 0 | N67: 0 | O67: 0 | P67: 0 | Q67: =IF(Listas!$H$21=Listas!$I$15,1,IF(B67<=$C$21,ROUND((EOMONTH(A67,0)-EOMONTH(A66,0))/30,0),0)) -> 0 | W67: =IF(U66="","",IF(U67="",SUM($W$42:W66),IF(U67=$C$21,V66,Z67-X67-Y67))) ->  | X67: =IF(U66="","",IF(U67="",SUM($X$42:X66),ROUND(((1+$C$24)^(AG67/30)-1)*V66,2))) ->  | Y67: =IF($C$23=0,0,IF(OR(Listas!$K$6=Listas!$L$3,Listas!$K$6=Listas!$L$4),0,IF($C$23="",0,IF(Listas!$D$5=Listas!$C$3,ROUND(IF(U67<=$C$21,IF(ROUND((V66/$T$120)*$C$23*AI67,2)<(1/$T$120),ROUND((1/$T$120),2),ROUND((V66/$T$120)*$C$23,2)*AI67),0),2),IF(Listas!$D$5=Listas!$C$2,ROUND(IF(U67<=$C$21,IF(ROUND(V66*$C$23*AI67,2)<1,1,ROUND(V66*$C$23,2)*AI67),0),2)))))) -> 0 | Z67: =IF(U66="","",IF(U67="",SUM($Z$42:Z66),IF(U67=$C$21,SUM(W67,X67,Y67,AQ67),IF(U67<$C$21,$C$34,0)))) ->  | AA67: =IF(U66="","",IF(U67="",SUM($AA$42:AA66),IF(U67<=$C$21,$C$17,0))) ->  | AB67: 0 | AE67: 0 | AG67: 0 | AH67: 0 | AI67: =IF(Listas!$H$21=Listas!$I$17,1,IF(U67<=$C$21,ROUND((EOMONTH(S67,0)-EOMONTH(S66,0))/30,0),0)) -> 0 | AL67: 00:00:00 | AP67: 0 | AQ67: 0
A68: =IF(IFERROR(VLOOKUP(C68,Listas!AT:AV,3,FALSE),0)=1,IF(WEEKDAY(C68+1)=7,C68+2,C68+1),C68) ->  | B68: 27 | C68: =IF(B68>$C$21,"",IF(Listas!$H$21=Listas!$I$17,IF(WEEKDAY(C67+$D$13)=1,C67+$D$13+1,C67+$D$13),IF(B68<=$C$21,IF((DATE(YEAR(C67),MONTH(C67)+1,DAY($C$14))-C67)>=27,IF(WEEKDAY(DATE(YEAR(C67),MONTH(C67)+1,DAY($C$14)))=1,DATE(YEAR(C67),MONTH(C67)+1,DAY($C$14)+1),DATE(YEAR(C67),MONTH(C67)+1,DAY($C$14))),DATE(YEAR(C67),MONTH(C67)+2,DAY($C$14))),""))) ->  | F68: =IF($C$23=0,0,IF(OR(Listas!$K$6=Listas!$L$3,Listas!$K$6=Listas!$L$4),0,IF($C$23="",0,IF(Listas!$D$5=Listas!$C$3,ROUND(IF(B68<=$C$21,IF(ROUND((D67/$T$120)*$C$23*Q68,2)<(1/$T$120),ROUND((1/$T$120),2),ROUND((D67/$T$120)*$C$23,2)*Q68),0),2),IF(Listas!$D$5=Listas!$C$2,ROUND(IF(B68<=$C$21,IF(ROUND(D67*$C$23*Q68,2)<1,1,ROUND(D67*$C$23,2)*Q68),0),2)))))) -> 0 | I68: 0 | J68: 0 | K68: 0 | L68: 0 | M68: 0 | N68: 0 | O68: 0 | P68: 0 | Q68: =IF(Listas!$H$21=Listas!$I$15,1,IF(B68<=$C$21,ROUND((EOMONTH(A68,0)-EOMONTH(A67,0))/30,0),0)) -> 0 | W68: =IF(U67="","",IF(U68="",SUM($W$42:W67),IF(U68=$C$21,V67,Z68-X68-Y68))) ->  | X68: =IF(U67="","",IF(U68="",SUM($X$42:X67),ROUND(((1+$C$24)^(AG68/30)-1)*V67,2))) ->  | Y68: =IF($C$23=0,0,IF(OR(Listas!$K$6=Listas!$L$3,Listas!$K$6=Listas!$L$4),0,IF($C$23="",0,IF(Listas!$D$5=Listas!$C$3,ROUND(IF(U68<=$C$21,IF(ROUND((V67/$T$120)*$C$23*AI68,2)<(1/$T$120),ROUND((1/$T$120),2),ROUND((V67/$T$120)*$C$23,2)*AI68),0),2),IF(Listas!$D$5=Listas!$C$2,ROUND(IF(U68<=$C$21,IF(ROUND(V67*$C$23*AI68,2)<1,1,ROUND(V67*$C$23,2)*AI68),0),2)))))) -> 0 | Z68: =IF(U67="","",IF(U68="",SUM($Z$42:Z67),IF(U68=$C$21,SUM(W68,X68,Y68,AQ68),IF(U68<$C$21,$C$34,0)))) ->  | AA68: =IF(U67="","",IF(U68="",SUM($AA$42:AA67),IF(U68<=$C$21,$C$17,0))) ->  | AB68: 0 | AE68: 0 | AG68: 0 | AH68: 0 | AI68: =IF(Listas!$H$21=Listas!$I$17,1,IF(U68<=$C$21,ROUND((EOMONTH(S68,0)-EOMONTH(S67,0))/30,0),0)) -> 0 | AL68: 00:00:00 | AP68: 0 | AQ68: 0
A69: =IF(IFERROR(VLOOKUP(C69,Listas!AT:AV,3,FALSE),0)=1,IF(WEEKDAY(C69+1)=7,C69+2,C69+1),C69) ->  | B69: 28 | C69: =IF(B69>$C$21,"",IF(Listas!$H$21=Listas!$I$17,IF(WEEKDAY(C68+$D$13)=1,C68+$D$13+1,C68+$D$13),IF(B69<=$C$21,IF((DATE(YEAR(C68),MONTH(C68)+1,DAY($C$14))-C68)>=27,IF(WEEKDAY(DATE(YEAR(C68),MONTH(C68)+1,DAY($C$14)))=1,DATE(YEAR(C68),MONTH(C68)+1,DAY($C$14)+1),DATE(YEAR(C68),MONTH(C68)+1,DAY($C$14))),DATE(YEAR(C68),MONTH(C68)+2,DAY($C$14))),""))) ->  | F69: =IF($C$23=0,0,IF(OR(Listas!$K$6=Listas!$L$3,Listas!$K$6=Listas!$L$4),0,IF($C$23="",0,IF(Listas!$D$5=Listas!$C$3,ROUND(IF(B69<=$C$21,IF(ROUND((D68/$T$120)*$C$23*Q69,2)<(1/$T$120),ROUND((1/$T$120),2),ROUND((D68/$T$120)*$C$23,2)*Q69),0),2),IF(Listas!$D$5=Listas!$C$2,ROUND(IF(B69<=$C$21,IF(ROUND(D68*$C$23*Q69,2)<1,1,ROUND(D68*$C$23,2)*Q69),0),2)))))) -> 0 | I69: 0 | J69: 0 | K69: 0 | L69: 0 | M69: 0 | N69: 0 | O69: 0 | P69: 0 | Q69: =IF(Listas!$H$21=Listas!$I$15,1,IF(B69<=$C$21,ROUND((EOMONTH(A69,0)-EOMONTH(A68,0))/30,0),0)) -> 0 | W69: =IF(U68="","",IF(U69="",SUM($W$42:W68),IF(U69=$C$21,V68,Z69-X69-Y69))) ->  | X69: =IF(U68="","",IF(U69="",SUM($X$42:X68),ROUND(((1+$C$24)^(AG69/30)-1)*V68,2))) ->  | Y69: =IF($C$23=0,0,IF(OR(Listas!$K$6=Listas!$L$3,Listas!$K$6=Listas!$L$4),0,IF($C$23="",0,IF(Listas!$D$5=Listas!$C$3,ROUND(IF(U69<=$C$21,IF(ROUND((V68/$T$120)*$C$23*AI69,2)<(1/$T$120),ROUND((1/$T$120),2),ROUND((V68/$T$120)*$C$23,2)*AI69),0),2),IF(Listas!$D$5=Listas!$C$2,ROUND(IF(U69<=$C$21,IF(ROUND(V68*$C$23*AI69,2)<1,1,ROUND(V68*$C$23,2)*AI69),0),2)))))) -> 0 | Z69: =IF(U68="","",IF(U69="",SUM($Z$42:Z68),IF(U69=$C$21,SUM(W69,X69,Y69,AQ69),IF(U69<$C$21,$C$34,0)))) ->  | AA69: =IF(U68="","",IF(U69="",SUM($AA$42:AA68),IF(U69<=$C$21,$C$17,0))) ->  | AB69: 0 | AE69: 0 | AG69: 0 | AH69: 0 | AI69: =IF(Listas!$H$21=Listas!$I$17,1,IF(U69<=$C$21,ROUND((EOMONTH(S69,0)-EOMONTH(S68,0))/30,0),0)) -> 0 | AL69: 00:00:00 | AP69: 0 | AQ69: 0
A70: =IF(IFERROR(VLOOKUP(C70,Listas!AT:AV,3,FALSE),0)=1,IF(WEEKDAY(C70+1)=7,C70+2,C70+1),C70) ->  | B70: 29 | C70: =IF(B70>$C$21,"",IF(Listas!$H$21=Listas!$I$17,IF(WEEKDAY(C69+$D$13)=1,C69+$D$13+1,C69+$D$13),IF(B70<=$C$21,IF((DATE(YEAR(C69),MONTH(C69)+1,DAY($C$14))-C69)>=27,IF(WEEKDAY(DATE(YEAR(C69),MONTH(C69)+1,DAY($C$14)))=1,DATE(YEAR(C69),MONTH(C69)+1,DAY($C$14)+1),DATE(YEAR(C69),MONTH(C69)+1,DAY($C$14))),DATE(YEAR(C69),MONTH(C69)+2,DAY($C$14))),""))) ->  | F70: =IF($C$23=0,0,IF(OR(Listas!$K$6=Listas!$L$3,Listas!$K$6=Listas!$L$4),0,IF($C$23="",0,IF(Listas!$D$5=Listas!$C$3,ROUND(IF(B70<=$C$21,IF(ROUND((D69/$T$120)*$C$23*Q70,2)<(1/$T$120),ROUND((1/$T$120),2),ROUND((D69/$T$120)*$C$23,2)*Q70),0),2),IF(Listas!$D$5=Listas!$C$2,ROUND(IF(B70<=$C$21,IF(ROUND(D69*$C$23*Q70,2)<1,1,ROUND(D69*$C$23,2)*Q70),0),2)))))) -> 0 | I70: 0 | J70: 0 | K70: 0 | L70: 0 | M70: 0 | N70: 0 | O70: 0 | P70: 0 | Q70: =IF(Listas!$H$21=Listas!$I$15,1,IF(B70<=$C$21,ROUND((EOMONTH(A70,0)-EOMONTH(A69,0))/30,0),0)) -> 0 | W70: =IF(U69="","",IF(U70="",SUM($W$42:W69),IF(U70=$C$21,V69,Z70-X70-Y70))) ->  | X70: =IF(U69="","",IF(U70="",SUM($X$42:X69),ROUND(((1+$C$24)^(AG70/30)-1)*V69,2))) ->  | Y70: =IF($C$23=0,0,IF(OR(Listas!$K$6=Listas!$L$3,Listas!$K$6=Listas!$L$4),0,IF($C$23="",0,IF(Listas!$D$5=Listas!$C$3,ROUND(IF(U70<=$C$21,IF(ROUND((V69/$T$120)*$C$23*AI70,2)<(1/$T$120),ROUND((1/$T$120),2),ROUND((V69/$T$120)*$C$23,2)*AI70),0),2),IF(Listas!$D$5=Listas!$C$2,ROUND(IF(U70<=$C$21,IF(ROUND(V69*$C$23*AI70,2)<1,1,ROUND(V69*$C$23,2)*AI70),0),2)))))) -> 0 | Z70: =IF(U69="","",IF(U70="",SUM($Z$42:Z69),IF(U70=$C$21,SUM(W70,X70,Y70,AQ70),IF(U70<$C$21,$C$34,0)))) ->  | AA70: =IF(U69="","",IF(U70="",SUM($AA$42:AA69),IF(U70<=$C$21,$C$17,0))) ->  | AB70: 0 | AE70: 0 | AG70: 0 | AH70: 0 | AI70: =IF(Listas!$H$21=Listas!$I$17,1,IF(U70<=$C$21,ROUND((EOMONTH(S70,0)-EOMONTH(S69,0))/30,0),0)) -> 0 | AL70: 00:00:00 | AP70: 0 | AQ70: 0
A71: =IF(IFERROR(VLOOKUP(C71,Listas!AT:AV,3,FALSE),0)=1,IF(WEEKDAY(C71+1)=7,C71+2,C71+1),C71) ->  | B71: 30 | C71: =IF(B71>$C$21,"",IF(Listas!$H$21=Listas!$I$17,IF(WEEKDAY(C70+$D$13)=1,C70+$D$13+1,C70+$D$13),IF(B71<=$C$21,IF((DATE(YEAR(C70),MONTH(C70)+1,DAY($C$14))-C70)>=27,IF(WEEKDAY(DATE(YEAR(C70),MONTH(C70)+1,DAY($C$14)))=1,DATE(YEAR(C70),MONTH(C70)+1,DAY($C$14)+1),DATE(YEAR(C70),MONTH(C70)+1,DAY($C$14))),DATE(YEAR(C70),MONTH(C70)+2,DAY($C$14))),""))) ->  | F71: =IF($C$23=0,0,IF(OR(Listas!$K$6=Listas!$L$3,Listas!$K$6=Listas!$L$4),0,IF($C$23="",0,IF(Listas!$D$5=Listas!$C$3,ROUND(IF(B71<=$C$21,IF(ROUND((D70/$T$120)*$C$23*Q71,2)<(1/$T$120),ROUND((1/$T$120),2),ROUND((D70/$T$120)*$C$23,2)*Q71),0),2),IF(Listas!$D$5=Listas!$C$2,ROUND(IF(B71<=$C$21,IF(ROUND(D70*$C$23*Q71,2)<1,1,ROUND(D70*$C$23,2)*Q71),0),2)))))) -> 0 | I71: 0 | J71: 0 | K71: 0 | L71: 0 | M71: 0 | N71: 0 | O71: 0 | P71: 0 | Q71: =IF(Listas!$H$21=Listas!$I$15,1,IF(B71<=$C$21,ROUND((EOMONTH(A71,0)-EOMONTH(A70,0))/30,0),0)) -> 0 | W71: =IF(U70="","",IF(U71="",SUM($W$42:W70),IF(U71=$C$21,V70,Z71-X71-Y71))) ->  | X71: =IF(U70="","",IF(U71="",SUM($X$42:X70),ROUND(((1+$C$24)^(AG71/30)-1)*V70,2))) ->  | Y71: =IF($C$23=0,0,IF(OR(Listas!$K$6=Listas!$L$3,Listas!$K$6=Listas!$L$4),0,IF($C$23="",0,IF(Listas!$D$5=Listas!$C$3,ROUND(IF(U71<=$C$21,IF(ROUND((V70/$T$120)*$C$23*AI71,2)<(1/$T$120),ROUND((1/$T$120),2),ROUND((V70/$T$120)*$C$23,2)*AI71),0),2),IF(Listas!$D$5=Listas!$C$2,ROUND(IF(U71<=$C$21,IF(ROUND(V70*$C$23*AI71,2)<1,1,ROUND(V70*$C$23,2)*AI71),0),2)))))) -> 0 | Z71: =IF(U70="","",IF(U71="",SUM($Z$42:Z70),IF(U71=$C$21,SUM(W71,X71,Y71,AQ71),IF(U71<$C$21,$C$34,0)))) ->  | AA71: =IF(U70="","",IF(U71="",SUM($AA$42:AA70),IF(U71<=$C$21,$C$17,0))) ->  | AB71: 0 | AE71: 0 | AG71: 0 | AH71: 0 | AI71: =IF(Listas!$H$21=Listas!$I$17,1,IF(U71<=$C$21,ROUND((EOMONTH(S71,0)-EOMONTH(S70,0))/30,0),0)) -> 0 | AL71: 00:00:00 | AP71: 0 | AQ71: 0
A72: =IF(IFERROR(VLOOKUP(C72,Listas!AT:AV,3,FALSE),0)=1,IF(WEEKDAY(C72+1)=7,C72+2,C72+1),C72) ->  | B72: 31 | C72: =IF(B72>$C$21,"",IF(Listas!$H$21=Listas!$I$17,IF(WEEKDAY(C71+$D$13)=1,C71+$D$13+1,C71+$D$13),IF(B72<=$C$21,IF((DATE(YEAR(C71),MONTH(C71)+1,DAY($C$14))-C71)>=27,IF(WEEKDAY(DATE(YEAR(C71),MONTH(C71)+1,DAY($C$14)))=1,DATE(YEAR(C71),MONTH(C71)+1,DAY($C$14)+1),DATE(YEAR(C71),MONTH(C71)+1,DAY($C$14))),DATE(YEAR(C71),MONTH(C71)+2,DAY($C$14))),""))) ->  | F72: =IF($C$23=0,0,IF(OR(Listas!$K$6=Listas!$L$3,Listas!$K$6=Listas!$L$4),0,IF($C$23="",0,IF(Listas!$D$5=Listas!$C$3,ROUND(IF(B72<=$C$21,IF(ROUND((D71/$T$120)*$C$23*Q72,2)<(1/$T$120),ROUND((1/$T$120),2),ROUND((D71/$T$120)*$C$23,2)*Q72),0),2),IF(Listas!$D$5=Listas!$C$2,ROUND(IF(B72<=$C$21,IF(ROUND(D71*$C$23*Q72,2)<1,1,ROUND(D71*$C$23,2)*Q72),0),2)))))) -> 0 | I72: 0 | J72: 0 | K72: 0 | L72: 0 | M72: 0 | N72: 0 | O72: 0 | P72: 0 | Q72: =IF(Listas!$H$21=Listas!$I$15,1,IF(B72<=$C$21,ROUND((EOMONTH(A72,0)-EOMONTH(A71,0))/30,0),0)) -> 0 | W72: =IF(U71="","",IF(U72="",SUM($W$42:W71),IF(U72=$C$21,V71,Z72-X72-Y72))) ->  | X72: =IF(U71="","",IF(U72="",SUM($X$42:X71),ROUND(((1+$C$24)^(AG72/30)-1)*V71,2))) ->  | Y72: =IF($C$23=0,0,IF(OR(Listas!$K$6=Listas!$L$3,Listas!$K$6=Listas!$L$4),0,IF($C$23="",0,IF(Listas!$D$5=Listas!$C$3,ROUND(IF(U72<=$C$21,IF(ROUND((V71/$T$120)*$C$23*AI72,2)<(1/$T$120),ROUND((1/$T$120),2),ROUND((V71/$T$120)*$C$23,2)*AI72),0),2),IF(Listas!$D$5=Listas!$C$2,ROUND(IF(U72<=$C$21,IF(ROUND(V71*$C$23*AI72,2)<1,1,ROUND(V71*$C$23,2)*AI72),0),2)))))) -> 0 | Z72: =IF(U71="","",IF(U72="",SUM($Z$42:Z71),IF(U72=$C$21,SUM(W72,X72,Y72,AQ72),IF(U72<$C$21,$C$34,0)))) ->  | AA72: =IF(U71="","",IF(U72="",SUM($AA$42:AA71),IF(U72<=$C$21,$C$17,0))) ->  | AB72: 0 | AE72: 0 | AG72: 0 | AH72: 0 | AI72: =IF(Listas!$H$21=Listas!$I$17,1,IF(U72<=$C$21,ROUND((EOMONTH(S72,0)-EOMONTH(S71,0))/30,0),0)) -> 0 | AL72: 00:00:00 | AP72: 0 | AQ72: 0
A73: =IF(IFERROR(VLOOKUP(C73,Listas!AT:AV,3,FALSE),0)=1,IF(WEEKDAY(C73+1)=7,C73+2,C73+1),C73) ->  | B73: 32 | C73: =IF(B73>$C$21,"",IF(Listas!$H$21=Listas!$I$17,IF(WEEKDAY(C72+$D$13)=1,C72+$D$13+1,C72+$D$13),IF(B73<=$C$21,IF((DATE(YEAR(C72),MONTH(C72)+1,DAY($C$14))-C72)>=27,IF(WEEKDAY(DATE(YEAR(C72),MONTH(C72)+1,DAY($C$14)))=1,DATE(YEAR(C72),MONTH(C72)+1,DAY($C$14)+1),DATE(YEAR(C72),MONTH(C72)+1,DAY($C$14))),DATE(YEAR(C72),MONTH(C72)+2,DAY($C$14))),""))) ->  | F73: =IF($C$23=0,0,IF(OR(Listas!$K$6=Listas!$L$3,Listas!$K$6=Listas!$L$4),0,IF($C$23="",0,IF(Listas!$D$5=Listas!$C$3,ROUND(IF(B73<=$C$21,IF(ROUND((D72/$T$120)*$C$23*Q73,2)<(1/$T$120),ROUND((1/$T$120),2),ROUND((D72/$T$120)*$C$23,2)*Q73),0),2),IF(Listas!$D$5=Listas!$C$2,ROUND(IF(B73<=$C$21,IF(ROUND(D72*$C$23*Q73,2)<1,1,ROUND(D72*$C$23,2)*Q73),0),2)))))) -> 0 | I73: 0 | J73: 0 | K73: 0 | L73: 0 | M73: 0 | N73: 0 | O73: 0 | P73: 0 | Q73: =IF(Listas!$H$21=Listas!$I$15,1,IF(B73<=$C$21,ROUND((EOMONTH(A73,0)-EOMONTH(A72,0))/30,0),0)) -> 0 | W73: =IF(U72="","",IF(U73="",SUM($W$42:W72),IF(U73=$C$21,V72,Z73-X73-Y73))) ->  | X73: =IF(U72="","",IF(U73="",SUM($X$42:X72),ROUND(((1+$C$24)^(AG73/30)-1)*V72,2))) ->  | Y73: =IF($C$23=0,0,IF(OR(Listas!$K$6=Listas!$L$3,Listas!$K$6=Listas!$L$4),0,IF($C$23="",0,IF(Listas!$D$5=Listas!$C$3,ROUND(IF(U73<=$C$21,IF(ROUND((V72/$T$120)*$C$23*AI73,2)<(1/$T$120),ROUND((1/$T$120),2),ROUND((V72/$T$120)*$C$23,2)*AI73),0),2),IF(Listas!$D$5=Listas!$C$2,ROUND(IF(U73<=$C$21,IF(ROUND(V72*$C$23*AI73,2)<1,1,ROUND(V72*$C$23,2)*AI73),0),2)))))) -> 0 | Z73: =IF(U72="","",IF(U73="",SUM($Z$42:Z72),IF(U73=$C$21,SUM(W73,X73,Y73,AQ73),IF(U73<$C$21,$C$34,0)))) ->  | AA73: =IF(U72="","",IF(U73="",SUM($AA$42:AA72),IF(U73<=$C$21,$C$17,0))) ->  | AB73: 0 | AE73: 0 | AG73: 0 | AH73: 0 | AI73: =IF(Listas!$H$21=Listas!$I$17,1,IF(U73<=$C$21,ROUND((EOMONTH(S73,0)-EOMONTH(S72,0))/30,0),0)) -> 0 | AL73: =IF(S73="",0,IF(S73="Total",0,S73)) -> 00:00:00 | AP73: 0 | AQ73: 0
A74: =IF(IFERROR(VLOOKUP(C74,Listas!AT:AV,3,FALSE),0)=1,IF(WEEKDAY(C74+1)=7,C74+2,C74+1),C74) ->  | B74: 33 | C74: =IF(B74>$C$21,"",IF(Listas!$H$21=Listas!$I$17,IF(WEEKDAY(C73+$D$13)=1,C73+$D$13+1,C73+$D$13),IF(B74<=$C$21,IF((DATE(YEAR(C73),MONTH(C73)+1,DAY($C$14))-C73)>=27,IF(WEEKDAY(DATE(YEAR(C73),MONTH(C73)+1,DAY($C$14)))=1,DATE(YEAR(C73),MONTH(C73)+1,DAY($C$14)+1),DATE(YEAR(C73),MONTH(C73)+1,DAY($C$14))),DATE(YEAR(C73),MONTH(C73)+2,DAY($C$14))),""))) ->  | F74: =IF($C$23=0,0,IF(OR(Listas!$K$6=Listas!$L$3,Listas!$K$6=Listas!$L$4),0,IF($C$23="",0,IF(Listas!$D$5=Listas!$C$3,ROUND(IF(B74<=$C$21,IF(ROUND((D73/$T$120)*$C$23*Q74,2)<(1/$T$120),ROUND((1/$T$120),2),ROUND((D73/$T$120)*$C$23,2)*Q74),0),2),IF(Listas!$D$5=Listas!$C$2,ROUND(IF(B74<=$C$21,IF(ROUND(D73*$C$23*Q74,2)<1,1,ROUND(D73*$C$23,2)*Q74),0),2)))))) -> 0 | I74: 0 | J74: 0 | K74: 0 | L74: 0 | M74: 0 | N74: 0 | O74: 0 | P74: 0 | Q74: =IF(Listas!$H$21=Listas!$I$15,1,IF(B74<=$C$21,ROUND((EOMONTH(A74,0)-EOMONTH(A73,0))/30,0),0)) -> 0 | W74: =IF(U73="","",IF(U74="",SUM($W$42:W73),IF(U74=$C$21,V73,Z74-X74-Y74))) ->  | X74: =IF(U73="","",IF(U74="",SUM($X$42:X73),ROUND(((1+$C$24)^(AG74/30)-1)*V73,2))) ->  | Y74: =IF($C$23=0,0,IF(OR(Listas!$K$6=Listas!$L$3,Listas!$K$6=Listas!$L$4),0,IF($C$23="",0,IF(Listas!$D$5=Listas!$C$3,ROUND(IF(U74<=$C$21,IF(ROUND((V73/$T$120)*$C$23*AI74,2)<(1/$T$120),ROUND((1/$T$120),2),ROUND((V73/$T$120)*$C$23,2)*AI74),0),2),IF(Listas!$D$5=Listas!$C$2,ROUND(IF(U74<=$C$21,IF(ROUND(V73*$C$23*AI74,2)<1,1,ROUND(V73*$C$23,2)*AI74),0),2)))))) -> 0 | Z74: =IF(U73="","",IF(U74="",SUM($Z$42:Z73),IF(U74=$C$21,SUM(W74,X74,Y74,AQ74),IF(U74<$C$21,$C$34,0)))) ->  | AA74: =IF(U73="","",IF(U74="",SUM($AA$42:AA73),IF(U74<=$C$21,$C$17,0))) ->  | AB74: =SUM(Z74:AA74) -> 0 | AE74: 0 | AG74: =IF(U74<=$C$21,S74-S73,0) -> 0 | AH74: 0 | AI74: =IF(Listas!$H$21=Listas!$I$17,1,IF(U74<=$C$21,ROUND((EOMONTH(S74,0)-EOMONTH(S73,0))/30,0),0)) -> 0 | AL74: 00:00:00 | AP74: =IF(S74="Total",0,IF(S74="",0,Z74)) -> 0 | AQ74: =IF(U74<=$C$21,$C$15,0) -> 0
A75: =IF(IFERROR(VLOOKUP(C75,Listas!AT:AV,3,FALSE),0)=1,IF(WEEKDAY(C75+1)=7,C75+2,C75+1),C75) ->  | B75: 34 | C75: =IF(B75>$C$21,"",IF(Listas!$H$21=Listas!$I$17,IF(WEEKDAY(C74+$D$13)=1,C74+$D$13+1,C74+$D$13),IF(B75<=$C$21,IF((DATE(YEAR(C74),MONTH(C74)+1,DAY($C$14))-C74)>=27,IF(WEEKDAY(DATE(YEAR(C74),MONTH(C74)+1,DAY($C$14)))=1,DATE(YEAR(C74),MONTH(C74)+1,DAY($C$14)+1),DATE(YEAR(C74),MONTH(C74)+1,DAY($C$14))),DATE(YEAR(C74),MONTH(C74)+2,DAY($C$14))),""))) ->  | F75: =IF($C$23=0,0,IF(OR(Listas!$K$6=Listas!$L$3,Listas!$K$6=Listas!$L$4),0,IF($C$23="",0,IF(Listas!$D$5=Listas!$C$3,ROUND(IF(B75<=$C$21,IF(ROUND((D74/$T$120)*$C$23*Q75,2)<(1/$T$120),ROUND((1/$T$120),2),ROUND((D74/$T$120)*$C$23,2)*Q75),0),2),IF(Listas!$D$5=Listas!$C$2,ROUND(IF(B75<=$C$21,IF(ROUND(D74*$C$23*Q75,2)<1,1,ROUND(D74*$C$23,2)*Q75),0),2)))))) -> 0 | I75: 0 | J75: 0 | K75: 0 | L75: 0 | M75: 0 | N75: 0 | O75: 0 | P75: 0 | Q75: =IF(Listas!$H$21=Listas!$I$15,1,IF(B75<=$C$21,ROUND((EOMONTH(A75,0)-EOMONTH(A74,0))/30,0),0)) -> 0 | W75: =IF(U74="","",IF(U75="",SUM($W$42:W74),IF(U75=$C$21,V74,Z75-X75-Y75))) ->  | X75: =IF(U74="","",IF(U75="",SUM($X$42:X74),ROUND(((1+$C$24)^(AG75/30)-1)*V74,2))) ->  | Y75: =IF($C$23=0,0,IF(OR(Listas!$K$6=Listas!$L$3,Listas!$K$6=Listas!$L$4),0,IF($C$23="",0,IF(Listas!$D$5=Listas!$C$3,ROUND(IF(U75<=$C$21,IF(ROUND((V74/$T$120)*$C$23*AI75,2)<(1/$T$120),ROUND((1/$T$120),2),ROUND((V74/$T$120)*$C$23,2)*AI75),0),2),IF(Listas!$D$5=Listas!$C$2,ROUND(IF(U75<=$C$21,IF(ROUND(V74*$C$23*AI75,2)<1,1,ROUND(V74*$C$23,2)*AI75),0),2)))))) -> 0 | Z75: =IF(U74="","",IF(U75="",SUM($Z$42:Z74),IF(U75=$C$21,SUM(W75,X75,Y75,AQ75),IF(U75<$C$21,$C$34,0)))) ->  | AA75: =IF(U74="","",IF(U75="",SUM($AA$42:AA74),IF(U75<=$C$21,$C$17,0))) ->  | AB75: 0 | AE75: 0 | AG75: 0 | AH75: 0 | AI75: =IF(Listas!$H$21=Listas!$I$17,1,IF(U75<=$C$21,ROUND((EOMONTH(S75,0)-EOMONTH(S74,0))/30,0),0)) -> 0 | AL75: 00:00:00 | AP75: 0 | AQ75: 0
A76: =IF(IFERROR(VLOOKUP(C76,Listas!AT:AV,3,FALSE),0)=1,IF(WEEKDAY(C76+1)=7,C76+2,C76+1),C76) ->  | B76: 35 | C76: =IF(B76>$C$21,"",IF(Listas!$H$21=Listas!$I$17,IF(WEEKDAY(C75+$D$13)=1,C75+$D$13+1,C75+$D$13),IF(B76<=$C$21,IF((DATE(YEAR(C75),MONTH(C75)+1,DAY($C$14))-C75)>=27,IF(WEEKDAY(DATE(YEAR(C75),MONTH(C75)+1,DAY($C$14)))=1,DATE(YEAR(C75),MONTH(C75)+1,DAY($C$14)+1),DATE(YEAR(C75),MONTH(C75)+1,DAY($C$14))),DATE(YEAR(C75),MONTH(C75)+2,DAY($C$14))),""))) ->  | F76: =IF($C$23=0,0,IF(OR(Listas!$K$6=Listas!$L$3,Listas!$K$6=Listas!$L$4),0,IF($C$23="",0,IF(Listas!$D$5=Listas!$C$3,ROUND(IF(B76<=$C$21,IF(ROUND((D75/$T$120)*$C$23*Q76,2)<(1/$T$120),ROUND((1/$T$120),2),ROUND((D75/$T$120)*$C$23,2)*Q76),0),2),IF(Listas!$D$5=Listas!$C$2,ROUND(IF(B76<=$C$21,IF(ROUND(D75*$C$23*Q76,2)<1,1,ROUND(D75*$C$23,2)*Q76),0),2)))))) -> 0 | I76: 0 | J76: 0 | K76: 0 | L76: 0 | M76: 0 | N76: 0 | O76: 0 | P76: 0 | Q76: =IF(Listas!$H$21=Listas!$I$15,1,IF(B76<=$C$21,ROUND((EOMONTH(A76,0)-EOMONTH(A75,0))/30,0),0)) -> 0 | W76: =IF(U75="","",IF(U76="",SUM($W$42:W75),IF(U76=$C$21,V75,Z76-X76-Y76))) ->  | X76: =IF(U75="","",IF(U76="",SUM($X$42:X75),ROUND(((1+$C$24)^(AG76/30)-1)*V75,2))) ->  | Y76: =IF($C$23=0,0,IF(OR(Listas!$K$6=Listas!$L$3,Listas!$K$6=Listas!$L$4),0,IF($C$23="",0,IF(Listas!$D$5=Listas!$C$3,ROUND(IF(U76<=$C$21,IF(ROUND((V75/$T$120)*$C$23*AI76,2)<(1/$T$120),ROUND((1/$T$120),2),ROUND((V75/$T$120)*$C$23,2)*AI76),0),2),IF(Listas!$D$5=Listas!$C$2,ROUND(IF(U76<=$C$21,IF(ROUND(V75*$C$23*AI76,2)<1,1,ROUND(V75*$C$23,2)*AI76),0),2)))))) -> 0 | Z76: =IF(U75="","",IF(U76="",SUM($Z$42:Z75),IF(U76=$C$21,SUM(W76,X76,Y76,AQ76),IF(U76<$C$21,$C$34,0)))) ->  | AA76: =IF(U75="","",IF(U76="",SUM($AA$42:AA75),IF(U76<=$C$21,$C$17,0))) ->  | AB76: 0 | AE76: 0 | AG76: 0 | AH76: 0 | AI76: =IF(Listas!$H$21=Listas!$I$17,1,IF(U76<=$C$21,ROUND((EOMONTH(S76,0)-EOMONTH(S75,0))/30,0),0)) -> 0 | AL76: 00:00:00 | AP76: 0 | AQ76: 0
A77: =IF(IFERROR(VLOOKUP(C77,Listas!AT:AV,3,FALSE),0)=1,IF(WEEKDAY(C77+1)=7,C77+2,C77+1),C77) ->  | B77: 36 | C77: =IF(B77>$C$21,"",IF(Listas!$H$21=Listas!$I$17,IF(WEEKDAY(C76+$D$13)=1,C76+$D$13+1,C76+$D$13),IF(B77<=$C$21,IF((DATE(YEAR(C76),MONTH(C76)+1,DAY($C$14))-C76)>=27,IF(WEEKDAY(DATE(YEAR(C76),MONTH(C76)+1,DAY($C$14)))=1,DATE(YEAR(C76),MONTH(C76)+1,DAY($C$14)+1),DATE(YEAR(C76),MONTH(C76)+1,DAY($C$14))),DATE(YEAR(C76),MONTH(C76)+2,DAY($C$14))),""))) ->  | F77: =IF($C$23=0,0,IF(OR(Listas!$K$6=Listas!$L$3,Listas!$K$6=Listas!$L$4),0,IF($C$23="",0,IF(Listas!$D$5=Listas!$C$3,ROUND(IF(B77<=$C$21,IF(ROUND((D76/$T$120)*$C$23*Q77,2)<(1/$T$120),ROUND((1/$T$120),2),ROUND((D76/$T$120)*$C$23,2)*Q77),0),2),IF(Listas!$D$5=Listas!$C$2,ROUND(IF(B77<=$C$21,IF(ROUND(D76*$C$23*Q77,2)<1,1,ROUND(D76*$C$23,2)*Q77),0),2)))))) -> 0 | I77: 0 | J77: 0 | K77: 0 | L77: 0 | M77: 0 | N77: 0 | O77: 0 | P77: 0 | Q77: =IF(Listas!$H$21=Listas!$I$15,1,IF(B77<=$C$21,ROUND((EOMONTH(A77,0)-EOMONTH(A76,0))/30,0),0)) -> 0 | W77: =IF(U76="","",IF(U77="",SUM($W$42:W76),IF(U77=$C$21,V76,Z77-X77-Y77))) ->  | X77: =IF(U76="","",IF(U77="",SUM($X$42:X76),ROUND(((1+$C$24)^(AG77/30)-1)*V76,2))) ->  | Y77: =IF($C$23=0,0,IF(OR(Listas!$K$6=Listas!$L$3,Listas!$K$6=Listas!$L$4),0,IF($C$23="",0,IF(Listas!$D$5=Listas!$C$3,ROUND(IF(U77<=$C$21,IF(ROUND((V76/$T$120)*$C$23*AI77,2)<(1/$T$120),ROUND((1/$T$120),2),ROUND((V76/$T$120)*$C$23,2)*AI77),0),2),IF(Listas!$D$5=Listas!$C$2,ROUND(IF(U77<=$C$21,IF(ROUND(V76*$C$23*AI77,2)<1,1,ROUND(V76*$C$23,2)*AI77),0),2)))))) -> 0 | Z77: =IF(U76="","",IF(U77="",SUM($Z$42:Z76),IF(U77=$C$21,SUM(W77,X77,Y77,AQ77),IF(U77<$C$21,$C$34,0)))) ->  | AA77: =IF(U76="","",IF(U77="",SUM($AA$42:AA76),IF(U77<=$C$21,$C$17,0))) ->  | AB77: 0 | AE77: 0 | AG77: 0 | AH77: 0 | AI77: =IF(Listas!$H$21=Listas!$I$17,1,IF(U77<=$C$21,ROUND((EOMONTH(S77,0)-EOMONTH(S76,0))/30,0),0)) -> 0 | AL77: 00:00:00 | AP77: 0 | AQ77: 0
A78: =IF(IFERROR(VLOOKUP(C78,Listas!AT:AV,3,FALSE),0)=1,IF(WEEKDAY(C78+1)=7,C78+2,C78+1),C78) ->  | B78: 37 | C78: =IF(B78>$C$21,"",IF(Listas!$H$21=Listas!$I$17,IF(WEEKDAY(C77+$D$13)=1,C77+$D$13+1,C77+$D$13),IF(B78<=$C$21,IF((DATE(YEAR(C77),MONTH(C77)+1,DAY($C$14))-C77)>=27,IF(WEEKDAY(DATE(YEAR(C77),MONTH(C77)+1,DAY($C$14)))=1,DATE(YEAR(C77),MONTH(C77)+1,DAY($C$14)+1),DATE(YEAR(C77),MONTH(C77)+1,DAY($C$14))),DATE(YEAR(C77),MONTH(C77)+2,DAY($C$14))),""))) ->  | F78: =IF($C$23=0,0,IF(OR(Listas!$K$6=Listas!$L$3,Listas!$K$6=Listas!$L$4),0,IF($C$23="",0,IF(Listas!$D$5=Listas!$C$3,ROUND(IF(B78<=$C$21,IF(ROUND((D77/$T$120)*$C$23*Q78,2)<(1/$T$120),ROUND((1/$T$120),2),ROUND((D77/$T$120)*$C$23,2)*Q78),0),2),IF(Listas!$D$5=Listas!$C$2,ROUND(IF(B78<=$C$21,IF(ROUND(D77*$C$23*Q78,2)<1,1,ROUND(D77*$C$23,2)*Q78),0),2)))))) -> 0 | I78: 0 | J78: 0 | K78: 0 | L78: 0 | M78: 0 | N78: 0 | O78: 0 | P78: 0 | Q78: =IF(Listas!$H$21=Listas!$I$15,1,IF(B78<=$C$21,ROUND((EOMONTH(A78,0)-EOMONTH(A77,0))/30,0),0)) -> 0 | W78: =IF(U77="","",IF(U78="",SUM($W$42:W77),IF(U78=$C$21,V77,Z78-X78-Y78))) ->  | X78: =IF(U77="","",IF(U78="",SUM($X$42:X77),ROUND(((1+$C$24)^(AG78/30)-1)*V77,2))) ->  | Y78: =IF($C$23=0,0,IF(OR(Listas!$K$6=Listas!$L$3,Listas!$K$6=Listas!$L$4),0,IF($C$23="",0,IF(Listas!$D$5=Listas!$C$3,ROUND(IF(U78<=$C$21,IF(ROUND((V77/$T$120)*$C$23*AI78,2)<(1/$T$120),ROUND((1/$T$120),2),ROUND((V77/$T$120)*$C$23,2)*AI78),0),2),IF(Listas!$D$5=Listas!$C$2,ROUND(IF(U78<=$C$21,IF(ROUND(V77*$C$23*AI78,2)<1,1,ROUND(V77*$C$23,2)*AI78),0),2)))))) -> 0 | Z78: =IF(U77="","",IF(U78="",SUM($Z$42:Z77),IF(U78=$C$21,SUM(W78,X78,Y78,AQ78),IF(U78<$C$21,$C$34,0)))) ->  | AA78: =IF(U77="","",IF(U78="",SUM($AA$42:AA77),IF(U78<=$C$21,$C$17,0))) ->  | AB78: 0 | AE78: 0 | AG78: 0 | AH78: 0 | AI78: =IF(Listas!$H$21=Listas!$I$17,1,IF(U78<=$C$21,ROUND((EOMONTH(S78,0)-EOMONTH(S77,0))/30,0),0)) -> 0 | AL78: 00:00:00 | AP78: 0 | AQ78: 0
A79: =IF(IFERROR(VLOOKUP(C79,Listas!AT:AV,3,FALSE),0)=1,IF(WEEKDAY(C79+1)=7,C79+2,C79+1),C79) ->  | B79: 38 | C79: =IF(B79>$C$21,"",IF(Listas!$H$21=Listas!$I$17,IF(WEEKDAY(C78+$D$13)=1,C78+$D$13+1,C78+$D$13),IF(B79<=$C$21,IF((DATE(YEAR(C78),MONTH(C78)+1,DAY($C$14))-C78)>=27,IF(WEEKDAY(DATE(YEAR(C78),MONTH(C78)+1,DAY($C$14)))=1,DATE(YEAR(C78),MONTH(C78)+1,DAY($C$14)+1),DATE(YEAR(C78),MONTH(C78)+1,DAY($C$14))),DATE(YEAR(C78),MONTH(C78)+2,DAY($C$14))),""))) ->  | F79: =IF($C$23=0,0,IF(OR(Listas!$K$6=Listas!$L$3,Listas!$K$6=Listas!$L$4),0,IF($C$23="",0,IF(Listas!$D$5=Listas!$C$3,ROUND(IF(B79<=$C$21,IF(ROUND((D78/$T$120)*$C$23*Q79,2)<(1/$T$120),ROUND((1/$T$120),2),ROUND((D78/$T$120)*$C$23,2)*Q79),0),2),IF(Listas!$D$5=Listas!$C$2,ROUND(IF(B79<=$C$21,IF(ROUND(D78*$C$23*Q79,2)<1,1,ROUND(D78*$C$23,2)*Q79),0),2)))))) -> 0 | I79: 0 | J79: 0 | K79: 0 | L79: 0 | M79: 0 | N79: 0 | O79: 0 | P79: 0 | Q79: =IF(Listas!$H$21=Listas!$I$15,1,IF(B79<=$C$21,ROUND((EOMONTH(A79,0)-EOMONTH(A78,0))/30,0),0)) -> 0 | W79: =IF(U78="","",IF(U79="",SUM($W$42:W78),IF(U79=$C$21,V78,Z79-X79-Y79))) ->  | X79: =IF(U78="","",IF(U79="",SUM($X$42:X78),ROUND(((1+$C$24)^(AG79/30)-1)*V78,2))) ->  | Y79: =IF($C$23=0,0,IF(OR(Listas!$K$6=Listas!$L$3,Listas!$K$6=Listas!$L$4),0,IF($C$23="",0,IF(Listas!$D$5=Listas!$C$3,ROUND(IF(U79<=$C$21,IF(ROUND((V78/$T$120)*$C$23*AI79,2)<(1/$T$120),ROUND((1/$T$120),2),ROUND((V78/$T$120)*$C$23,2)*AI79),0),2),IF(Listas!$D$5=Listas!$C$2,ROUND(IF(U79<=$C$21,IF(ROUND(V78*$C$23*AI79,2)<1,1,ROUND(V78*$C$23,2)*AI79),0),2)))))) -> 0 | Z79: =IF(U78="","",IF(U79="",SUM($Z$42:Z78),IF(U79=$C$21,SUM(W79,X79,Y79,AQ79),IF(U79<$C$21,$C$34,0)))) ->  | AA79: =IF(U78="","",IF(U79="",SUM($AA$42:AA78),IF(U79<=$C$21,$C$17,0))) ->  | AB79: 0 | AE79: 0 | AG79: 0 | AH79: 0 | AI79: =IF(Listas!$H$21=Listas!$I$17,1,IF(U79<=$C$21,ROUND((EOMONTH(S79,0)-EOMONTH(S78,0))/30,0),0)) -> 0 | AL79: 00:00:00 | AP79: 0 | AQ79: 0
A80: =IF(IFERROR(VLOOKUP(C80,Listas!AT:AV,3,FALSE),0)=1,IF(WEEKDAY(C80+1)=7,C80+2,C80+1),C80) ->  | B80: 39 | C80: =IF(B80>$C$21,"",IF(Listas!$H$21=Listas!$I$17,IF(WEEKDAY(C79+$D$13)=1,C79+$D$13+1,C79+$D$13),IF(B80<=$C$21,IF((DATE(YEAR(C79),MONTH(C79)+1,DAY($C$14))-C79)>=27,IF(WEEKDAY(DATE(YEAR(C79),MONTH(C79)+1,DAY($C$14)))=1,DATE(YEAR(C79),MONTH(C79)+1,DAY($C$14)+1),DATE(YEAR(C79),MONTH(C79)+1,DAY($C$14))),DATE(YEAR(C79),MONTH(C79)+2,DAY($C$14))),""))) ->  | F80: =IF($C$23=0,0,IF(OR(Listas!$K$6=Listas!$L$3,Listas!$K$6=Listas!$L$4),0,IF($C$23="",0,IF(Listas!$D$5=Listas!$C$3,ROUND(IF(B80<=$C$21,IF(ROUND((D79/$T$120)*$C$23*Q80,2)<(1/$T$120),ROUND((1/$T$120),2),ROUND((D79/$T$120)*$C$23,2)*Q80),0),2),IF(Listas!$D$5=Listas!$C$2,ROUND(IF(B80<=$C$21,IF(ROUND(D79*$C$23*Q80,2)<1,1,ROUND(D79*$C$23,2)*Q80),0),2)))))) -> 0 | I80: 0 | J80: 0 | K80: 0 | L80: 0 | M80: 0 | N80: 0 | O80: 0 | P80: 0 | Q80: =IF(Listas!$H$21=Listas!$I$15,1,IF(B80<=$C$21,ROUND((EOMONTH(A80,0)-EOMONTH(A79,0))/30,0),0)) -> 0 | W80: =IF(U79="","",IF(U80="",SUM($W$42:W79),IF(U80=$C$21,V79,Z80-X80-Y80))) ->  | X80: =IF(U79="","",IF(U80="",SUM($X$42:X79),ROUND(((1+$C$24)^(AG80/30)-1)*V79,2))) ->  | Y80: =IF($C$23=0,0,IF(OR(Listas!$K$6=Listas!$L$3,Listas!$K$6=Listas!$L$4),0,IF($C$23="",0,IF(Listas!$D$5=Listas!$C$3,ROUND(IF(U80<=$C$21,IF(ROUND((V79/$T$120)*$C$23*AI80,2)<(1/$T$120),ROUND((1/$T$120),2),ROUND((V79/$T$120)*$C$23,2)*AI80),0),2),IF(Listas!$D$5=Listas!$C$2,ROUND(IF(U80<=$C$21,IF(ROUND(V79*$C$23*AI80,2)<1,1,ROUND(V79*$C$23,2)*AI80),0),2)))))) -> 0 | Z80: =IF(U79="","",IF(U80="",SUM($Z$42:Z79),IF(U80=$C$21,SUM(W80,X80,Y80,AQ80),IF(U80<$C$21,$C$34,0)))) ->  | AA80: =IF(U79="","",IF(U80="",SUM($AA$42:AA79),IF(U80<=$C$21,$C$17,0))) ->  | AB80: 0 | AE80: 0 | AG80: 0 | AH80: 0 | AI80: =IF(Listas!$H$21=Listas!$I$17,1,IF(U80<=$C$21,ROUND((EOMONTH(S80,0)-EOMONTH(S79,0))/30,0),0)) -> 0 | AL80: 00:00:00 | AP80: 0 | AQ80: 0
A81: =IF(IFERROR(VLOOKUP(C81,Listas!AT:AV,3,FALSE),0)=1,IF(WEEKDAY(C81+1)=7,C81+2,C81+1),C81) ->  | B81: 40 | C81: =IF(B81>$C$21,"",IF(Listas!$H$21=Listas!$I$17,IF(WEEKDAY(C80+$D$13)=1,C80+$D$13+1,C80+$D$13),IF(B81<=$C$21,IF((DATE(YEAR(C80),MONTH(C80)+1,DAY($C$14))-C80)>=27,IF(WEEKDAY(DATE(YEAR(C80),MONTH(C80)+1,DAY($C$14)))=1,DATE(YEAR(C80),MONTH(C80)+1,DAY($C$14)+1),DATE(YEAR(C80),MONTH(C80)+1,DAY($C$14))),DATE(YEAR(C80),MONTH(C80)+2,DAY($C$14))),""))) ->  | F81: =IF($C$23=0,0,IF(OR(Listas!$K$6=Listas!$L$3,Listas!$K$6=Listas!$L$4),0,IF($C$23="",0,IF(Listas!$D$5=Listas!$C$3,ROUND(IF(B81<=$C$21,IF(ROUND((D80/$T$120)*$C$23*Q81,2)<(1/$T$120),ROUND((1/$T$120),2),ROUND((D80/$T$120)*$C$23,2)*Q81),0),2),IF(Listas!$D$5=Listas!$C$2,ROUND(IF(B81<=$C$21,IF(ROUND(D80*$C$23*Q81,2)<1,1,ROUND(D80*$C$23,2)*Q81),0),2)))))) -> 0 | I81: 0 | J81: 0 | K81: 0 | L81: 0 | M81: 0 | N81: 0 | O81: 0 | P81: 0 | Q81: =IF(Listas!$H$21=Listas!$I$15,1,IF(B81<=$C$21,ROUND((EOMONTH(A81,0)-EOMONTH(A80,0))/30,0),0)) -> 0 | W81: =IF(U80="","",IF(U81="",SUM($W$42:W80),IF(U81=$C$21,V80,Z81-X81-Y81))) ->  | X81: =IF(U80="","",IF(U81="",SUM($X$42:X80),ROUND(((1+$C$24)^(AG81/30)-1)*V80,2))) ->  | Y81: =IF($C$23=0,0,IF(OR(Listas!$K$6=Listas!$L$3,Listas!$K$6=Listas!$L$4),0,IF($C$23="",0,IF(Listas!$D$5=Listas!$C$3,ROUND(IF(U81<=$C$21,IF(ROUND((V80/$T$120)*$C$23*AI81,2)<(1/$T$120),ROUND((1/$T$120),2),ROUND((V80/$T$120)*$C$23,2)*AI81),0),2),IF(Listas!$D$5=Listas!$C$2,ROUND(IF(U81<=$C$21,IF(ROUND(V80*$C$23*AI81,2)<1,1,ROUND(V80*$C$23,2)*AI81),0),2)))))) -> 0 | Z81: =IF(U80="","",IF(U81="",SUM($Z$42:Z80),IF(U81=$C$21,SUM(W81,X81,Y81,AQ81),IF(U81<$C$21,$C$34,0)))) ->  | AA81: =IF(U80="","",IF(U81="",SUM($AA$42:AA80),IF(U81<=$C$21,$C$17,0))) ->  | AB81: 0 | AE81: 0 | AG81: 0 | AH81: 0 | AI81: =IF(Listas!$H$21=Listas!$I$17,1,IF(U81<=$C$21,ROUND((EOMONTH(S81,0)-EOMONTH(S80,0))/30,0),0)) -> 0 | AL81: 00:00:00 | AP81: 0 | AQ81: 0
A82: =IF(IFERROR(VLOOKUP(C82,Listas!AT:AV,3,FALSE),0)=1,IF(WEEKDAY(C82+1)=7,C82+2,C82+1),C82) ->  | B82: 41 | C82: =IF(B82>$C$21,"",IF(Listas!$H$21=Listas!$I$17,IF(WEEKDAY(C81+$D$13)=1,C81+$D$13+1,C81+$D$13),IF(B82<=$C$21,IF((DATE(YEAR(C81),MONTH(C81)+1,DAY($C$14))-C81)>=27,IF(WEEKDAY(DATE(YEAR(C81),MONTH(C81)+1,DAY($C$14)))=1,DATE(YEAR(C81),MONTH(C81)+1,DAY($C$14)+1),DATE(YEAR(C81),MONTH(C81)+1,DAY($C$14))),DATE(YEAR(C81),MONTH(C81)+2,DAY($C$14))),""))) ->  | F82: =IF($C$23=0,0,IF(OR(Listas!$K$6=Listas!$L$3,Listas!$K$6=Listas!$L$4),0,IF($C$23="",0,IF(Listas!$D$5=Listas!$C$3,ROUND(IF(B82<=$C$21,IF(ROUND((D81/$T$120)*$C$23*Q82,2)<(1/$T$120),ROUND((1/$T$120),2),ROUND((D81/$T$120)*$C$23,2)*Q82),0),2),IF(Listas!$D$5=Listas!$C$2,ROUND(IF(B82<=$C$21,IF(ROUND(D81*$C$23*Q82,2)<1,1,ROUND(D81*$C$23,2)*Q82),0),2)))))) -> 0 | I82: 0 | J82: 0 | K82: 0 | L82: 0 | M82: 0 | N82: 0 | O82: 0 | P82: 0 | Q82: =IF(Listas!$H$21=Listas!$I$15,1,IF(B82<=$C$21,ROUND((EOMONTH(A82,0)-EOMONTH(A81,0))/30,0),0)) -> 0 | W82: =IF(U81="","",IF(U82="",SUM($W$42:W81),IF(U82=$C$21,V81,Z82-X82-Y82))) ->  | X82: =IF(U81="","",IF(U82="",SUM($X$42:X81),ROUND(((1+$C$24)^(AG82/30)-1)*V81,2))) ->  | Y82: =IF($C$23=0,0,IF(OR(Listas!$K$6=Listas!$L$3,Listas!$K$6=Listas!$L$4),0,IF($C$23="",0,IF(Listas!$D$5=Listas!$C$3,ROUND(IF(U82<=$C$21,IF(ROUND((V81/$T$120)*$C$23*AI82,2)<(1/$T$120),ROUND((1/$T$120),2),ROUND((V81/$T$120)*$C$23,2)*AI82),0),2),IF(Listas!$D$5=Listas!$C$2,ROUND(IF(U82<=$C$21,IF(ROUND(V81*$C$23*AI82,2)<1,1,ROUND(V81*$C$23,2)*AI82),0),2)))))) -> 0 | Z82: =IF(U81="","",IF(U82="",SUM($Z$42:Z81),IF(U82=$C$21,SUM(W82,X82,Y82,AQ82),IF(U82<$C$21,$C$34,0)))) ->  | AA82: =IF(U81="","",IF(U82="",SUM($AA$42:AA81),IF(U82<=$C$21,$C$17,0))) ->  | AB82: 0 | AE82: 0 | AG82: 0 | AH82: 0 | AI82: =IF(Listas!$H$21=Listas!$I$17,1,IF(U82<=$C$21,ROUND((EOMONTH(S82,0)-EOMONTH(S81,0))/30,0),0)) -> 0 | AL82: 00:00:00 | AP82: 0 | AQ82: 0
A83: =IF(IFERROR(VLOOKUP(C83,Listas!AT:AV,3,FALSE),0)=1,IF(WEEKDAY(C83+1)=7,C83+2,C83+1),C83) ->  | B83: 42 | C83: =IF(B83>$C$21,"",IF(Listas!$H$21=Listas!$I$17,IF(WEEKDAY(C82+$D$13)=1,C82+$D$13+1,C82+$D$13),IF(B83<=$C$21,IF((DATE(YEAR(C82),MONTH(C82)+1,DAY($C$14))-C82)>=27,IF(WEEKDAY(DATE(YEAR(C82),MONTH(C82)+1,DAY($C$14)))=1,DATE(YEAR(C82),MONTH(C82)+1,DAY($C$14)+1),DATE(YEAR(C82),MONTH(C82)+1,DAY($C$14))),DATE(YEAR(C82),MONTH(C82)+2,DAY($C$14))),""))) ->  | F83: =IF($C$23=0,0,IF(OR(Listas!$K$6=Listas!$L$3,Listas!$K$6=Listas!$L$4),0,IF($C$23="",0,IF(Listas!$D$5=Listas!$C$3,ROUND(IF(B83<=$C$21,IF(ROUND((D82/$T$120)*$C$23*Q83,2)<(1/$T$120),ROUND((1/$T$120),2),ROUND((D82/$T$120)*$C$23,2)*Q83),0),2),IF(Listas!$D$5=Listas!$C$2,ROUND(IF(B83<=$C$21,IF(ROUND(D82*$C$23*Q83,2)<1,1,ROUND(D82*$C$23,2)*Q83),0),2)))))) -> 0 | I83: 0 | J83: 0 | K83: 0 | L83: 0 | M83: 0 | N83: 0 | O83: 0 | P83: 0 | Q83: =IF(Listas!$H$21=Listas!$I$15,1,IF(B83<=$C$21,ROUND((EOMONTH(A83,0)-EOMONTH(A82,0))/30,0),0)) -> 0 | W83: =IF(U82="","",IF(U83="",SUM($W$42:W82),IF(U83=$C$21,V82,Z83-X83-Y83))) ->  | X83: =IF(U82="","",IF(U83="",SUM($X$42:X82),ROUND(((1+$C$24)^(AG83/30)-1)*V82,2))) ->  | Y83: =IF($C$23=0,0,IF(OR(Listas!$K$6=Listas!$L$3,Listas!$K$6=Listas!$L$4),0,IF($C$23="",0,IF(Listas!$D$5=Listas!$C$3,ROUND(IF(U83<=$C$21,IF(ROUND((V82/$T$120)*$C$23*AI83,2)<(1/$T$120),ROUND((1/$T$120),2),ROUND((V82/$T$120)*$C$23,2)*AI83),0),2),IF(Listas!$D$5=Listas!$C$2,ROUND(IF(U83<=$C$21,IF(ROUND(V82*$C$23*AI83,2)<1,1,ROUND(V82*$C$23,2)*AI83),0),2)))))) -> 0 | Z83: =IF(U82="","",IF(U83="",SUM($Z$42:Z82),IF(U83=$C$21,SUM(W83,X83,Y83,AQ83),IF(U83<$C$21,$C$34,0)))) ->  | AA83: =IF(U82="","",IF(U83="",SUM($AA$42:AA82),IF(U83<=$C$21,$C$17,0))) ->  | AB83: 0 | AE83: 0 | AG83: 0 | AH83: 0 | AI83: =IF(Listas!$H$21=Listas!$I$17,1,IF(U83<=$C$21,ROUND((EOMONTH(S83,0)-EOMONTH(S82,0))/30,0),0)) -> 0 | AL83: 00:00:00 | AP83: 0 | AQ83: 0
A84: =IF(IFERROR(VLOOKUP(C84,Listas!AT:AV,3,FALSE),0)=1,IF(WEEKDAY(C84+1)=7,C84+2,C84+1),C84) ->  | B84: 43 | C84: =IF(B84>$C$21,"",IF(Listas!$H$21=Listas!$I$17,IF(WEEKDAY(C83+$D$13)=1,C83+$D$13+1,C83+$D$13),IF(B84<=$C$21,IF((DATE(YEAR(C83),MONTH(C83)+1,DAY($C$14))-C83)>=27,IF(WEEKDAY(DATE(YEAR(C83),MONTH(C83)+1,DAY($C$14)))=1,DATE(YEAR(C83),MONTH(C83)+1,DAY($C$14)+1),DATE(YEAR(C83),MONTH(C83)+1,DAY($C$14))),DATE(YEAR(C83),MONTH(C83)+2,DAY($C$14))),""))) ->  | F84: =IF($C$23=0,0,IF(OR(Listas!$K$6=Listas!$L$3,Listas!$K$6=Listas!$L$4),0,IF($C$23="",0,IF(Listas!$D$5=Listas!$C$3,ROUND(IF(B84<=$C$21,IF(ROUND((D83/$T$120)*$C$23*Q84,2)<(1/$T$120),ROUND((1/$T$120),2),ROUND((D83/$T$120)*$C$23,2)*Q84),0),2),IF(Listas!$D$5=Listas!$C$2,ROUND(IF(B84<=$C$21,IF(ROUND(D83*$C$23*Q84,2)<1,1,ROUND(D83*$C$23,2)*Q84),0),2)))))) -> 0 | I84: 0 | J84: 0 | K84: 0 | L84: 0 | M84: 0 | N84: 0 | O84: 0 | P84: 0 | Q84: =IF(Listas!$H$21=Listas!$I$15,1,IF(B84<=$C$21,ROUND((EOMONTH(A84,0)-EOMONTH(A83,0))/30,0),0)) -> 0 | W84: =IF(U83="","",IF(U84="",SUM($W$42:W83),IF(U84=$C$21,V83,Z84-X84-Y84))) ->  | X84: =IF(U83="","",IF(U84="",SUM($X$42:X83),ROUND(((1+$C$24)^(AG84/30)-1)*V83,2))) ->  | Y84: =IF($C$23=0,0,IF(OR(Listas!$K$6=Listas!$L$3,Listas!$K$6=Listas!$L$4),0,IF($C$23="",0,IF(Listas!$D$5=Listas!$C$3,ROUND(IF(U84<=$C$21,IF(ROUND((V83/$T$120)*$C$23*AI84,2)<(1/$T$120),ROUND((1/$T$120),2),ROUND((V83/$T$120)*$C$23,2)*AI84),0),2),IF(Listas!$D$5=Listas!$C$2,ROUND(IF(U84<=$C$21,IF(ROUND(V83*$C$23*AI84,2)<1,1,ROUND(V83*$C$23,2)*AI84),0),2)))))) -> 0 | Z84: =IF(U83="","",IF(U84="",SUM($Z$42:Z83),IF(U84=$C$21,SUM(W84,X84,Y84,AQ84),IF(U84<$C$21,$C$34,0)))) ->  | AA84: =IF(U83="","",IF(U84="",SUM($AA$42:AA83),IF(U84<=$C$21,$C$17,0))) ->  | AB84: 0 | AE84: 0 | AG84: 0 | AH84: 0 | AI84: =IF(Listas!$H$21=Listas!$I$17,1,IF(U84<=$C$21,ROUND((EOMONTH(S84,0)-EOMONTH(S83,0))/30,0),0)) -> 0 | AL84: 00:00:00 | AP84: 0 | AQ84: 0
A85: =IF(IFERROR(VLOOKUP(C85,Listas!AT:AV,3,FALSE),0)=1,IF(WEEKDAY(C85+1)=7,C85+2,C85+1),C85) ->  | B85: 44 | C85: =IF(B85>$C$21,"",IF(Listas!$H$21=Listas!$I$17,IF(WEEKDAY(C84+$D$13)=1,C84+$D$13+1,C84+$D$13),IF(B85<=$C$21,IF((DATE(YEAR(C84),MONTH(C84)+1,DAY($C$14))-C84)>=27,IF(WEEKDAY(DATE(YEAR(C84),MONTH(C84)+1,DAY($C$14)))=1,DATE(YEAR(C84),MONTH(C84)+1,DAY($C$14)+1),DATE(YEAR(C84),MONTH(C84)+1,DAY($C$14))),DATE(YEAR(C84),MONTH(C84)+2,DAY($C$14))),""))) ->  | F85: =IF($C$23=0,0,IF(OR(Listas!$K$6=Listas!$L$3,Listas!$K$6=Listas!$L$4),0,IF($C$23="",0,IF(Listas!$D$5=Listas!$C$3,ROUND(IF(B85<=$C$21,IF(ROUND((D84/$T$120)*$C$23*Q85,2)<(1/$T$120),ROUND((1/$T$120),2),ROUND((D84/$T$120)*$C$23,2)*Q85),0),2),IF(Listas!$D$5=Listas!$C$2,ROUND(IF(B85<=$C$21,IF(ROUND(D84*$C$23*Q85,2)<1,1,ROUND(D84*$C$23,2)*Q85),0),2)))))) -> 0 | I85: 0 | J85: 0 | K85: 0 | L85: 0 | M85: 0 | N85: 0 | O85: 0 | P85: 0 | Q85: =IF(Listas!$H$21=Listas!$I$15,1,IF(B85<=$C$21,ROUND((EOMONTH(A85,0)-EOMONTH(A84,0))/30,0),0)) -> 0 | W85: =IF(U84="","",IF(U85="",SUM($W$42:W84),IF(U85=$C$21,V84,Z85-X85-Y85))) ->  | X85: =IF(U84="","",IF(U85="",SUM($X$42:X84),ROUND(((1+$C$24)^(AG85/30)-1)*V84,2))) ->  | Y85: =IF($C$23=0,0,IF(OR(Listas!$K$6=Listas!$L$3,Listas!$K$6=Listas!$L$4),0,IF($C$23="",0,IF(Listas!$D$5=Listas!$C$3,ROUND(IF(U85<=$C$21,IF(ROUND((V84/$T$120)*$C$23*AI85,2)<(1/$T$120),ROUND((1/$T$120),2),ROUND((V84/$T$120)*$C$23,2)*AI85),0),2),IF(Listas!$D$5=Listas!$C$2,ROUND(IF(U85<=$C$21,IF(ROUND(V84*$C$23*AI85,2)<1,1,ROUND(V84*$C$23,2)*AI85),0),2)))))) -> 0 | Z85: =IF(U84="","",IF(U85="",SUM($Z$42:Z84),IF(U85=$C$21,SUM(W85,X85,Y85,AQ85),IF(U85<$C$21,$C$34,0)))) ->  | AA85: =IF(U84="","",IF(U85="",SUM($AA$42:AA84),IF(U85<=$C$21,$C$17,0))) ->  | AB85: 0 | AD85: =S85 ->  | AE85: =IF(S85<>"",1,0) -> 0 | AG85: 0 | AH85: 0 | AI85: =IF(Listas!$H$21=Listas!$I$17,1,IF(U85<=$C$21,ROUND((EOMONTH(S85,0)-EOMONTH(S84,0))/30,0),0)) -> 0 | AL85: 00:00:00 | AP85: 0 | AQ85: 0
A86: =IF(IFERROR(VLOOKUP(C86,Listas!AT:AV,3,FALSE),0)=1,IF(WEEKDAY(C86+1)=7,C86+2,C86+1),C86) ->  | B86: 45 | C86: =IF(B86>$C$21,"",IF(Listas!$H$21=Listas!$I$17,IF(WEEKDAY(C85+$D$13)=1,C85+$D$13+1,C85+$D$13),IF(B86<=$C$21,IF((DATE(YEAR(C85),MONTH(C85)+1,DAY($C$14))-C85)>=27,IF(WEEKDAY(DATE(YEAR(C85),MONTH(C85)+1,DAY($C$14)))=1,DATE(YEAR(C85),MONTH(C85)+1,DAY($C$14)+1),DATE(YEAR(C85),MONTH(C85)+1,DAY($C$14))),DATE(YEAR(C85),MONTH(C85)+2,DAY($C$14))),""))) ->  | F86: =IF($C$23=0,0,IF(OR(Listas!$K$6=Listas!$L$3,Listas!$K$6=Listas!$L$4),0,IF($C$23="",0,IF(Listas!$D$5=Listas!$C$3,ROUND(IF(B86<=$C$21,IF(ROUND((D85/$T$120)*$C$23*Q86,2)<(1/$T$120),ROUND((1/$T$120),2),ROUND((D85/$T$120)*$C$23,2)*Q86),0),2),IF(Listas!$D$5=Listas!$C$2,ROUND(IF(B86<=$C$21,IF(ROUND(D85*$C$23*Q86,2)<1,1,ROUND(D85*$C$23,2)*Q86),0),2)))))) -> 0 | I86: 0 | J86: 0 | K86: 0 | L86: 0 | M86: 0 | N86: 0 | O86: 0 | P86: 0 | Q86: =IF(Listas!$H$21=Listas!$I$15,1,IF(B86<=$C$21,ROUND((EOMONTH(A86,0)-EOMONTH(A85,0))/30,0),0)) -> 0 | W86: =IF(U85="","",IF(U86="",SUM($W$42:W85),IF(U86=$C$21,V85,Z86-X86-Y86))) ->  | X86: =IF(U85="","",IF(U86="",SUM($X$42:X85),ROUND(((1+$C$24)^(AG86/30)-1)*V85,2))) ->  | Y86: =IF($C$23=0,0,IF(OR(Listas!$K$6=Listas!$L$3,Listas!$K$6=Listas!$L$4),0,IF($C$23="",0,IF(Listas!$D$5=Listas!$C$3,ROUND(IF(U86<=$C$21,IF(ROUND((V85/$T$120)*$C$23*AI86,2)<(1/$T$120),ROUND((1/$T$120),2),ROUND((V85/$T$120)*$C$23,2)*AI86),0),2),IF(Listas!$D$5=Listas!$C$2,ROUND(IF(U86<=$C$21,IF(ROUND(V85*$C$23*AI86,2)<1,1,ROUND(V85*$C$23,2)*AI86),0),2)))))) -> 0 | Z86: =IF(U85="","",IF(U86="",SUM($Z$42:Z85),IF(U86=$C$21,SUM(W86,X86,Y86,AQ86),IF(U86<$C$21,$C$34,0)))) ->  | AA86: =IF(U85="","",IF(U86="",SUM($AA$42:AA85),IF(U86<=$C$21,$C$17,0))) ->  | AB86: 0 | AE86: 0 | AG86: 0 | AH86: 0 | AI86: =IF(Listas!$H$21=Listas!$I$17,1,IF(U86<=$C$21,ROUND((EOMONTH(S86,0)-EOMONTH(S85,0))/30,0),0)) -> 0 | AL86: 00:00:00 | AP86: 0 | AQ86: 0
A87: =IF(IFERROR(VLOOKUP(C87,Listas!AT:AV,3,FALSE),0)=1,IF(WEEKDAY(C87+1)=7,C87+2,C87+1),C87) ->  | B87: 46 | C87: =IF(B87>$C$21,"",IF(Listas!$H$21=Listas!$I$17,IF(WEEKDAY(C86+$D$13)=1,C86+$D$13+1,C86+$D$13),IF(B87<=$C$21,IF((DATE(YEAR(C86),MONTH(C86)+1,DAY($C$14))-C86)>=27,IF(WEEKDAY(DATE(YEAR(C86),MONTH(C86)+1,DAY($C$14)))=1,DATE(YEAR(C86),MONTH(C86)+1,DAY($C$14)+1),DATE(YEAR(C86),MONTH(C86)+1,DAY($C$14))),DATE(YEAR(C86),MONTH(C86)+2,DAY($C$14))),""))) ->  | F87: =IF($C$23=0,0,IF(OR(Listas!$K$6=Listas!$L$3,Listas!$K$6=Listas!$L$4),0,IF($C$23="",0,IF(Listas!$D$5=Listas!$C$3,ROUND(IF(B87<=$C$21,IF(ROUND((D86/$T$120)*$C$23*Q87,2)<(1/$T$120),ROUND((1/$T$120),2),ROUND((D86/$T$120)*$C$23,2)*Q87),0),2),IF(Listas!$D$5=Listas!$C$2,ROUND(IF(B87<=$C$21,IF(ROUND(D86*$C$23*Q87,2)<1,1,ROUND(D86*$C$23,2)*Q87),0),2)))))) -> 0 | I87: 0 | J87: 0 | K87: 0 | L87: 0 | M87: 0 | N87: 0 | O87: 0 | P87: 0 | Q87: =IF(Listas!$H$21=Listas!$I$15,1,IF(B87<=$C$21,ROUND((EOMONTH(A87,0)-EOMONTH(A86,0))/30,0),0)) -> 0 | W87: =IF(U86="","",IF(U87="",SUM($W$42:W86),IF(U87=$C$21,V86,Z87-X87-Y87))) ->  | X87: =IF(U86="","",IF(U87="",SUM($X$42:X86),ROUND(((1+$C$24)^(AG87/30)-1)*V86,2))) ->  | Y87: =IF($C$23=0,0,IF(OR(Listas!$K$6=Listas!$L$3,Listas!$K$6=Listas!$L$4),0,IF($C$23="",0,IF(Listas!$D$5=Listas!$C$3,ROUND(IF(U87<=$C$21,IF(ROUND((V86/$T$120)*$C$23*AI87,2)<(1/$T$120),ROUND((1/$T$120),2),ROUND((V86/$T$120)*$C$23,2)*AI87),0),2),IF(Listas!$D$5=Listas!$C$2,ROUND(IF(U87<=$C$21,IF(ROUND(V86*$C$23*AI87,2)<1,1,ROUND(V86*$C$23,2)*AI87),0),2)))))) -> 0 | Z87: =IF(U86="","",IF(U87="",SUM($Z$42:Z86),IF(U87=$C$21,SUM(W87,X87,Y87,AQ87),IF(U87<$C$21,$C$34,0)))) ->  | AA87: =IF(U86="","",IF(U87="",SUM($AA$42:AA86),IF(U87<=$C$21,$C$17,0))) ->  | AB87: 0 | AE87: 0 | AG87: 0 | AH87: 0 | AI87: =IF(Listas!$H$21=Listas!$I$17,1,IF(U87<=$C$21,ROUND((EOMONTH(S87,0)-EOMONTH(S86,0))/30,0),0)) -> 0 | AL87: 00:00:00 | AP87: 0 | AQ87: 0
A88: =IF(IFERROR(VLOOKUP(C88,Listas!AT:AV,3,FALSE),0)=1,IF(WEEKDAY(C88+1)=7,C88+2,C88+1),C88) ->  | B88: 47 | C88: =IF(B88>$C$21,"",IF(Listas!$H$21=Listas!$I$17,IF(WEEKDAY(C87+$D$13)=1,C87+$D$13+1,C87+$D$13),IF(B88<=$C$21,IF((DATE(YEAR(C87),MONTH(C87)+1,DAY($C$14))-C87)>=27,IF(WEEKDAY(DATE(YEAR(C87),MONTH(C87)+1,DAY($C$14)))=1,DATE(YEAR(C87),MONTH(C87)+1,DAY($C$14)+1),DATE(YEAR(C87),MONTH(C87)+1,DAY($C$14))),DATE(YEAR(C87),MONTH(C87)+2,DAY($C$14))),""))) ->  | F88: =IF($C$23=0,0,IF(OR(Listas!$K$6=Listas!$L$3,Listas!$K$6=Listas!$L$4),0,IF($C$23="",0,IF(Listas!$D$5=Listas!$C$3,ROUND(IF(B88<=$C$21,IF(ROUND((D87/$T$120)*$C$23*Q88,2)<(1/$T$120),ROUND((1/$T$120),2),ROUND((D87/$T$120)*$C$23,2)*Q88),0),2),IF(Listas!$D$5=Listas!$C$2,ROUND(IF(B88<=$C$21,IF(ROUND(D87*$C$23*Q88,2)<1,1,ROUND(D87*$C$23,2)*Q88),0),2)))))) -> 0 | I88: 0 | J88: 0 | K88: 0 | L88: 0 | M88: 0 | N88: 0 | O88: 0 | P88: 0 | Q88: =IF(Listas!$H$21=Listas!$I$15,1,IF(B88<=$C$21,ROUND((EOMONTH(A88,0)-EOMONTH(A87,0))/30,0),0)) -> 0 | W88: =IF(U87="","",IF(U88="",SUM($W$42:W87),IF(U88=$C$21,V87,Z88-X88-Y88))) ->  | X88: =IF(U87="","",IF(U88="",SUM($X$42:X87),ROUND(((1+$C$24)^(AG88/30)-1)*V87,2))) ->  | Y88: =IF($C$23=0,0,IF(OR(Listas!$K$6=Listas!$L$3,Listas!$K$6=Listas!$L$4),0,IF($C$23="",0,IF(Listas!$D$5=Listas!$C$3,ROUND(IF(U88<=$C$21,IF(ROUND((V87/$T$120)*$C$23*AI88,2)<(1/$T$120),ROUND((1/$T$120),2),ROUND((V87/$T$120)*$C$23,2)*AI88),0),2),IF(Listas!$D$5=Listas!$C$2,ROUND(IF(U88<=$C$21,IF(ROUND(V87*$C$23*AI88,2)<1,1,ROUND(V87*$C$23,2)*AI88),0),2)))))) -> 0 | Z88: =IF(U87="","",IF(U88="",SUM($Z$42:Z87),IF(U88=$C$21,SUM(W88,X88,Y88,AQ88),IF(U88<$C$21,$C$34,0)))) ->  | AA88: =IF(U87="","",IF(U88="",SUM($AA$42:AA87),IF(U88<=$C$21,$C$17,0))) ->  | AB88: 0 | AE88: 0 | AG88: 0 | AH88: 0 | AI88: =IF(Listas!$H$21=Listas!$I$17,1,IF(U88<=$C$21,ROUND((EOMONTH(S88,0)-EOMONTH(S87,0))/30,0),0)) -> 0 | AL88: 00:00:00 | AP88: 0 | AQ88: 0
A89: =IF(IFERROR(VLOOKUP(C89,Listas!AT:AV,3,FALSE),0)=1,IF(WEEKDAY(C89+1)=7,C89+2,C89+1),C89) ->  | B89: 48 | C89: =IF(B89>$C$21,"",IF(Listas!$H$21=Listas!$I$17,IF(WEEKDAY(C88+$D$13)=1,C88+$D$13+1,C88+$D$13),IF(B89<=$C$21,IF((DATE(YEAR(C88),MONTH(C88)+1,DAY($C$14))-C88)>=27,IF(WEEKDAY(DATE(YEAR(C88),MONTH(C88)+1,DAY($C$14)))=1,DATE(YEAR(C88),MONTH(C88)+1,DAY($C$14)+1),DATE(YEAR(C88),MONTH(C88)+1,DAY($C$14))),DATE(YEAR(C88),MONTH(C88)+2,DAY($C$14))),""))) ->  | F89: =IF($C$23=0,0,IF(OR(Listas!$K$6=Listas!$L$3,Listas!$K$6=Listas!$L$4),0,IF($C$23="",0,IF(Listas!$D$5=Listas!$C$3,ROUND(IF(B89<=$C$21,IF(ROUND((D88/$T$120)*$C$23*Q89,2)<(1/$T$120),ROUND((1/$T$120),2),ROUND((D88/$T$120)*$C$23,2)*Q89),0),2),IF(Listas!$D$5=Listas!$C$2,ROUND(IF(B89<=$C$21,IF(ROUND(D88*$C$23*Q89,2)<1,1,ROUND(D88*$C$23,2)*Q89),0),2)))))) -> 0 | I89: 0 | J89: 0 | K89: 0 | L89: 0 | M89: 0 | N89: 0 | O89: 0 | P89: 0 | Q89: =IF(Listas!$H$21=Listas!$I$15,1,IF(B89<=$C$21,ROUND((EOMONTH(A89,0)-EOMONTH(A88,0))/30,0),0)) -> 0 | W89: =IF(U88="","",IF(U89="",SUM($W$42:W88),IF(U89=$C$21,V88,Z89-X89-Y89))) ->  | X89: =IF(U88="","",IF(U89="",SUM($X$42:X88),ROUND(((1+$C$24)^(AG89/30)-1)*V88,2))) ->  | Y89: =IF($C$23=0,0,IF(OR(Listas!$K$6=Listas!$L$3,Listas!$K$6=Listas!$L$4),0,IF($C$23="",0,IF(Listas!$D$5=Listas!$C$3,ROUND(IF(U89<=$C$21,IF(ROUND((V88/$T$120)*$C$23*AI89,2)<(1/$T$120),ROUND((1/$T$120),2),ROUND((V88/$T$120)*$C$23,2)*AI89),0),2),IF(Listas!$D$5=Listas!$C$2,ROUND(IF(U89<=$C$21,IF(ROUND(V88*$C$23*AI89,2)<1,1,ROUND(V88*$C$23,2)*AI89),0),2)))))) -> 0 | Z89: =IF(U88="","",IF(U89="",SUM($Z$42:Z88),IF(U89=$C$21,SUM(W89,X89,Y89,AQ89),IF(U89<$C$21,$C$34,0)))) ->  | AA89: =IF(U88="","",IF(U89="",SUM($AA$42:AA88),IF(U89<=$C$21,$C$17,0))) ->  | AB89: 0 | AE89: 0 | AG89: 0 | AH89: 0 | AI89: =IF(Listas!$H$21=Listas!$I$17,1,IF(U89<=$C$21,ROUND((EOMONTH(S89,0)-EOMONTH(S88,0))/30,0),0)) -> 0 | AL89: 00:00:00 | AP89: 0 | AQ89: 0
A90: =IF(IFERROR(VLOOKUP(C90,Listas!AT:AV,3,FALSE),0)=1,IF(WEEKDAY(C90+1)=7,C90+2,C90+1),C90) ->  | B90: 49 | C90: =IF(B90>$C$21,"",IF(Listas!$H$21=Listas!$I$17,IF(WEEKDAY(C89+$D$13)=1,C89+$D$13+1,C89+$D$13),IF(B90<=$C$21,IF((DATE(YEAR(C89),MONTH(C89)+1,DAY($C$14))-C89)>=27,IF(WEEKDAY(DATE(YEAR(C89),MONTH(C89)+1,DAY($C$14)))=1,DATE(YEAR(C89),MONTH(C89)+1,DAY($C$14)+1),DATE(YEAR(C89),MONTH(C89)+1,DAY($C$14))),DATE(YEAR(C89),MONTH(C89)+2,DAY($C$14))),""))) ->  | F90: =IF($C$23=0,0,IF(OR(Listas!$K$6=Listas!$L$3,Listas!$K$6=Listas!$L$4),0,IF($C$23="",0,IF(Listas!$D$5=Listas!$C$3,ROUND(IF(B90<=$C$21,IF(ROUND((D89/$T$120)*$C$23*Q90,2)<(1/$T$120),ROUND((1/$T$120),2),ROUND((D89/$T$120)*$C$23,2)*Q90),0),2),IF(Listas!$D$5=Listas!$C$2,ROUND(IF(B90<=$C$21,IF(ROUND(D89*$C$23*Q90,2)<1,1,ROUND(D89*$C$23,2)*Q90),0),2)))))) -> 0 | I90: 0 | J90: 0 | K90: 0 | L90: 0 | M90: 0 | N90: 0 | O90: 0 | P90: 0 | Q90: =IF(Listas!$H$21=Listas!$I$15,1,IF(B90<=$C$21,ROUND((EOMONTH(A90,0)-EOMONTH(A89,0))/30,0),0)) -> 0 | W90: =IF(U89="","",IF(U90="",SUM($W$42:W89),IF(U90=$C$21,V89,Z90-X90-Y90))) ->  | X90: =IF(U89="","",IF(U90="",SUM($X$42:X89),ROUND(((1+$C$24)^(AG90/30)-1)*V89,2))) ->  | Y90: =IF($C$23=0,0,IF(OR(Listas!$K$6=Listas!$L$3,Listas!$K$6=Listas!$L$4),0,IF($C$23="",0,IF(Listas!$D$5=Listas!$C$3,ROUND(IF(U90<=$C$21,IF(ROUND((V89/$T$120)*$C$23*AI90,2)<(1/$T$120),ROUND((1/$T$120),2),ROUND((V89/$T$120)*$C$23,2)*AI90),0),2),IF(Listas!$D$5=Listas!$C$2,ROUND(IF(U90<=$C$21,IF(ROUND(V89*$C$23*AI90,2)<1,1,ROUND(V89*$C$23,2)*AI90),0),2)))))) -> 0 | Z90: =IF(U89="","",IF(U90="",SUM($Z$42:Z89),IF(U90=$C$21,SUM(W90,X90,Y90,AQ90),IF(U90<$C$21,$C$34,0)))) ->  | AA90: =IF(U89="","",IF(U90="",SUM($AA$42:AA89),IF(U90<=$C$21,$C$17,0))) ->  | AB90: 0 | AE90: 0 | AG90: 0 | AH90: 0 | AI90: =IF(Listas!$H$21=Listas!$I$17,1,IF(U90<=$C$21,ROUND((EOMONTH(S90,0)-EOMONTH(S89,0))/30,0),0)) -> 0 | AL90: 00:00:00 | AP90: 0 | AQ90: 0
A91: =IF(IFERROR(VLOOKUP(C91,Listas!AT:AV,3,FALSE),0)=1,IF(WEEKDAY(C91+1)=7,C91+2,C91+1),C91) ->  | B91: 50 | C91: =IF(B91>$C$21,"",IF(Listas!$H$21=Listas!$I$17,IF(WEEKDAY(C90+$D$13)=1,C90+$D$13+1,C90+$D$13),IF(B91<=$C$21,IF((DATE(YEAR(C90),MONTH(C90)+1,DAY($C$14))-C90)>=27,IF(WEEKDAY(DATE(YEAR(C90),MONTH(C90)+1,DAY($C$14)))=1,DATE(YEAR(C90),MONTH(C90)+1,DAY($C$14)+1),DATE(YEAR(C90),MONTH(C90)+1,DAY($C$14))),DATE(YEAR(C90),MONTH(C90)+2,DAY($C$14))),""))) ->  | F91: =IF($C$23=0,0,IF(OR(Listas!$K$6=Listas!$L$3,Listas!$K$6=Listas!$L$4),0,IF($C$23="",0,IF(Listas!$D$5=Listas!$C$3,ROUND(IF(B91<=$C$21,IF(ROUND((D90/$T$120)*$C$23*Q91,2)<(1/$T$120),ROUND((1/$T$120),2),ROUND((D90/$T$120)*$C$23,2)*Q91),0),2),IF(Listas!$D$5=Listas!$C$2,ROUND(IF(B91<=$C$21,IF(ROUND(D90*$C$23*Q91,2)<1,1,ROUND(D90*$C$23,2)*Q91),0),2)))))) -> 0 | I91: 0 | J91: 0 | K91: 0 | L91: 0 | M91: 0 | N91: 0 | O91: 0 | P91: 0 | Q91: =IF(Listas!$H$21=Listas!$I$15,1,IF(B91<=$C$21,ROUND((EOMONTH(A91,0)-EOMONTH(A90,0))/30,0),0)) -> 0 | W91: =IF(U90="","",IF(U91="",SUM($W$42:W90),IF(U91=$C$21,V90,Z91-X91-Y91))) ->  | X91: =IF(U90="","",IF(U91="",SUM($X$42:X90),ROUND(((1+$C$24)^(AG91/30)-1)*V90,2))) ->  | Y91: =IF($C$23=0,0,IF(OR(Listas!$K$6=Listas!$L$3,Listas!$K$6=Listas!$L$4),0,IF($C$23="",0,IF(Listas!$D$5=Listas!$C$3,ROUND(IF(U91<=$C$21,IF(ROUND((V90/$T$120)*$C$23*AI91,2)<(1/$T$120),ROUND((1/$T$120),2),ROUND((V90/$T$120)*$C$23,2)*AI91),0),2),IF(Listas!$D$5=Listas!$C$2,ROUND(IF(U91<=$C$21,IF(ROUND(V90*$C$23*AI91,2)<1,1,ROUND(V90*$C$23,2)*AI91),0),2)))))) -> 0 | Z91: =IF(U90="","",IF(U91="",SUM($Z$42:Z90),IF(U91=$C$21,SUM(W91,X91,Y91,AQ91),IF(U91<$C$21,$C$34,0)))) ->  | AA91: =IF(U90="","",IF(U91="",SUM($AA$42:AA90),IF(U91<=$C$21,$C$17,0))) ->  | AB91: 0 | AE91: 0 | AG91: 0 | AH91: 0 | AI91: =IF(Listas!$H$21=Listas!$I$17,1,IF(U91<=$C$21,ROUND((EOMONTH(S91,0)-EOMONTH(S90,0))/30,0),0)) -> 0 | AL91: 00:00:00 | AP91: 0 | AQ91: 0
A92: =IF(IFERROR(VLOOKUP(C92,Listas!AT:AV,3,FALSE),0)=1,IF(WEEKDAY(C92+1)=7,C92+2,C92+1),C92) ->  | B92: 51 | C92: =IF(B92>$C$21,"",IF(Listas!$H$21=Listas!$I$17,IF(WEEKDAY(C91+$D$13)=1,C91+$D$13+1,C91+$D$13),IF(B92<=$C$21,IF((DATE(YEAR(C91),MONTH(C91)+1,DAY($C$14))-C91)>=27,IF(WEEKDAY(DATE(YEAR(C91),MONTH(C91)+1,DAY($C$14)))=1,DATE(YEAR(C91),MONTH(C91)+1,DAY($C$14)+1),DATE(YEAR(C91),MONTH(C91)+1,DAY($C$14))),DATE(YEAR(C91),MONTH(C91)+2,DAY($C$14))),""))) ->  | F92: =IF($C$23=0,0,IF(OR(Listas!$K$6=Listas!$L$3,Listas!$K$6=Listas!$L$4),0,IF($C$23="",0,IF(Listas!$D$5=Listas!$C$3,ROUND(IF(B92<=$C$21,IF(ROUND((D91/$T$120)*$C$23*Q92,2)<(1/$T$120),ROUND((1/$T$120),2),ROUND((D91/$T$120)*$C$23,2)*Q92),0),2),IF(Listas!$D$5=Listas!$C$2,ROUND(IF(B92<=$C$21,IF(ROUND(D91*$C$23*Q92,2)<1,1,ROUND(D91*$C$23,2)*Q92),0),2)))))) -> 0 | I92: 0 | J92: 0 | K92: 0 | L92: 0 | M92: 0 | N92: 0 | O92: 0 | P92: 0 | Q92: =IF(Listas!$H$21=Listas!$I$15,1,IF(B92<=$C$21,ROUND((EOMONTH(A92,0)-EOMONTH(A91,0))/30,0),0)) -> 0 | W92: =IF(U91="","",IF(U92="",SUM($W$42:W91),IF(U92=$C$21,V91,Z92-X92-Y92))) ->  | X92: =IF(U91="","",IF(U92="",SUM($X$42:X91),ROUND(((1+$C$24)^(AG92/30)-1)*V91,2))) ->  | Y92: =IF($C$23=0,0,IF(OR(Listas!$K$6=Listas!$L$3,Listas!$K$6=Listas!$L$4),0,IF($C$23="",0,IF(Listas!$D$5=Listas!$C$3,ROUND(IF(U92<=$C$21,IF(ROUND((V91/$T$120)*$C$23*AI92,2)<(1/$T$120),ROUND((1/$T$120),2),ROUND((V91/$T$120)*$C$23,2)*AI92),0),2),IF(Listas!$D$5=Listas!$C$2,ROUND(IF(U92<=$C$21,IF(ROUND(V91*$C$23*AI92,2)<1,1,ROUND(V91*$C$23,2)*AI92),0),2)))))) -> 0 | Z92: =IF(U91="","",IF(U92="",SUM($Z$42:Z91),IF(U92=$C$21,SUM(W92,X92,Y92,AQ92),IF(U92<$C$21,$C$34,0)))) ->  | AA92: =IF(U91="","",IF(U92="",SUM($AA$42:AA91),IF(U92<=$C$21,$C$17,0))) ->  | AB92: 0 | AE92: 0 | AG92: 0 | AH92: 0 | AI92: =IF(Listas!$H$21=Listas!$I$17,1,IF(U92<=$C$21,ROUND((EOMONTH(S92,0)-EOMONTH(S91,0))/30,0),0)) -> 0 | AL92: 00:00:00 | AP92: 0 | AQ92: 0
A93: =IF(IFERROR(VLOOKUP(C93,Listas!AT:AV,3,FALSE),0)=1,IF(WEEKDAY(C93+1)=7,C93+2,C93+1),C93) ->  | B93: 52 | C93: =IF(B93>$C$21,"",IF(Listas!$H$21=Listas!$I$17,IF(WEEKDAY(C92+$D$13)=1,C92+$D$13+1,C92+$D$13),IF(B93<=$C$21,IF((DATE(YEAR(C92),MONTH(C92)+1,DAY($C$14))-C92)>=27,IF(WEEKDAY(DATE(YEAR(C92),MONTH(C92)+1,DAY($C$14)))=1,DATE(YEAR(C92),MONTH(C92)+1,DAY($C$14)+1),DATE(YEAR(C92),MONTH(C92)+1,DAY($C$14))),DATE(YEAR(C92),MONTH(C92)+2,DAY($C$14))),""))) ->  | F93: =IF($C$23=0,0,IF(OR(Listas!$K$6=Listas!$L$3,Listas!$K$6=Listas!$L$4),0,IF($C$23="",0,IF(Listas!$D$5=Listas!$C$3,ROUND(IF(B93<=$C$21,IF(ROUND((D92/$T$120)*$C$23*Q93,2)<(1/$T$120),ROUND((1/$T$120),2),ROUND((D92/$T$120)*$C$23,2)*Q93),0),2),IF(Listas!$D$5=Listas!$C$2,ROUND(IF(B93<=$C$21,IF(ROUND(D92*$C$23*Q93,2)<1,1,ROUND(D92*$C$23,2)*Q93),0),2)))))) -> 0 | I93: 0 | J93: 0 | K93: 0 | L93: 0 | M93: 0 | N93: 0 | O93: 0 | P93: 0 | Q93: =IF(Listas!$H$21=Listas!$I$15,1,IF(B93<=$C$21,ROUND((EOMONTH(A93,0)-EOMONTH(A92,0))/30,0),0)) -> 0 | W93: =IF(U92="","",IF(U93="",SUM($W$42:W92),IF(U93=$C$21,V92,Z93-X93-Y93))) ->  | X93: =IF(U92="","",IF(U93="",SUM($X$42:X92),ROUND(((1+$C$24)^(AG93/30)-1)*V92,2))) ->  | Y93: =IF($C$23=0,0,IF(OR(Listas!$K$6=Listas!$L$3,Listas!$K$6=Listas!$L$4),0,IF($C$23="",0,IF(Listas!$D$5=Listas!$C$3,ROUND(IF(U93<=$C$21,IF(ROUND((V92/$T$120)*$C$23*AI93,2)<(1/$T$120),ROUND((1/$T$120),2),ROUND((V92/$T$120)*$C$23,2)*AI93),0),2),IF(Listas!$D$5=Listas!$C$2,ROUND(IF(U93<=$C$21,IF(ROUND(V92*$C$23*AI93,2)<1,1,ROUND(V92*$C$23,2)*AI93),0),2)))))) -> 0 | Z93: =IF(U92="","",IF(U93="",SUM($Z$42:Z92),IF(U93=$C$21,SUM(W93,X93,Y93,AQ93),IF(U93<$C$21,$C$34,0)))) ->  | AA93: =IF(U92="","",IF(U93="",SUM($AA$42:AA92),IF(U93<=$C$21,$C$17,0))) ->  | AB93: 0 | AE93: 0 | AG93: 0 | AH93: 0 | AI93: =IF(Listas!$H$21=Listas!$I$17,1,IF(U93<=$C$21,ROUND((EOMONTH(S93,0)-EOMONTH(S92,0))/30,0),0)) -> 0 | AL93: 00:00:00 | AP93: 0 | AQ93: 0
A94: =IF(IFERROR(VLOOKUP(C94,Listas!AT:AV,3,FALSE),0)=1,IF(WEEKDAY(C94+1)=7,C94+2,C94+1),C94) ->  | B94: 53 | C94: =IF(B94>$C$21,"",IF(Listas!$H$21=Listas!$I$17,IF(WEEKDAY(C93+$D$13)=1,C93+$D$13+1,C93+$D$13),IF(B94<=$C$21,IF((DATE(YEAR(C93),MONTH(C93)+1,DAY($C$14))-C93)>=27,IF(WEEKDAY(DATE(YEAR(C93),MONTH(C93)+1,DAY($C$14)))=1,DATE(YEAR(C93),MONTH(C93)+1,DAY($C$14)+1),DATE(YEAR(C93),MONTH(C93)+1,DAY($C$14))),DATE(YEAR(C93),MONTH(C93)+2,DAY($C$14))),""))) ->  | F94: =IF($C$23=0,0,IF(OR(Listas!$K$6=Listas!$L$3,Listas!$K$6=Listas!$L$4),0,IF($C$23="",0,IF(Listas!$D$5=Listas!$C$3,ROUND(IF(B94<=$C$21,IF(ROUND((D93/$T$120)*$C$23*Q94,2)<(1/$T$120),ROUND((1/$T$120),2),ROUND((D93/$T$120)*$C$23,2)*Q94),0),2),IF(Listas!$D$5=Listas!$C$2,ROUND(IF(B94<=$C$21,IF(ROUND(D93*$C$23*Q94,2)<1,1,ROUND(D93*$C$23,2)*Q94),0),2)))))) -> 0 | I94: 0 | J94: 0 | K94: 0 | L94: 0 | M94: 0 | N94: 0 | O94: 0 | P94: 0 | Q94: =IF(Listas!$H$21=Listas!$I$15,1,IF(B94<=$C$21,ROUND((EOMONTH(A94,0)-EOMONTH(A93,0))/30,0),0)) -> 0 | W94: =IF(U93="","",IF(U94="",SUM($W$42:W93),IF(U94=$C$21,V93,Z94-X94-Y94))) ->  | X94: =IF(U93="","",IF(U94="",SUM($X$42:X93),ROUND(((1+$C$24)^(AG94/30)-1)*V93,2))) ->  | Y94: =IF($C$23=0,0,IF(OR(Listas!$K$6=Listas!$L$3,Listas!$K$6=Listas!$L$4),0,IF($C$23="",0,IF(Listas!$D$5=Listas!$C$3,ROUND(IF(U94<=$C$21,IF(ROUND((V93/$T$120)*$C$23*AI94,2)<(1/$T$120),ROUND((1/$T$120),2),ROUND((V93/$T$120)*$C$23,2)*AI94),0),2),IF(Listas!$D$5=Listas!$C$2,ROUND(IF(U94<=$C$21,IF(ROUND(V93*$C$23*AI94,2)<1,1,ROUND(V93*$C$23,2)*AI94),0),2)))))) -> 0 | Z94: =IF(U93="","",IF(U94="",SUM($Z$42:Z93),IF(U94=$C$21,SUM(W94,X94,Y94,AQ94),IF(U94<$C$21,$C$34,0)))) ->  | AA94: =IF(U93="","",IF(U94="",SUM($AA$42:AA93),IF(U94<=$C$21,$C$17,0))) ->  | AB94: 0 | AE94: 0 | AG94: 0 | AH94: 0 | AI94: =IF(Listas!$H$21=Listas!$I$17,1,IF(U94<=$C$21,ROUND((EOMONTH(S94,0)-EOMONTH(S93,0))/30,0),0)) -> 0 | AL94: 00:00:00 | AP94: 0 | AQ94: 0
A95: =IF(IFERROR(VLOOKUP(C95,Listas!AT:AV,3,FALSE),0)=1,IF(WEEKDAY(C95+1)=7,C95+2,C95+1),C95) ->  | B95: 54 | C95: =IF(B95>$C$21,"",IF(Listas!$H$21=Listas!$I$17,IF(WEEKDAY(C94+$D$13)=1,C94+$D$13+1,C94+$D$13),IF(B95<=$C$21,IF((DATE(YEAR(C94),MONTH(C94)+1,DAY($C$14))-C94)>=27,IF(WEEKDAY(DATE(YEAR(C94),MONTH(C94)+1,DAY($C$14)))=1,DATE(YEAR(C94),MONTH(C94)+1,DAY($C$14)+1),DATE(YEAR(C94),MONTH(C94)+1,DAY($C$14))),DATE(YEAR(C94),MONTH(C94)+2,DAY($C$14))),""))) ->  | F95: =IF($C$23=0,0,IF(OR(Listas!$K$6=Listas!$L$3,Listas!$K$6=Listas!$L$4),0,IF($C$23="",0,IF(Listas!$D$5=Listas!$C$3,ROUND(IF(B95<=$C$21,IF(ROUND((D94/$T$120)*$C$23*Q95,2)<(1/$T$120),ROUND((1/$T$120),2),ROUND((D94/$T$120)*$C$23,2)*Q95),0),2),IF(Listas!$D$5=Listas!$C$2,ROUND(IF(B95<=$C$21,IF(ROUND(D94*$C$23*Q95,2)<1,1,ROUND(D94*$C$23,2)*Q95),0),2)))))) -> 0 | I95: 0 | J95: 0 | K95: 0 | L95: 0 | M95: 0 | N95: 0 | O95: 0 | P95: 0 | Q95: =IF(Listas!$H$21=Listas!$I$15,1,IF(B95<=$C$21,ROUND((EOMONTH(A95,0)-EOMONTH(A94,0))/30,0),0)) -> 0 | W95: =IF(U94="","",IF(U95="",SUM($W$42:W94),IF(U95=$C$21,V94,Z95-X95-Y95))) ->  | X95: =IF(U94="","",IF(U95="",SUM($X$42:X94),ROUND(((1+$C$24)^(AG95/30)-1)*V94,2))) ->  | Y95: =IF($C$23=0,0,IF(OR(Listas!$K$6=Listas!$L$3,Listas!$K$6=Listas!$L$4),0,IF($C$23="",0,IF(Listas!$D$5=Listas!$C$3,ROUND(IF(U95<=$C$21,IF(ROUND((V94/$T$120)*$C$23*AI95,2)<(1/$T$120),ROUND((1/$T$120),2),ROUND((V94/$T$120)*$C$23,2)*AI95),0),2),IF(Listas!$D$5=Listas!$C$2,ROUND(IF(U95<=$C$21,IF(ROUND(V94*$C$23*AI95,2)<1,1,ROUND(V94*$C$23,2)*AI95),0),2)))))) -> 0 | Z95: =IF(U94="","",IF(U95="",SUM($Z$42:Z94),IF(U95=$C$21,SUM(W95,X95,Y95,AQ95),IF(U95<$C$21,$C$34,0)))) ->  | AA95: =IF(U94="","",IF(U95="",SUM($AA$42:AA94),IF(U95<=$C$21,$C$17,0))) ->  | AB95: 0 | AE95: 0 | AG95: 0 | AH95: 0 | AI95: =IF(Listas!$H$21=Listas!$I$17,1,IF(U95<=$C$21,ROUND((EOMONTH(S95,0)-EOMONTH(S94,0))/30,0),0)) -> 0 | AL95: 00:00:00 | AP95: 0 | AQ95: 0
A96: =IF(IFERROR(VLOOKUP(C96,Listas!AT:AV,3,FALSE),0)=1,IF(WEEKDAY(C96+1)=7,C96+2,C96+1),C96) ->  | B96: 55 | C96: =IF(B96>$C$21,"",IF(Listas!$H$21=Listas!$I$17,IF(WEEKDAY(C95+$D$13)=1,C95+$D$13+1,C95+$D$13),IF(B96<=$C$21,IF((DATE(YEAR(C95),MONTH(C95)+1,DAY($C$14))-C95)>=27,IF(WEEKDAY(DATE(YEAR(C95),MONTH(C95)+1,DAY($C$14)))=1,DATE(YEAR(C95),MONTH(C95)+1,DAY($C$14)+1),DATE(YEAR(C95),MONTH(C95)+1,DAY($C$14))),DATE(YEAR(C95),MONTH(C95)+2,DAY($C$14))),""))) ->  | F96: =IF($C$23=0,0,IF(OR(Listas!$K$6=Listas!$L$3,Listas!$K$6=Listas!$L$4),0,IF($C$23="",0,IF(Listas!$D$5=Listas!$C$3,ROUND(IF(B96<=$C$21,IF(ROUND((D95/$T$120)*$C$23*Q96,2)<(1/$T$120),ROUND((1/$T$120),2),ROUND((D95/$T$120)*$C$23,2)*Q96),0),2),IF(Listas!$D$5=Listas!$C$2,ROUND(IF(B96<=$C$21,IF(ROUND(D95*$C$23*Q96,2)<1,1,ROUND(D95*$C$23,2)*Q96),0),2)))))) -> 0 | I96: 0 | J96: 0 | K96: 0 | L96: 0 | M96: 0 | N96: 0 | O96: 0 | P96: 0 | Q96: =IF(Listas!$H$21=Listas!$I$15,1,IF(B96<=$C$21,ROUND((EOMONTH(A96,0)-EOMONTH(A95,0))/30,0),0)) -> 0 | W96: =IF(U95="","",IF(U96="",SUM($W$42:W95),IF(U96=$C$21,V95,Z96-X96-Y96))) ->  | X96: =IF(U95="","",IF(U96="",SUM($X$42:X95),ROUND(((1+$C$24)^(AG96/30)-1)*V95,2))) ->  | Y96: =IF($C$23=0,0,IF(OR(Listas!$K$6=Listas!$L$3,Listas!$K$6=Listas!$L$4),0,IF($C$23="",0,IF(Listas!$D$5=Listas!$C$3,ROUND(IF(U96<=$C$21,IF(ROUND((V95/$T$120)*$C$23*AI96,2)<(1/$T$120),ROUND((1/$T$120),2),ROUND((V95/$T$120)*$C$23,2)*AI96),0),2),IF(Listas!$D$5=Listas!$C$2,ROUND(IF(U96<=$C$21,IF(ROUND(V95*$C$23*AI96,2)<1,1,ROUND(V95*$C$23,2)*AI96),0),2)))))) -> 0 | Z96: =IF(U95="","",IF(U96="",SUM($Z$42:Z95),IF(U96=$C$21,SUM(W96,X96,Y96,AQ96),IF(U96<$C$21,$C$34,0)))) ->  | AA96: =IF(U95="","",IF(U96="",SUM($AA$42:AA95),IF(U96<=$C$21,$C$17,0))) ->  | AB96: 0 | AE96: 0 | AG96: 0 | AH96: 0 | AI96: =IF(Listas!$H$21=Listas!$I$17,1,IF(U96<=$C$21,ROUND((EOMONTH(S96,0)-EOMONTH(S95,0))/30,0),0)) -> 0 | AL96: 00:00:00 | AP96: 0 | AQ96: 0
A97: =IF(IFERROR(VLOOKUP(C97,Listas!AT:AV,3,FALSE),0)=1,IF(WEEKDAY(C97+1)=7,C97+2,C97+1),C97) ->  | B97: 56 | C97: =IF(B97>$C$21,"",IF(Listas!$H$21=Listas!$I$17,IF(WEEKDAY(C96+$D$13)=1,C96+$D$13+1,C96+$D$13),IF(B97<=$C$21,IF((DATE(YEAR(C96),MONTH(C96)+1,DAY($C$14))-C96)>=27,IF(WEEKDAY(DATE(YEAR(C96),MONTH(C96)+1,DAY($C$14)))=1,DATE(YEAR(C96),MONTH(C96)+1,DAY($C$14)+1),DATE(YEAR(C96),MONTH(C96)+1,DAY($C$14))),DATE(YEAR(C96),MONTH(C96)+2,DAY($C$14))),""))) ->  | F97: =IF($C$23=0,0,IF(OR(Listas!$K$6=Listas!$L$3,Listas!$K$6=Listas!$L$4),0,IF($C$23="",0,IF(Listas!$D$5=Listas!$C$3,ROUND(IF(B97<=$C$21,IF(ROUND((D96/$T$120)*$C$23*Q97,2)<(1/$T$120),ROUND((1/$T$120),2),ROUND((D96/$T$120)*$C$23,2)*Q97),0),2),IF(Listas!$D$5=Listas!$C$2,ROUND(IF(B97<=$C$21,IF(ROUND(D96*$C$23*Q97,2)<1,1,ROUND(D96*$C$23,2)*Q97),0),2)))))) -> 0 | I97: 0 | J97: 0 | K97: 0 | L97: 0 | M97: 0 | N97: 0 | O97: 0 | P97: 0 | Q97: =IF(Listas!$H$21=Listas!$I$15,1,IF(B97<=$C$21,ROUND((EOMONTH(A97,0)-EOMONTH(A96,0))/30,0),0)) -> 0 | W97: =IF(U96="","",IF(U97="",SUM($W$42:W96),IF(U97=$C$21,V96,Z97-X97-Y97))) ->  | X97: =IF(U96="","",IF(U97="",SUM($X$42:X96),ROUND(((1+$C$24)^(AG97/30)-1)*V96,2))) ->  | Y97: =IF($C$23=0,0,IF(OR(Listas!$K$6=Listas!$L$3,Listas!$K$6=Listas!$L$4),0,IF($C$23="",0,IF(Listas!$D$5=Listas!$C$3,ROUND(IF(U97<=$C$21,IF(ROUND((V96/$T$120)*$C$23*AI97,2)<(1/$T$120),ROUND((1/$T$120),2),ROUND((V96/$T$120)*$C$23,2)*AI97),0),2),IF(Listas!$D$5=Listas!$C$2,ROUND(IF(U97<=$C$21,IF(ROUND(V96*$C$23*AI97,2)<1,1,ROUND(V96*$C$23,2)*AI97),0),2)))))) -> 0 | Z97: =IF(U96="","",IF(U97="",SUM($Z$42:Z96),IF(U97=$C$21,SUM(W97,X97,Y97,AQ97),IF(U97<$C$21,$C$34,0)))) ->  | AA97: =IF(U96="","",IF(U97="",SUM($AA$42:AA96),IF(U97<=$C$21,$C$17,0))) ->  | AB97: 0 | AE97: 0 | AG97: 0 | AH97: 0 | AI97: =IF(Listas!$H$21=Listas!$I$17,1,IF(U97<=$C$21,ROUND((EOMONTH(S97,0)-EOMONTH(S96,0))/30,0),0)) -> 0 | AL97: 00:00:00 | AP97: 0 | AQ97: 0
A98: =IF(IFERROR(VLOOKUP(C98,Listas!AT:AV,3,FALSE),0)=1,IF(WEEKDAY(C98+1)=7,C98+2,C98+1),C98) ->  | B98: 57 | C98: =IF(B98>$C$21,"",IF(Listas!$H$21=Listas!$I$17,IF(WEEKDAY(C97+$D$13)=1,C97+$D$13+1,C97+$D$13),IF(B98<=$C$21,IF((DATE(YEAR(C97),MONTH(C97)+1,DAY($C$14))-C97)>=27,IF(WEEKDAY(DATE(YEAR(C97),MONTH(C97)+1,DAY($C$14)))=1,DATE(YEAR(C97),MONTH(C97)+1,DAY($C$14)+1),DATE(YEAR(C97),MONTH(C97)+1,DAY($C$14))),DATE(YEAR(C97),MONTH(C97)+2,DAY($C$14))),""))) ->  | F98: =IF($C$23=0,0,IF(OR(Listas!$K$6=Listas!$L$3,Listas!$K$6=Listas!$L$4),0,IF($C$23="",0,IF(Listas!$D$5=Listas!$C$3,ROUND(IF(B98<=$C$21,IF(ROUND((D97/$T$120)*$C$23*Q98,2)<(1/$T$120),ROUND((1/$T$120),2),ROUND((D97/$T$120)*$C$23,2)*Q98),0),2),IF(Listas!$D$5=Listas!$C$2,ROUND(IF(B98<=$C$21,IF(ROUND(D97*$C$23*Q98,2)<1,1,ROUND(D97*$C$23,2)*Q98),0),2)))))) -> 0 | I98: 0 | J98: 0 | K98: 0 | L98: 0 | M98: 0 | N98: 0 | O98: 0 | P98: 0 | Q98: =IF(Listas!$H$21=Listas!$I$15,1,IF(B98<=$C$21,ROUND((EOMONTH(A98,0)-EOMONTH(A97,0))/30,0),0)) -> 0 | W98: =IF(U97="","",IF(U98="",SUM($W$42:W97),IF(U98=$C$21,V97,Z98-X98-Y98))) ->  | X98: =IF(U97="","",IF(U98="",SUM($X$42:X97),ROUND(((1+$C$24)^(AG98/30)-1)*V97,2))) ->  | Y98: =IF($C$23=0,0,IF(OR(Listas!$K$6=Listas!$L$3,Listas!$K$6=Listas!$L$4),0,IF($C$23="",0,IF(Listas!$D$5=Listas!$C$3,ROUND(IF(U98<=$C$21,IF(ROUND((V97/$T$120)*$C$23*AI98,2)<(1/$T$120),ROUND((1/$T$120),2),ROUND((V97/$T$120)*$C$23,2)*AI98),0),2),IF(Listas!$D$5=Listas!$C$2,ROUND(IF(U98<=$C$21,IF(ROUND(V97*$C$23*AI98,2)<1,1,ROUND(V97*$C$23,2)*AI98),0),2)))))) -> 0 | Z98: =IF(U97="","",IF(U98="",SUM($Z$42:Z97),IF(U98=$C$21,SUM(W98,X98,Y98,AQ98),IF(U98<$C$21,$C$34,0)))) ->  | AA98: =IF(U97="","",IF(U98="",SUM($AA$42:AA97),IF(U98<=$C$21,$C$17,0))) ->  | AB98: 0 | AE98: 0 | AG98: 0 | AH98: 0 | AI98: =IF(Listas!$H$21=Listas!$I$17,1,IF(U98<=$C$21,ROUND((EOMONTH(S98,0)-EOMONTH(S97,0))/30,0),0)) -> 0 | AL98: 00:00:00 | AP98: 0 | AQ98: 0
A99: =IF(IFERROR(VLOOKUP(C99,Listas!AT:AV,3,FALSE),0)=1,IF(WEEKDAY(C99+1)=7,C99+2,C99+1),C99) ->  | B99: 58 | C99: =IF(B99>$C$21,"",IF(Listas!$H$21=Listas!$I$17,IF(WEEKDAY(C98+$D$13)=1,C98+$D$13+1,C98+$D$13),IF(B99<=$C$21,IF((DATE(YEAR(C98),MONTH(C98)+1,DAY($C$14))-C98)>=27,IF(WEEKDAY(DATE(YEAR(C98),MONTH(C98)+1,DAY($C$14)))=1,DATE(YEAR(C98),MONTH(C98)+1,DAY($C$14)+1),DATE(YEAR(C98),MONTH(C98)+1,DAY($C$14))),DATE(YEAR(C98),MONTH(C98)+2,DAY($C$14))),""))) ->  | F99: =IF($C$23=0,0,IF(OR(Listas!$K$6=Listas!$L$3,Listas!$K$6=Listas!$L$4),0,IF($C$23="",0,IF(Listas!$D$5=Listas!$C$3,ROUND(IF(B99<=$C$21,IF(ROUND((D98/$T$120)*$C$23*Q99,2)<(1/$T$120),ROUND((1/$T$120),2),ROUND((D98/$T$120)*$C$23,2)*Q99),0),2),IF(Listas!$D$5=Listas!$C$2,ROUND(IF(B99<=$C$21,IF(ROUND(D98*$C$23*Q99,2)<1,1,ROUND(D98*$C$23,2)*Q99),0),2)))))) -> 0 | I99: 0 | J99: 0 | K99: 0 | L99: 0 | M99: 0 | N99: 0 | O99: 0 | P99: 0 | Q99: =IF(Listas!$H$21=Listas!$I$15,1,IF(B99<=$C$21,ROUND((EOMONTH(A99,0)-EOMONTH(A98,0))/30,0),0)) -> 0 | W99: =IF(U98="","",IF(U99="",SUM($W$42:W98),IF(U99=$C$21,V98,Z99-X99-Y99))) ->  | X99: =IF(U98="","",IF(U99="",SUM($X$42:X98),ROUND(((1+$C$24)^(AG99/30)-1)*V98,2))) ->  | Y99: =IF($C$23=0,0,IF(OR(Listas!$K$6=Listas!$L$3,Listas!$K$6=Listas!$L$4),0,IF($C$23="",0,IF(Listas!$D$5=Listas!$C$3,ROUND(IF(U99<=$C$21,IF(ROUND((V98/$T$120)*$C$23*AI99,2)<(1/$T$120),ROUND((1/$T$120),2),ROUND((V98/$T$120)*$C$23,2)*AI99),0),2),IF(Listas!$D$5=Listas!$C$2,ROUND(IF(U99<=$C$21,IF(ROUND(V98*$C$23*AI99,2)<1,1,ROUND(V98*$C$23,2)*AI99),0),2)))))) -> 0 | Z99: =IF(U98="","",IF(U99="",SUM($Z$42:Z98),IF(U99=$C$21,SUM(W99,X99,Y99,AQ99),IF(U99<$C$21,$C$34,0)))) ->  | AA99: =IF(U98="","",IF(U99="",SUM($AA$42:AA98),IF(U99<=$C$21,$C$17,0))) ->  | AB99: 0 | AE99: 0 | AG99: 0 | AH99: 0 | AI99: =IF(Listas!$H$21=Listas!$I$17,1,IF(U99<=$C$21,ROUND((EOMONTH(S99,0)-EOMONTH(S98,0))/30,0),0)) -> 0 | AL99: 00:00:00 | AP99: 0 | AQ99: 0
A100: =IF(IFERROR(VLOOKUP(C100,Listas!AT:AV,3,FALSE),0)=1,IF(WEEKDAY(C100+1)=7,C100+2,C100+1),C100) ->  | B100: 59 | C100: =IF(B100>$C$21,"",IF(Listas!$H$21=Listas!$I$17,IF(WEEKDAY(C99+$D$13)=1,C99+$D$13+1,C99+$D$13),IF(B100<=$C$21,IF((DATE(YEAR(C99),MONTH(C99)+1,DAY($C$14))-C99)>=27,IF(WEEKDAY(DATE(YEAR(C99),MONTH(C99)+1,DAY($C$14)))=1,DATE(YEAR(C99),MONTH(C99)+1,DAY($C$14)+1),DATE(YEAR(C99),MONTH(C99)+1,DAY($C$14))),DATE(YEAR(C99),MONTH(C99)+2,DAY($C$14))),""))) ->  | F100: =IF($C$23=0,0,IF(OR(Listas!$K$6=Listas!$L$3,Listas!$K$6=Listas!$L$4),0,IF($C$23="",0,IF(Listas!$D$5=Listas!$C$3,ROUND(IF(B100<=$C$21,IF(ROUND((D99/$T$120)*$C$23*Q100,2)<(1/$T$120),ROUND((1/$T$120),2),ROUND((D99/$T$120)*$C$23,2)*Q100),0),2),IF(Listas!$D$5=Listas!$C$2,ROUND(IF(B100<=$C$21,IF(ROUND(D99*$C$23*Q100,2)<1,1,ROUND(D99*$C$23,2)*Q100),0),2)))))) -> 0 | I100: 0 | J100: 0 | K100: 0 | L100: 0 | M100: 0 | N100: 0 | O100: 0 | P100: 0 | Q100: =IF(Listas!$H$21=Listas!$I$15,1,IF(B100<=$C$21,ROUND((EOMONTH(A100,0)-EOMONTH(A99,0))/30,0),0)) -> 0 | W100: =IF(U99="","",IF(U100="",SUM($W$42:W99),IF(U100=$C$21,V99,Z100-X100-Y100))) ->  | X100: =IF(U99="","",IF(U100="",SUM($X$42:X99),ROUND(((1+$C$24)^(AG100/30)-1)*V99,2))) ->  | Y100: =IF($C$23=0,0,IF(OR(Listas!$K$6=Listas!$L$3,Listas!$K$6=Listas!$L$4),0,IF($C$23="",0,IF(Listas!$D$5=Listas!$C$3,ROUND(IF(U100<=$C$21,IF(ROUND((V99/$T$120)*$C$23*AI100,2)<(1/$T$120),ROUND((1/$T$120),2),ROUND((V99/$T$120)*$C$23,2)*AI100),0),2),IF(Listas!$D$5=Listas!$C$2,ROUND(IF(U100<=$C$21,IF(ROUND(V99*$C$23*AI100,2)<1,1,ROUND(V99*$C$23,2)*AI100),0),2)))))) -> 0 | Z100: =IF(U99="","",IF(U100="",SUM($Z$42:Z99),IF(U100=$C$21,SUM(W100,X100,Y100,AQ100),IF(U100<$C$21,$C$34,0)))) ->  | AA100: =IF(U99="","",IF(U100="",SUM($AA$42:AA99),IF(U100<=$C$21,$C$17,0))) ->  | AB100: 0 | AE100: 0 | AG100: 0 | AH100: 0 | AI100: =IF(Listas!$H$21=Listas!$I$17,1,IF(U100<=$C$21,ROUND((EOMONTH(S100,0)-EOMONTH(S99,0))/30,0),0)) -> 0 | AL100: 00:00:00 | AP100: 0 | AQ100: 0
A101: =IF(IFERROR(VLOOKUP(C101,Listas!AT:AV,3,FALSE),0)=1,IF(WEEKDAY(C101+1)=7,C101+2,C101+1),C101) ->  | B101: 60 | C101: =IF(B101>$C$21,"",IF(Listas!$H$21=Listas!$I$17,IF(WEEKDAY(C100+$D$13)=1,C100+$D$13+1,C100+$D$13),IF(B101<=$C$21,IF((DATE(YEAR(C100),MONTH(C100)+1,DAY($C$14))-C100)>=27,IF(WEEKDAY(DATE(YEAR(C100),MONTH(C100)+1,DAY($C$14)))=1,DATE(YEAR(C100),MONTH(C100)+1,DAY($C$14)+1),DATE(YEAR(C100),MONTH(C100)+1,DAY($C$14))),DATE(YEAR(C100),MONTH(C100)+2,DAY($C$14))),""))) ->  | F101: =IF($C$23=0,0,IF(OR(Listas!$K$6=Listas!$L$3,Listas!$K$6=Listas!$L$4),0,IF($C$23="",0,IF(Listas!$D$5=Listas!$C$3,ROUND(IF(B101<=$C$21,IF(ROUND((D100/$T$120)*$C$23*Q101,2)<(1/$T$120),ROUND((1/$T$120),2),ROUND((D100/$T$120)*$C$23,2)*Q101),0),2),IF(Listas!$D$5=Listas!$C$2,ROUND(IF(B101<=$C$21,IF(ROUND(D100*$C$23*Q101,2)<1,1,ROUND(D100*$C$23,2)*Q101),0),2)))))) -> 0 | I101: 0 | J101: 0 | K101: 0 | L101: 0 | M101: 0 | N101: 0 | O101: 0 | P101: 0 | Q101: =IF(Listas!$H$21=Listas!$I$15,1,IF(B101<=$C$21,ROUND((EOMONTH(A101,0)-EOMONTH(A100,0))/30,0),0)) -> 0 | W101: =IF(U100="","",IF(U101="",SUM($W$42:W100),IF(U101=$C$21,V100,Z101-X101-Y101))) ->  | X101: =IF(U100="","",IF(U101="",SUM($X$42:X100),ROUND(((1+$C$24)^(AG101/30)-1)*V100,2))) ->  | Y101: =IF($C$23=0,0,IF(OR(Listas!$K$6=Listas!$L$3,Listas!$K$6=Listas!$L$4),0,IF($C$23="",0,IF(Listas!$D$5=Listas!$C$3,ROUND(IF(U101<=$C$21,IF(ROUND((V100/$T$120)*$C$23*AI101,2)<(1/$T$120),ROUND((1/$T$120),2),ROUND((V100/$T$120)*$C$23,2)*AI101),0),2),IF(Listas!$D$5=Listas!$C$2,ROUND(IF(U101<=$C$21,IF(ROUND(V100*$C$23*AI101,2)<1,1,ROUND(V100*$C$23,2)*AI101),0),2)))))) -> 0 | Z101: =IF(U100="","",IF(U101="",SUM($Z$42:Z100),IF(U101=$C$21,SUM(W101,X101,Y101,AQ101),IF(U101<$C$21,$C$34,0)))) ->  | AA101: =IF(U100="","",IF(U101="",SUM($AA$42:AA100),IF(U101<=$C$21,$C$17,0))) ->  | AB101: 0 | AE101: 0 | AG101: 0 | AH101: 0 | AI101: =IF(Listas!$H$21=Listas!$I$17,1,IF(U101<=$C$21,ROUND((EOMONTH(S101,0)-EOMONTH(S100,0))/30,0),0)) -> 0 | AL101: 00:00:00 | AP101: 0 | AQ101: 0
A102: =IF(IFERROR(VLOOKUP(C102,Listas!AT:AV,3,FALSE),0)=1,IF(WEEKDAY(C102+1)=7,C102+2,C102+1),C102) ->  | B102: 61 | C102: =IF(B102>$C$21,"",IF(Listas!$H$21=Listas!$I$17,IF(WEEKDAY(C101+$D$13)=1,C101+$D$13+1,C101+$D$13),IF(B102<=$C$21,IF((DATE(YEAR(C101),MONTH(C101)+1,DAY($C$14))-C101)>=27,IF(WEEKDAY(DATE(YEAR(C101),MONTH(C101)+1,DAY($C$14)))=1,DATE(YEAR(C101),MONTH(C101)+1,DAY($C$14)+1),DATE(YEAR(C101),MONTH(C101)+1,DAY($C$14))),DATE(YEAR(C101),MONTH(C101)+2,DAY($C$14))),""))) ->  | D102: =IF(B102<=$C$21,D101-G102,"") ->  | E102: =IFERROR(ROUND(((1+$C$24)^(L102/30)-1)*D101,2),"") ->  | F102: =IF($C$23=0,0,IF(OR(Listas!$K$6=Listas!$L$3,Listas!$K$6=Listas!$L$4),0,IF($C$23="",0,IF(Listas!$D$5=Listas!$C$3,ROUND(IF(B102<=$C$21,IF(ROUND((D101/$T$120)*$C$23*Q102,2)<(1/$T$120),ROUND((1/$T$120),2),ROUND((D101/$T$120)*$C$23,2)*Q102),0),2),IF(Listas!$D$5=Listas!$C$2,ROUND(IF(B102<=$C$21,IF(ROUND(D101*$C$23*Q102,2)<1,1,ROUND(D101*$C$23,2)*Q102),0),2)))))) -> 0 | G102: =IF(B102>$C$21,D101,I102-E102-F102-H102) ->  | I102: =IF(B102<=$C$21,$C$32,0) -> 0 | J102: =IF(B102<=$C$21,$C$15,0) -> 0 | K102: 0 | L102: =IF(B102<=$C$21,A102-A101,0) -> 0 | M102: 0 | N102: 0 | O102: =IF(B102<=$C$21,ROUND((1+$C$25)^(N102/30),6),0) -> 0 | P102: 0 | Q102: =IF(Listas!$H$21=Listas!$I$15,1,IF(B102<=$C$21,ROUND((EOMONTH(A102,0)-EOMONTH(A101,0))/30,0),0)) -> 0 | W102: =IF(U101="","",IF(U102="",SUM($W$42:W101),IF(U102=$C$21,V101,Z102-X102-Y102))) ->  | X102: =IF(U101="","",IF(U102="",SUM($X$42:X101),ROUND(((1+$C$24)^(AG102/30)-1)*V101,2))) ->  | Y102: =IF($C$23=0,0,IF(OR(Listas!$K$6=Listas!$L$3,Listas!$K$6=Listas!$L$4),0,IF($C$23="",0,IF(Listas!$D$5=Listas!$C$3,ROUND(IF(U102<=$C$21,IF(ROUND((V101/$T$120)*$C$23*AI102,2)<(1/$T$120),ROUND((1/$T$120),2),ROUND((V101/$T$120)*$C$23,2)*AI102),0),2),IF(Listas!$D$5=Listas!$C$2,ROUND(IF(U102<=$C$21,IF(ROUND(V101*$C$23*AI102,2)<1,1,ROUND(V101*$C$23,2)*AI102),0),2)))))) -> 0 | Z102: =IF(U101="","",IF(U102="",SUM($Z$42:Z101),IF(U102=$C$21,SUM(W102,X102,Y102,AQ102),IF(U102<$C$21,$C$34,0)))) ->  | AA102: =IF(U101="","",IF(U102="",SUM($AA$42:AA101),IF(U102<=$C$21,$C$17,0))) ->  | AB102: 0 | AE102: 0 | AG102: 0 | AH102: =AH101-AG102 -> 0 | AI102: =IF(Listas!$H$21=Listas!$I$17,1,IF(U102<=$C$21,ROUND((EOMONTH(S102,0)-EOMONTH(S101,0))/30,0),0)) -> 0 | AL102: 00:00:00 | AP102: 0 | AQ102: 0
A103: =IF(IFERROR(VLOOKUP(C103,Listas!AT:AV,3,FALSE),0)=1,IF(WEEKDAY(C103+1)=7,C103+2,C103+1),C103) ->  | B103: 62 | C103: =IF(B103>$C$21,"",IF(Listas!$H$21=Listas!$I$17,IF(WEEKDAY(C102+$D$13)=1,C102+$D$13+1,C102+$D$13),IF(B103<=$C$21,IF((DATE(YEAR(C102),MONTH(C102)+1,DAY($C$14))-C102)>=27,IF(WEEKDAY(DATE(YEAR(C102),MONTH(C102)+1,DAY($C$14)))=1,DATE(YEAR(C102),MONTH(C102)+1,DAY($C$14)+1),DATE(YEAR(C102),MONTH(C102)+1,DAY($C$14))),DATE(YEAR(C102),MONTH(C102)+2,DAY($C$14))),""))) ->  | F103: =IF($C$23=0,0,IF(OR(Listas!$K$6=Listas!$L$3,Listas!$K$6=Listas!$L$4),0,IF($C$23="",0,IF(Listas!$D$5=Listas!$C$3,ROUND(IF(B103<=$C$21,IF(ROUND((D102/$T$120)*$C$23*Q103,2)<(1/$T$120),ROUND((1/$T$120),2),ROUND((D102/$T$120)*$C$23,2)*Q103),0),2),IF(Listas!$D$5=Listas!$C$2,ROUND(IF(B103<=$C$21,IF(ROUND(D102*$C$23*Q103,2)<1,1,ROUND(D102*$C$23,2)*Q103),0),2)))))) -> 0 | I103: 0 | J103: 0 | K103: 0 | L103: 0 | M103: 0 | N103: 0 | O103: 0 | P103: 0 | Q103: =IF(Listas!$H$21=Listas!$I$15,1,IF(B103<=$C$21,ROUND((EOMONTH(A103,0)-EOMONTH(A102,0))/30,0),0)) -> 0 | W103: =IF(U102="","",IF(U103="",SUM($W$42:W102),IF(U103=$C$21,V102,Z103-X103-Y103))) ->  | X103: =IF(U102="","",IF(U103="",SUM($X$42:X102),ROUND(((1+$C$24)^(AG103/30)-1)*V102,2))) ->  | Y103: =IF($C$23=0,0,IF(OR(Listas!$K$6=Listas!$L$3,Listas!$K$6=Listas!$L$4),0,IF($C$23="",0,IF(Listas!$D$5=Listas!$C$3,ROUND(IF(U103<=$C$21,IF(ROUND((V102/$T$120)*$C$23*AI103,2)<(1/$T$120),ROUND((1/$T$120),2),ROUND((V102/$T$120)*$C$23,2)*AI103),0),2),IF(Listas!$D$5=Listas!$C$2,ROUND(IF(U103<=$C$21,IF(ROUND(V102*$C$23*AI103,2)<1,1,ROUND(V102*$C$23,2)*AI103),0),2)))))) -> 0 | Z103: =IF(U102="","",IF(U103="",SUM($Z$42:Z102),IF(U103=$C$21,SUM(W103,X103,Y103,AQ103),IF(U103<$C$21,$C$34,0)))) ->  | AA103: =IF(U102="","",IF(U103="",SUM($AA$42:AA102),IF(U103<=$C$21,$C$17,0))) ->  | AB103: 0 | AE103: 0 | AG103: 0 | AH103: 0 | AI103: =IF(Listas!$H$21=Listas!$I$17,1,IF(U103<=$C$21,ROUND((EOMONTH(S103,0)-EOMONTH(S102,0))/30,0),0)) -> 0 | AL103: 00:00:00 | AP103: 0 | AQ103: 0
A104: =IF(IFERROR(VLOOKUP(C104,Listas!AT:AV,3,FALSE),0)=1,IF(WEEKDAY(C104+1)=7,C104+2,C104+1),C104) ->  | B104: 63 | C104: =IF(B104>$C$21,"",IF(Listas!$H$21=Listas!$I$17,IF(WEEKDAY(C103+$D$13)=1,C103+$D$13+1,C103+$D$13),IF(B104<=$C$21,IF((DATE(YEAR(C103),MONTH(C103)+1,DAY($C$14))-C103)>=27,IF(WEEKDAY(DATE(YEAR(C103),MONTH(C103)+1,DAY($C$14)))=1,DATE(YEAR(C103),MONTH(C103)+1,DAY($C$14)+1),DATE(YEAR(C103),MONTH(C103)+1,DAY($C$14))),DATE(YEAR(C103),MONTH(C103)+2,DAY($C$14))),""))) ->  | F104: =IF($C$23=0,0,IF(OR(Listas!$K$6=Listas!$L$3,Listas!$K$6=Listas!$L$4),0,IF($C$23="",0,IF(Listas!$D$5=Listas!$C$3,ROUND(IF(B104<=$C$21,IF(ROUND((D103/$T$120)*$C$23*Q104,2)<(1/$T$120),ROUND((1/$T$120),2),ROUND((D103/$T$120)*$C$23,2)*Q104),0),2),IF(Listas!$D$5=Listas!$C$2,ROUND(IF(B104<=$C$21,IF(ROUND(D103*$C$23*Q104,2)<1,1,ROUND(D103*$C$23,2)*Q104),0),2)))))) -> 0 | I104: 0 | J104: 0 | K104: 0 | L104: 0 | M104: 0 | N104: 0 | O104: 0 | P104: 0 | Q104: =IF(Listas!$H$21=Listas!$I$15,1,IF(B104<=$C$21,ROUND((EOMONTH(A104,0)-EOMONTH(A103,0))/30,0),0)) -> 0 | W104: =IF(U103="","",IF(U104="",SUM($W$42:W103),IF(U104=$C$21,V103,Z104-X104-Y104))) ->  | X104: =IF(U103="","",IF(U104="",SUM($X$42:X103),ROUND(((1+$C$24)^(AG104/30)-1)*V103,2))) ->  | Y104: =IF($C$23=0,0,IF(OR(Listas!$K$6=Listas!$L$3,Listas!$K$6=Listas!$L$4),0,IF($C$23="",0,IF(Listas!$D$5=Listas!$C$3,ROUND(IF(U104<=$C$21,IF(ROUND((V103/$T$120)*$C$23*AI104,2)<(1/$T$120),ROUND((1/$T$120),2),ROUND((V103/$T$120)*$C$23,2)*AI104),0),2),IF(Listas!$D$5=Listas!$C$2,ROUND(IF(U104<=$C$21,IF(ROUND(V103*$C$23*AI104,2)<1,1,ROUND(V103*$C$23,2)*AI104),0),2)))))) -> 0 | Z104: =IF(U103="","",IF(U104="",SUM($Z$42:Z103),IF(U104=$C$21,SUM(W104,X104,Y104,AQ104),IF(U104<$C$21,$C$34,0)))) ->  | AA104: =IF(U103="","",IF(U104="",SUM($AA$42:AA103),IF(U104<=$C$21,$C$17,0))) ->  | AB104: 0 | AE104: 0 | AG104: 0 | AH104: 0 | AI104: =IF(Listas!$H$21=Listas!$I$17,1,IF(U104<=$C$21,ROUND((EOMONTH(S104,0)-EOMONTH(S103,0))/30,0),0)) -> 0 | AL104: 00:00:00 | AP104: 0 | AQ104: 0
A105: =IF(IFERROR(VLOOKUP(C105,Listas!AT:AV,3,FALSE),0)=1,IF(WEEKDAY(C105+1)=7,C105+2,C105+1),C105) ->  | B105: 64 | C105: =IF(B105>$C$21,"",IF(Listas!$H$21=Listas!$I$17,IF(WEEKDAY(C104+$D$13)=1,C104+$D$13+1,C104+$D$13),IF(B105<=$C$21,IF((DATE(YEAR(C104),MONTH(C104)+1,DAY($C$14))-C104)>=27,IF(WEEKDAY(DATE(YEAR(C104),MONTH(C104)+1,DAY($C$14)))=1,DATE(YEAR(C104),MONTH(C104)+1,DAY($C$14)+1),DATE(YEAR(C104),MONTH(C104)+1,DAY($C$14))),DATE(YEAR(C104),MONTH(C104)+2,DAY($C$14))),""))) ->  | F105: =IF($C$23=0,0,IF(OR(Listas!$K$6=Listas!$L$3,Listas!$K$6=Listas!$L$4),0,IF($C$23="",0,IF(Listas!$D$5=Listas!$C$3,ROUND(IF(B105<=$C$21,IF(ROUND((D104/$T$120)*$C$23*Q105,2)<(1/$T$120),ROUND((1/$T$120),2),ROUND((D104/$T$120)*$C$23,2)*Q105),0),2),IF(Listas!$D$5=Listas!$C$2,ROUND(IF(B105<=$C$21,IF(ROUND(D104*$C$23*Q105,2)<1,1,ROUND(D104*$C$23,2)*Q105),0),2)))))) -> 0 | I105: 0 | J105: 0 | K105: 0 | L105: 0 | M105: 0 | N105: 0 | O105: 0 | P105: 0 | Q105: =IF(Listas!$H$21=Listas!$I$15,1,IF(B105<=$C$21,ROUND((EOMONTH(A105,0)-EOMONTH(A104,0))/30,0),0)) -> 0 | W105: =IF(U104="","",IF(U105="",SUM($W$42:W104),IF(U105=$C$21,V104,Z105-X105-Y105))) ->  | X105: =IF(U104="","",IF(U105="",SUM($X$42:X104),ROUND(((1+$C$24)^(AG105/30)-1)*V104,2))) ->  | Y105: =IF($C$23=0,0,IF(OR(Listas!$K$6=Listas!$L$3,Listas!$K$6=Listas!$L$4),0,IF($C$23="",0,IF(Listas!$D$5=Listas!$C$3,ROUND(IF(U105<=$C$21,IF(ROUND((V104/$T$120)*$C$23*AI105,2)<(1/$T$120),ROUND((1/$T$120),2),ROUND((V104/$T$120)*$C$23,2)*AI105),0),2),IF(Listas!$D$5=Listas!$C$2,ROUND(IF(U105<=$C$21,IF(ROUND(V104*$C$23*AI105,2)<1,1,ROUND(V104*$C$23,2)*AI105),0),2)))))) -> 0 | Z105: =IF(U104="","",IF(U105="",SUM($Z$42:Z104),IF(U105=$C$21,SUM(W105,X105,Y105,AQ105),IF(U105<$C$21,$C$34,0)))) ->  | AA105: =IF(U104="","",IF(U105="",SUM($AA$42:AA104),IF(U105<=$C$21,$C$17,0))) ->  | AB105: 0 | AE105: 0 | AG105: 0 | AH105: 0 | AI105: =IF(Listas!$H$21=Listas!$I$17,1,IF(U105<=$C$21,ROUND((EOMONTH(S105,0)-EOMONTH(S104,0))/30,0),0)) -> 0 | AL105: =IF(S105="",0,IF(S105="Total",0,S105)) -> 00:00:00 | AP105: 0 | AQ105: 0
A106: =IF(IFERROR(VLOOKUP(C106,Listas!AT:AV,3,FALSE),0)=1,IF(WEEKDAY(C106+1)=7,C106+2,C106+1),C106) ->  | B106: 65 | C106: =IF(B106>$C$21,"",IF(Listas!$H$21=Listas!$I$17,IF(WEEKDAY(C105+$D$13)=1,C105+$D$13+1,C105+$D$13),IF(B106<=$C$21,IF((DATE(YEAR(C105),MONTH(C105)+1,DAY($C$14))-C105)>=27,IF(WEEKDAY(DATE(YEAR(C105),MONTH(C105)+1,DAY($C$14)))=1,DATE(YEAR(C105),MONTH(C105)+1,DAY($C$14)+1),DATE(YEAR(C105),MONTH(C105)+1,DAY($C$14))),DATE(YEAR(C105),MONTH(C105)+2,DAY($C$14))),""))) ->  | F106: =IF($C$23=0,0,IF(OR(Listas!$K$6=Listas!$L$3,Listas!$K$6=Listas!$L$4),0,IF($C$23="",0,IF(Listas!$D$5=Listas!$C$3,ROUND(IF(B106<=$C$21,IF(ROUND((D105/$T$120)*$C$23*Q106,2)<(1/$T$120),ROUND((1/$T$120),2),ROUND((D105/$T$120)*$C$23,2)*Q106),0),2),IF(Listas!$D$5=Listas!$C$2,ROUND(IF(B106<=$C$21,IF(ROUND(D105*$C$23*Q106,2)<1,1,ROUND(D105*$C$23,2)*Q106),0),2)))))) -> 0 | I106: 0 | J106: 0 | K106: 0 | L106: 0 | M106: 0 | N106: 0 | O106: 0 | P106: 0 | Q106: =IF(Listas!$H$21=Listas!$I$15,1,IF(B106<=$C$21,ROUND((EOMONTH(A106,0)-EOMONTH(A105,0))/30,0),0)) -> 0 | W106: =IF(U105="","",IF(U106="",SUM($W$42:W105),IF(U106=$C$21,V105,Z106-X106-Y106))) ->  | X106: =IF(U105="","",IF(U106="",SUM($X$42:X105),ROUND(((1+$C$24)^(AG106/30)-1)*V105,2))) ->  | Y106: =IF($C$23=0,0,IF(OR(Listas!$K$6=Listas!$L$3,Listas!$K$6=Listas!$L$4),0,IF($C$23="",0,IF(Listas!$D$5=Listas!$C$3,ROUND(IF(U106<=$C$21,IF(ROUND((V105/$T$120)*$C$23*AI106,2)<(1/$T$120),ROUND((1/$T$120),2),ROUND((V105/$T$120)*$C$23,2)*AI106),0),2),IF(Listas!$D$5=Listas!$C$2,ROUND(IF(U106<=$C$21,IF(ROUND(V105*$C$23*AI106,2)<1,1,ROUND(V105*$C$23,2)*AI106),0),2)))))) -> 0 | Z106: =IF(U105="","",IF(U106="",SUM($Z$42:Z105),IF(U106=$C$21,SUM(W106,X106,Y106,AQ106),IF(U106<$C$21,$C$34,0)))) ->  | AA106: =IF(U105="","",IF(U106="",SUM($AA$42:AA105),IF(U106<=$C$21,$C$17,0))) ->  | AB106: =SUM(Z106:AA106) -> 0 | AE106: 0 | AG106: =IF(U106<=$C$21,S106-S105,0) -> 0 | AH106: 0 | AI106: =IF(Listas!$H$21=Listas!$I$17,1,IF(U106<=$C$21,ROUND((EOMONTH(S106,0)-EOMONTH(S105,0))/30,0),0)) -> 0 | AL106: 00:00:00 | AP106: =IF(S106="Total",0,IF(S106="",0,Z106)) -> 0 | AQ106: =IF(U106<=$C$21,$C$15,0) -> 0
A107: =IF(IFERROR(VLOOKUP(C107,Listas!AT:AV,3,FALSE),0)=1,IF(WEEKDAY(C107+1)=7,C107+2,C107+1),C107) ->  | B107: 66 | C107: =IF(B107>$C$21,"",IF(Listas!$H$21=Listas!$I$17,IF(WEEKDAY(C106+$D$13)=1,C106+$D$13+1,C106+$D$13),IF(B107<=$C$21,IF((DATE(YEAR(C106),MONTH(C106)+1,DAY($C$14))-C106)>=27,IF(WEEKDAY(DATE(YEAR(C106),MONTH(C106)+1,DAY($C$14)))=1,DATE(YEAR(C106),MONTH(C106)+1,DAY($C$14)+1),DATE(YEAR(C106),MONTH(C106)+1,DAY($C$14))),DATE(YEAR(C106),MONTH(C106)+2,DAY($C$14))),""))) ->  | F107: =IF($C$23=0,0,IF(OR(Listas!$K$6=Listas!$L$3,Listas!$K$6=Listas!$L$4),0,IF($C$23="",0,IF(Listas!$D$5=Listas!$C$3,ROUND(IF(B107<=$C$21,IF(ROUND((D106/$T$120)*$C$23*Q107,2)<(1/$T$120),ROUND((1/$T$120),2),ROUND((D106/$T$120)*$C$23,2)*Q107),0),2),IF(Listas!$D$5=Listas!$C$2,ROUND(IF(B107<=$C$21,IF(ROUND(D106*$C$23*Q107,2)<1,1,ROUND(D106*$C$23,2)*Q107),0),2)))))) -> 0 | I107: 0 | J107: 0 | K107: =L107*Q107 -> 0 | L107: 0 | M107: 0 | N107: =N106-M107 -> 0 | O107: 0 | P107: =IF(B107<=$C$21,ROUND((1+$C$24)^(N107/30),8),0)*K107*Q107 -> 0 | Q107: =IF(Listas!$H$21=Listas!$I$15,1,IF(B107<=$C$21,ROUND((EOMONTH(A107,0)-EOMONTH(A106,0))/30,0),0)) -> 0 | W107: =IF(U106="","",IF(U107="",SUM($W$42:W106),IF(U107=$C$21,V106,Z107-X107-Y107))) ->  | X107: =IF(U106="","",IF(U107="",SUM($X$42:X106),ROUND(((1+$C$24)^(AG107/30)-1)*V106,2))) ->  | Y107: =IF($C$23=0,0,IF(OR(Listas!$K$6=Listas!$L$3,Listas!$K$6=Listas!$L$4),0,IF($C$23="",0,IF(Listas!$D$5=Listas!$C$3,ROUND(IF(U107<=$C$21,IF(ROUND((V106/$T$120)*$C$23*AI107,2)<(1/$T$120),ROUND((1/$T$120),2),ROUND((V106/$T$120)*$C$23,2)*AI107),0),2),IF(Listas!$D$5=Listas!$C$2,ROUND(IF(U107<=$C$21,IF(ROUND(V106*$C$23*AI107,2)<1,1,ROUND(V106*$C$23,2)*AI107),0),2)))))) -> 0 | Z107: =IF(U106="","",IF(U107="",SUM($Z$42:Z106),IF(U107=$C$21,SUM(W107,X107,Y107,AQ107),IF(U107<$C$21,$C$34,0)))) ->  | AA107: =IF(U106="","",IF(U107="",SUM($AA$42:AA106),IF(U107<=$C$21,$C$17,0))) ->  | AB107: 0 | AE107: 0 | AG107: 0 | AH107: 0 | AI107: =IF(Listas!$H$21=Listas!$I$17,1,IF(U107<=$C$21,ROUND((EOMONTH(S107,0)-EOMONTH(S106,0))/30,0),0)) -> 0 | AL107: 00:00:00 | AP107: 0 | AQ107: 0
A108: =IF(IFERROR(VLOOKUP(C108,Listas!AT:AV,3,FALSE),0)=1,IF(WEEKDAY(C108+1)=7,C108+2,C108+1),C108) ->  | B108: 67 | C108: =IF(B108>$C$21,"",IF(Listas!$H$21=Listas!$I$17,IF(WEEKDAY(C107+$D$13)=1,C107+$D$13+1,C107+$D$13),IF(B108<=$C$21,IF((DATE(YEAR(C107),MONTH(C107)+1,DAY($C$14))-C107)>=27,IF(WEEKDAY(DATE(YEAR(C107),MONTH(C107)+1,DAY($C$14)))=1,DATE(YEAR(C107),MONTH(C107)+1,DAY($C$14)+1),DATE(YEAR(C107),MONTH(C107)+1,DAY($C$14))),DATE(YEAR(C107),MONTH(C107)+2,DAY($C$14))),""))) ->  | F108: =IF($C$23=0,0,IF(OR(Listas!$K$6=Listas!$L$3,Listas!$K$6=Listas!$L$4),0,IF($C$23="",0,IF(Listas!$D$5=Listas!$C$3,ROUND(IF(B108<=$C$21,IF(ROUND((D107/$T$120)*$C$23*Q108,2)<(1/$T$120),ROUND((1/$T$120),2),ROUND((D107/$T$120)*$C$23,2)*Q108),0),2),IF(Listas!$D$5=Listas!$C$2,ROUND(IF(B108<=$C$21,IF(ROUND(D107*$C$23*Q108,2)<1,1,ROUND(D107*$C$23,2)*Q108),0),2)))))) -> 0 | I108: 0 | J108: 0 | K108: 0 | L108: 0 | M108: 0 | N108: 0 | O108: 0 | P108: 0 | Q108: =IF(Listas!$H$21=Listas!$I$15,1,IF(B108<=$C$21,ROUND((EOMONTH(A108,0)-EOMONTH(A107,0))/30,0),0)) -> 0 | W108: =IF(U107="","",IF(U108="",SUM($W$42:W107),IF(U108=$C$21,V107,Z108-X108-Y108))) ->  | X108: =IF(U107="","",IF(U108="",SUM($X$42:X107),ROUND(((1+$C$24)^(AG108/30)-1)*V107,2))) ->  | Y108: =IF($C$23=0,0,IF(OR(Listas!$K$6=Listas!$L$3,Listas!$K$6=Listas!$L$4),0,IF($C$23="",0,IF(Listas!$D$5=Listas!$C$3,ROUND(IF(U108<=$C$21,IF(ROUND((V107/$T$120)*$C$23*AI108,2)<(1/$T$120),ROUND((1/$T$120),2),ROUND((V107/$T$120)*$C$23,2)*AI108),0),2),IF(Listas!$D$5=Listas!$C$2,ROUND(IF(U108<=$C$21,IF(ROUND(V107*$C$23*AI108,2)<1,1,ROUND(V107*$C$23,2)*AI108),0),2)))))) -> 0 | Z108: =IF(U107="","",IF(U108="",SUM($Z$42:Z107),IF(U108=$C$21,SUM(W108,X108,Y108,AQ108),IF(U108<$C$21,$C$34,0)))) ->  | AA108: =IF(U107="","",IF(U108="",SUM($AA$42:AA107),IF(U108<=$C$21,$C$17,0))) ->  | AB108: 0 | AE108: 0 | AG108: 0 | AH108: 0 | AI108: =IF(Listas!$H$21=Listas!$I$17,1,IF(U108<=$C$21,ROUND((EOMONTH(S108,0)-EOMONTH(S107,0))/30,0),0)) -> 0 | AL108: 00:00:00 | AP108: 0 | AQ108: 0
A109: =IF(IFERROR(VLOOKUP(C109,Listas!AT:AV,3,FALSE),0)=1,IF(WEEKDAY(C109+1)=7,C109+2,C109+1),C109) ->  | B109: 68 | C109: =IF(B109>$C$21,"",IF(Listas!$H$21=Listas!$I$17,IF(WEEKDAY(C108+$D$13)=1,C108+$D$13+1,C108+$D$13),IF(B109<=$C$21,IF((DATE(YEAR(C108),MONTH(C108)+1,DAY($C$14))-C108)>=27,IF(WEEKDAY(DATE(YEAR(C108),MONTH(C108)+1,DAY($C$14)))=1,DATE(YEAR(C108),MONTH(C108)+1,DAY($C$14)+1),DATE(YEAR(C108),MONTH(C108)+1,DAY($C$14))),DATE(YEAR(C108),MONTH(C108)+2,DAY($C$14))),""))) ->  | F109: =IF($C$23=0,0,IF(OR(Listas!$K$6=Listas!$L$3,Listas!$K$6=Listas!$L$4),0,IF($C$23="",0,IF(Listas!$D$5=Listas!$C$3,ROUND(IF(B109<=$C$21,IF(ROUND((D108/$T$120)*$C$23*Q109,2)<(1/$T$120),ROUND((1/$T$120),2),ROUND((D108/$T$120)*$C$23,2)*Q109),0),2),IF(Listas!$D$5=Listas!$C$2,ROUND(IF(B109<=$C$21,IF(ROUND(D108*$C$23*Q109,2)<1,1,ROUND(D108*$C$23,2)*Q109),0),2)))))) -> 0 | I109: 0 | J109: 0 | K109: 0 | L109: 0 | M109: 0 | N109: 0 | O109: 0 | P109: 0 | Q109: =IF(Listas!$H$21=Listas!$I$15,1,IF(B109<=$C$21,ROUND((EOMONTH(A109,0)-EOMONTH(A108,0))/30,0),0)) -> 0 | W109: =IF(U108="","",IF(U109="",SUM($W$42:W108),IF(U109=$C$21,V108,Z109-X109-Y109))) ->  | X109: =IF(U108="","",IF(U109="",SUM($X$42:X108),ROUND(((1+$C$24)^(AG109/30)-1)*V108,2))) ->  | Y109: =IF($C$23=0,0,IF(OR(Listas!$K$6=Listas!$L$3,Listas!$K$6=Listas!$L$4),0,IF($C$23="",0,IF(Listas!$D$5=Listas!$C$3,ROUND(IF(U109<=$C$21,IF(ROUND((V108/$T$120)*$C$23*AI109,2)<(1/$T$120),ROUND((1/$T$120),2),ROUND((V108/$T$120)*$C$23,2)*AI109),0),2),IF(Listas!$D$5=Listas!$C$2,ROUND(IF(U109<=$C$21,IF(ROUND(V108*$C$23*AI109,2)<1,1,ROUND(V108*$C$23,2)*AI109),0),2)))))) -> 0 | Z109: =IF(U108="","",IF(U109="",SUM($Z$42:Z108),IF(U109=$C$21,SUM(W109,X109,Y109,AQ109),IF(U109<$C$21,$C$34,0)))) ->  | AA109: =IF(U108="","",IF(U109="",SUM($AA$42:AA108),IF(U109<=$C$21,$C$17,0))) ->  | AB109: 0 | AE109: 0 | AG109: 0 | AH109: 0 | AI109: =IF(Listas!$H$21=Listas!$I$17,1,IF(U109<=$C$21,ROUND((EOMONTH(S109,0)-EOMONTH(S108,0))/30,0),0)) -> 0 | AL109: 00:00:00 | AP109: 0 | AQ109: 0
A110: =IF(IFERROR(VLOOKUP(C110,Listas!AT:AV,3,FALSE),0)=1,IF(WEEKDAY(C110+1)=7,C110+2,C110+1),C110) ->  | B110: 69 | C110: =IF(B110>$C$21,"",IF(Listas!$H$21=Listas!$I$17,IF(WEEKDAY(C109+$D$13)=1,C109+$D$13+1,C109+$D$13),IF(B110<=$C$21,IF((DATE(YEAR(C109),MONTH(C109)+1,DAY($C$14))-C109)>=27,IF(WEEKDAY(DATE(YEAR(C109),MONTH(C109)+1,DAY($C$14)))=1,DATE(YEAR(C109),MONTH(C109)+1,DAY($C$14)+1),DATE(YEAR(C109),MONTH(C109)+1,DAY($C$14))),DATE(YEAR(C109),MONTH(C109)+2,DAY($C$14))),""))) ->  | F110: =IF($C$23=0,0,IF(OR(Listas!$K$6=Listas!$L$3,Listas!$K$6=Listas!$L$4),0,IF($C$23="",0,IF(Listas!$D$5=Listas!$C$3,ROUND(IF(B110<=$C$21,IF(ROUND((D109/$T$120)*$C$23*Q110,2)<(1/$T$120),ROUND((1/$T$120),2),ROUND((D109/$T$120)*$C$23,2)*Q110),0),2),IF(Listas!$D$5=Listas!$C$2,ROUND(IF(B110<=$C$21,IF(ROUND(D109*$C$23*Q110,2)<1,1,ROUND(D109*$C$23,2)*Q110),0),2)))))) -> 0 | I110: 0 | J110: 0 | K110: 0 | L110: 0 | M110: 0 | N110: 0 | O110: 0 | P110: 0 | Q110: =IF(Listas!$H$21=Listas!$I$15,1,IF(B110<=$C$21,ROUND((EOMONTH(A110,0)-EOMONTH(A109,0))/30,0),0)) -> 0 | W110: =IF(U109="","",IF(U110="",SUM($W$42:W109),IF(U110=$C$21,V109,Z110-X110-Y110))) ->  | X110: =IF(U109="","",IF(U110="",SUM($X$42:X109),ROUND(((1+$C$24)^(AG110/30)-1)*V109,2))) ->  | Y110: =IF($C$23=0,0,IF(OR(Listas!$K$6=Listas!$L$3,Listas!$K$6=Listas!$L$4),0,IF($C$23="",0,IF(Listas!$D$5=Listas!$C$3,ROUND(IF(U110<=$C$21,IF(ROUND((V109/$T$120)*$C$23*AI110,2)<(1/$T$120),ROUND((1/$T$120),2),ROUND((V109/$T$120)*$C$23,2)*AI110),0),2),IF(Listas!$D$5=Listas!$C$2,ROUND(IF(U110<=$C$21,IF(ROUND(V109*$C$23*AI110,2)<1,1,ROUND(V109*$C$23,2)*AI110),0),2)))))) -> 0 | Z110: =IF(U109="","",IF(U110="",SUM($Z$42:Z109),IF(U110=$C$21,SUM(W110,X110,Y110,AQ110),IF(U110<$C$21,$C$34,0)))) ->  | AA110: =IF(U109="","",IF(U110="",SUM($AA$42:AA109),IF(U110<=$C$21,$C$17,0))) ->  | AB110: 0 | AE110: 0 | AG110: 0 | AH110: 0 | AI110: =IF(Listas!$H$21=Listas!$I$17,1,IF(U110<=$C$21,ROUND((EOMONTH(S110,0)-EOMONTH(S109,0))/30,0),0)) -> 0 | AL110: 00:00:00 | AP110: 0 | AQ110: 0
A111: =IF(IFERROR(VLOOKUP(C111,Listas!AT:AV,3,FALSE),0)=1,IF(WEEKDAY(C111+1)=7,C111+2,C111+1),C111) ->  | B111: 70 | C111: =IF(B111>$C$21,"",IF(Listas!$H$21=Listas!$I$17,IF(WEEKDAY(C110+$D$13)=1,C110+$D$13+1,C110+$D$13),IF(B111<=$C$21,IF((DATE(YEAR(C110),MONTH(C110)+1,DAY($C$14))-C110)>=27,IF(WEEKDAY(DATE(YEAR(C110),MONTH(C110)+1,DAY($C$14)))=1,DATE(YEAR(C110),MONTH(C110)+1,DAY($C$14)+1),DATE(YEAR(C110),MONTH(C110)+1,DAY($C$14))),DATE(YEAR(C110),MONTH(C110)+2,DAY($C$14))),""))) ->  | F111: =IF($C$23=0,0,IF(OR(Listas!$K$6=Listas!$L$3,Listas!$K$6=Listas!$L$4),0,IF($C$23="",0,IF(Listas!$D$5=Listas!$C$3,ROUND(IF(B111<=$C$21,IF(ROUND((D110/$T$120)*$C$23*Q111,2)<(1/$T$120),ROUND((1/$T$120),2),ROUND((D110/$T$120)*$C$23,2)*Q111),0),2),IF(Listas!$D$5=Listas!$C$2,ROUND(IF(B111<=$C$21,IF(ROUND(D110*$C$23*Q111,2)<1,1,ROUND(D110*$C$23,2)*Q111),0),2)))))) -> 0 | I111: 0 | J111: 0 | K111: 0 | L111: 0 | M111: 0 | N111: 0 | O111: 0 | P111: 0 | Q111: =IF(Listas!$H$21=Listas!$I$15,1,IF(B111<=$C$21,ROUND((EOMONTH(A111,0)-EOMONTH(A110,0))/30,0),0)) -> 0 | W111: =IF(U110="","",IF(U111="",SUM($W$42:W110),IF(U111=$C$21,V110,Z111-X111-Y111))) ->  | X111: =IF(U110="","",IF(U111="",SUM($X$42:X110),ROUND(((1+$C$24)^(AG111/30)-1)*V110,2))) ->  | Y111: =IF($C$23=0,0,IF(OR(Listas!$K$6=Listas!$L$3,Listas!$K$6=Listas!$L$4),0,IF($C$23="",0,IF(Listas!$D$5=Listas!$C$3,ROUND(IF(U111<=$C$21,IF(ROUND((V110/$T$120)*$C$23*AI111,2)<(1/$T$120),ROUND((1/$T$120),2),ROUND((V110/$T$120)*$C$23,2)*AI111),0),2),IF(Listas!$D$5=Listas!$C$2,ROUND(IF(U111<=$C$21,IF(ROUND(V110*$C$23*AI111,2)<1,1,ROUND(V110*$C$23,2)*AI111),0),2)))))) -> 0 | Z111: =IF(U110="","",IF(U111="",SUM($Z$42:Z110),IF(U111=$C$21,SUM(W111,X111,Y111,AQ111),IF(U111<$C$21,$C$34,0)))) ->  | AA111: =IF(U110="","",IF(U111="",SUM($AA$42:AA110),IF(U111<=$C$21,$C$17,0))) ->  | AB111: 0 | AE111: 0 | AG111: 0 | AH111: 0 | AI111: =IF(Listas!$H$21=Listas!$I$17,1,IF(U111<=$C$21,ROUND((EOMONTH(S111,0)-EOMONTH(S110,0))/30,0),0)) -> 0 | AL111: 00:00:00 | AP111: 0 | AQ111: 0
A112: =IF(IFERROR(VLOOKUP(C112,Listas!AT:AV,3,FALSE),0)=1,IF(WEEKDAY(C112+1)=7,C112+2,C112+1),C112) ->  | B112: 71 | C112: =IF(B112>$C$21,"",IF(Listas!$H$21=Listas!$I$17,IF(WEEKDAY(C111+$D$13)=1,C111+$D$13+1,C111+$D$13),IF(B112<=$C$21,IF((DATE(YEAR(C111),MONTH(C111)+1,DAY($C$14))-C111)>=27,IF(WEEKDAY(DATE(YEAR(C111),MONTH(C111)+1,DAY($C$14)))=1,DATE(YEAR(C111),MONTH(C111)+1,DAY($C$14)+1),DATE(YEAR(C111),MONTH(C111)+1,DAY($C$14))),DATE(YEAR(C111),MONTH(C111)+2,DAY($C$14))),""))) ->  | D112: =IF(B112<=$C$21,D111-G112,"") ->  | E112: =IFERROR(ROUND(((1+$C$24)^(L112/30)-1)*D111,2),"") ->  | F112: =IF($C$23=0,0,IF(OR(Listas!$K$6=Listas!$L$3,Listas!$K$6=Listas!$L$4),0,IF($C$23="",0,IF(Listas!$D$5=Listas!$C$3,ROUND(IF(B112<=$C$21,IF(ROUND((D111/$T$120)*$C$23*Q112,2)<(1/$T$120),ROUND((1/$T$120),2),ROUND((D111/$T$120)*$C$23,2)*Q112),0),2),IF(Listas!$D$5=Listas!$C$2,ROUND(IF(B112<=$C$21,IF(ROUND(D111*$C$23*Q112,2)<1,1,ROUND(D111*$C$23,2)*Q112),0),2)))))) -> 0 | G112: =IF(B112>$C$21,D111,I112-E112-F112-H112) ->  | I112: =IF(B112<=$C$21,$C$32,0) -> 0 | J112: =IF(B112<=$C$21,$C$15,0) -> 0 | K112: 0 | L112: =IF(B112<=$C$21,A112-A111,0) -> 0 | M112: 0 | N112: 0 | O112: =IF(B112<=$C$21,ROUND((1+$C$25)^(N112/30),6),0) -> 0 | P112: 0 | Q112: =IF(Listas!$H$21=Listas!$I$15,1,IF(B112<=$C$21,ROUND((EOMONTH(A112,0)-EOMONTH(A111,0))/30,0),0)) -> 0 | W112: =IF(U111="","",IF(U112="",SUM($W$42:W111),IF(U112=$C$21,V111,Z112-X112-Y112))) ->  | X112: =IF(U111="","",IF(U112="",SUM($X$42:X111),ROUND(((1+$C$24)^(AG112/30)-1)*V111,2))) ->  | Y112: =IF($C$23=0,0,IF(OR(Listas!$K$6=Listas!$L$3,Listas!$K$6=Listas!$L$4),0,IF($C$23="",0,IF(Listas!$D$5=Listas!$C$3,ROUND(IF(U112<=$C$21,IF(ROUND((V111/$T$120)*$C$23*AI112,2)<(1/$T$120),ROUND((1/$T$120),2),ROUND((V111/$T$120)*$C$23,2)*AI112),0),2),IF(Listas!$D$5=Listas!$C$2,ROUND(IF(U112<=$C$21,IF(ROUND(V111*$C$23*AI112,2)<1,1,ROUND(V111*$C$23,2)*AI112),0),2)))))) -> 0 | Z112: =IF(U111="","",IF(U112="",SUM($Z$42:Z111),IF(U112=$C$21,SUM(W112,X112,Y112,AQ112),IF(U112<$C$21,$C$34,0)))) ->  | AA112: =IF(U111="","",IF(U112="",SUM($AA$42:AA111),IF(U112<=$C$21,$C$17,0))) ->  | AB112: 0 | AE112: 0 | AG112: 0 | AH112: =AH111-AG112 -> 0 | AI112: =IF(Listas!$H$21=Listas!$I$17,1,IF(U112<=$C$21,ROUND((EOMONTH(S112,0)-EOMONTH(S111,0))/30,0),0)) -> 0 | AL112: 00:00:00 | AP112: 0 | AQ112: =IF(U112<=$C$21,$C$15,0) -> 0
A113: =IF(IFERROR(VLOOKUP(C113,Listas!AT:AV,3,FALSE),0)=1,IF(WEEKDAY(C113+1)=7,C113+2,C113+1),C113) ->  | B113: 72 | C113: =IF(B113>$C$21,"",IF(Listas!$H$21=Listas!$I$17,IF(WEEKDAY(C112+$D$13)=1,C112+$D$13+1,C112+$D$13),IF(B113<=$C$21,IF((DATE(YEAR(C112),MONTH(C112)+1,DAY($C$14))-C112)>=27,IF(WEEKDAY(DATE(YEAR(C112),MONTH(C112)+1,DAY($C$14)))=1,DATE(YEAR(C112),MONTH(C112)+1,DAY($C$14)+1),DATE(YEAR(C112),MONTH(C112)+1,DAY($C$14))),DATE(YEAR(C112),MONTH(C112)+2,DAY($C$14))),""))) ->  | F113: =IF($C$23=0,0,IF(OR(Listas!$K$6=Listas!$L$3,Listas!$K$6=Listas!$L$4),0,IF($C$23="",0,IF(Listas!$D$5=Listas!$C$3,ROUND(IF(B113<=$C$21,IF(ROUND((D112/$T$120)*$C$23*Q113,2)<(1/$T$120),ROUND((1/$T$120),2),ROUND((D112/$T$120)*$C$23,2)*Q113),0),2),IF(Listas!$D$5=Listas!$C$2,ROUND(IF(B113<=$C$21,IF(ROUND(D112*$C$23*Q113,2)<1,1,ROUND(D112*$C$23,2)*Q113),0),2)))))) -> 0 | I113: 0 | J113: 0 | K113: 0 | L113: 0 | M113: =IF(B113<=$C$21,A113-A112,0) -> 0 | N113: 0 | O113: 0 | P113: 0 | Q113: =IF(Listas!$H$21=Listas!$I$15,1,IF(B113<=$C$21,ROUND((EOMONTH(A113,0)-EOMONTH(A112,0))/30,0),0)) -> 0 | W113: =IF(U112="","",IF(U113="",SUM($W$42:W112),IF(U113=$C$21,V112,Z113-X113-Y113))) ->  | X113: =IF(U112="","",IF(U113="",SUM($X$42:X112),ROUND(((1+$C$24)^(AG113/30)-1)*V112,2))) ->  | Y113: =IF($C$23=0,0,IF(OR(Listas!$K$6=Listas!$L$3,Listas!$K$6=Listas!$L$4),0,IF($C$23="",0,IF(Listas!$D$5=Listas!$C$3,ROUND(IF(U113<=$C$21,IF(ROUND((V112/$T$120)*$C$23*AI113,2)<(1/$T$120),ROUND((1/$T$120),2),ROUND((V112/$T$120)*$C$23,2)*AI113),0),2),IF(Listas!$D$5=Listas!$C$2,ROUND(IF(U113<=$C$21,IF(ROUND(V112*$C$23*AI113,2)<1,1,ROUND(V112*$C$23,2)*AI113),0),2)))))) -> 0 | Z113: =IF(U112="","",IF(U113="",SUM($Z$42:Z112),IF(U113=$C$21,SUM(W113,X113,Y113,AQ113),IF(U113<$C$21,$C$34,0)))) ->  | AA113: =IF(U112="","",IF(U113="",SUM($AA$42:AA112),IF(U113<=$C$21,$C$17,0))) ->  | AB113: 0 | AE113: 0 | AG113: 0 | AH113: 0 | AI113: =IF(Listas!$H$21=Listas!$I$17,1,IF(U113<=$C$21,ROUND((EOMONTH(S113,0)-EOMONTH(S112,0))/30,0),0)) -> 0 | AL113: 00:00:00 | AP113: 0 | AQ113: 0
E114: =SUM(E42:E113) -> 614.06 | F114: =SUM(F42:F113) -> 92.02 | G114: =SUM(G42:G113) -> 2,000.00 | K114: =SUM(K42:K113) -> 379 | L114: =SUM(L42:L113) -> 379 | M114: =SUM(M42:M113) -> 379 | O114: =SUM(O42:O113) -> 15.6476 | P114: =SUM(P42:P113) -> 480.2533 | W114: =IF(U113="","",IF(U114="",SUM($W$42:W113),IF(U114=$C$21,V113,Z114-X114-Y114))) ->  | X114: =IF(U113="","",IF(U114="",SUM($X$42:X113),ROUND(((1+$C$24)^(AG114/30)-1)*V113,2))) ->  | Y114: =IF($C$23=0,0,IF(OR(Listas!$K$6=Listas!$L$3,Listas!$K$6=Listas!$L$4),0,IF($C$23="",0,IF(Listas!$D$5=Listas!$C$3,ROUND(IF(U114<=$C$21,IF(ROUND((V113/$T$120)*$C$23*AI114,2)<(1/$T$120),ROUND((1/$T$120),2),ROUND((V113/$T$120)*$C$23,2)*AI114),0),2),IF(Listas!$D$5=Listas!$C$2,ROUND(IF(U114<=$C$21,IF(ROUND(V113*$C$23*AI114,2)<1,1,ROUND(V113*$C$23,2)*AI114),0),2)))))) -> 0 | Z114: =IF(U113="","",IF(U114="",SUM($Z$42:Z113),IF(U114=$C$21,SUM(W114,X114,Y114,AQ114),IF(U114<$C$21,$C$34,0)))) ->  | AA114: =IF(U113="","",IF(U114="",SUM($AA$42:AA113),IF(U114<=$C$21,$C$17,0))) ->  | AB114: 0 | AE114: 0 | AH114: =SUM(AH42:AH101) -> 2,022.0000 | AL114: 00:00:00 | AP114: 0
K115: =K114/C21 -> 31.58 | L115: =L114/C21 -> 31.58
L116: =SUMPRODUCT(P42:P113,L42:L113)/P114 -> 32.27223768 | R116: > La información contenida en esta simulación es referencial, por lo que está sujeta a variaciones. Asimismo, no representa compromiso u obligación de alguna naturaleza a cargo de Compartamos Financiera. Los términos y condiciones definitivos del crédito tales como, monto, plazo, tasa de interés, entre otras consideraciones importantes, se pondrán en conocimiento del cliente de manera previa a la oportunidad de contratación del producto. > Las condiciones contenidas en esta simulación tienen una vigencia de un día . La presente simulación incluye el seguro desgravamen de Compartamos Financiera, sin embargo, ud. tiene la opción de endosar sus pólizas a favor de la financiera hasta por el monto del saldo adeudado previa evaluación de Compartamos Financiera. La simulación para la determinación de la cuota no incluye ITF (Impuesto a las Transacciones Financieras). Consulte nuestro Tarifario al momento de realizar la simulación. > El período de gracia se contabiliza desde la fecha de desembolso del préstamo hasta la fecha de vencimiento de la primera cuota. > Si desea imprimir la presente simulación, presione la tecla Ctrl + la letra P | AO116: TIR | AP116: =XIRR(AP41:AP113,AL41:AL113) -> 72.7%
AO117: TIR ajustado | AP117: =(1+AP116)^(360/365)-1 -> 71.39%
C118: >>> MIN | D118: =MIN(D41:D113) -> -2.865 | AO118: TIR Mensual a 2 digitos | AP118: =ROUND((1+AP117)^(1/12)-1,4) -> 4.59%
AO119: TIR Anualizado (TCEA) | AP119: =(1+AP118)^(12)-1 -> 71.35%

Sheet Listas
A1: COD | B1: Nombre | I1: Soles | J1: Dolares | N1: COD | O1: Nombre | U1: COD | V1: Nombre | AC1: Rango Periodo de Gracia | AF1: Rango de N° de Cuotas | AI1: Rango de Monto | AL1: Rango de Tasas | AM1: TEA | AN1: TEM | AP1: TIPO DE TASA | AT1: Feriados | AW1: https://www.wincalendar.com/es/Calendario-2021-Feriados-Peru-Excel#google_vignette
A2: 2 | B2: INDIVIDUAL | C2: 1 | D2: SOLES | E2: Si | G2: 1 | H2: =IF(AND($B$5=$A$3,$D$5=$C$3),"",IF(AND($D$5=$C$2,$B$5=1),$I$16,IF($D$5=$C$2,I2,J2))) -> VIVIENDA | I2: VIVIENDA | J2: PYME | K2: 1 | L2: CON SEGURO | N2: 1 | O2: =IF(AND($I$21=$I$17,$U$7=$Y$3),Q34,IF(AND($I$21=$I$17,$U$7=$Y$4),P34,O34)) -> 2 | P2: 1 | R2: No | U2: 1 | V2: =IF($I$21=I17,Y3,$Y$2) -> MENSUAL | Y2: MENSUAL | AB2: 1 | AC2: ='Reglas de CI'!B21 -> No | AD2: =IF(AC2="No",0,AC2) -> 0 | AF2: Min | AG2: =IF(I21=I17,VLOOKUP(CONCATENATE(I21,U7),'Tabla Consolidada'!A:K,6,FALSE),VLOOKUP(I21,'Tabla Consolidada'!A:K,6,FALSE)) -> 6 | AI2: Min | AJ2: =IF(D5=C2,IF(I21=I17,VLOOKUP(CONCATENATE(I21,U7),'Tabla Consolidada'!A:K,4,FALSE),VLOOKUP(I21,'Tabla Consolidada'!A:K,4,FALSE)),IF(I21=I17,VLOOKUP(CONCATENATE(I21,U7),'Tabla Consolidada'!A:M,12,FALSE),VLOOKUP(I21,'Tabla Consolidada'!A:M,12,FALSE))) -> 1,000 | AL2: Min | AM2: =IF(D5=C2,IF(I21=I17,VLOOKUP(CONCATENATE(I21,U7),'Tabla Consolidada'!A:K,8,FALSE),VLOOKUP(I21,'Tabla Consolidada'!A:K,8,FALSE)),IF(I21=I17,VLOOKUP(CONCATENATE(I21,U7),'Tabla Consolidada'!A:K,10,FALSE),VLOOKUP(I21,'Tabla Consolidada'!A:K,10,FALSE))) -> 18.55% | AN2: =IF(D5=C2,IF(I21=I17,VLOOKUP(CONCATENATE(I21,U7),'Tabla Consolidada'!A:O,14,FALSE),VLOOKUP(I21,'Tabla Consolidada'!A:O,14,FALSE)),IF(I21=I17,VLOOKUP(CONCATENATE(I21,U7),'Tabla Consolidada'!A:O,10,FALSE),VLOOKUP(I21,'Tabla Consolidada'!A:O,10,FALSE))) -> 1.43% | AO2: 1 | AP2: TEA (Tasa Efectiva Anual) | AT2: 2021-01-01 | AU2: Año Nuevo | AV2: 1
A3: 1 | B3: GRUPAL | C3: 2 | D3: DOLARES | E3: No | G3: 2 | H3: =IF(AND($B$5=$A$3,$D$5=$C$3),"",IF(AND($D$5=$C$2,$B$5=1),$I$17,IF($D$5=$C$2,I3,J3))) -> LOCAL COMERCIAL | I3: LOCAL COMERCIAL | J3: ACTIVO FIJO | K3: 2 | L3: SIN SEGURO | N3: 2 | O3: =IF(AND($I$21=$I$17,$U$7=$Y$3),Q35,IF(AND($I$21=$I$17,$U$7=$Y$4),P35,O35)) -> 3 | P3: 2 | R3: 1 Mes | U3: 2 | V3: =IF($I$21=I17,Y4,"") ->  | Y3: CADA 14 DIAS (CG) | Z3: 14 | AB3: 2 | AC3: ='Reglas de CI'!B22 ->  | AD3: =IF(AC3="No",0,AC3) ->  | AF3: Max | AG3: =IF(I21=I17,VLOOKUP(CONCATENATE(I21,U7),'Tabla Consolidada'!A:K,7,FALSE),VLOOKUP(I21,'Tabla Consolidada'!A:K,7,FALSE)) -> 72 | AI3: Max | AJ3: =IF(D5=C2,IF(I21=I17,VLOOKUP(CONCATENATE(I21,U7),'Tabla Consolidada'!A:K,5,FALSE),VLOOKUP(I21,'Tabla Consolidada'!A:K,5,FALSE)),IF(I21=I17,VLOOKUP(CONCATENATE(I21,U7),'Tabla Consolidada'!A:M,13,FALSE),VLOOKUP(I21,'Tabla Consolidada'!A:M,13,FALSE))) -> 300,000 | AL3: Max | AM3: =IF(D5=C2,IF(I21=I17,VLOOKUP(CONCATENATE(I21,U7),'Tabla Consolidada'!A:K,9,FALSE),VLOOKUP(I21,'Tabla Consolidada'!A:K,9,FALSE)),IF(I21=I17,VLOOKUP(CONCATENATE(I21,U7),'Tabla Consolidada'!A:K,11,FALSE),VLOOKUP(I21,'Tabla Consolidada'!A:K,11,FALSE))) -> 88.46% | AN3: =IF(D5=C2,IF(I21=I17,VLOOKUP(CONCATENATE(I21,U7),'Tabla Consolidada'!A:O,15,FALSE),VLOOKUP(I21,'Tabla Consolidada'!A:O,15,FALSE)),IF(I21=I17,VLOOKUP(CONCATENATE(I21,U7),'Tabla Consolidada'!A:O,10,FALSE),VLOOKUP(I21,'Tabla Consolidada'!A:O,10,FALSE))) -> 5.42% | AO3: 2 | AP3: TEM (Tasa Efectiva Mensual) | AT3: 2021-02-15 | AU3: Carnaval (Lunes) | AV3: 1
G4: 3 | H4: =IF(AND($B$5=$A$3,$D$5=$C$3),"",IF(AND($D$5=$C$2,$B$5=1),"",IF($D$5=$C$2,I4,J4))) -> EFECTIVO | I4: EFECTIVO | J4: COMPRA DE DEUDA | K4: 3 | L4: ENDOSADO | N4: 3 | O4: 4 | P4: 3 | R4: 2 Meses | Y4: CADA 28 DIAS (CG) | Z4: 28 | AB4: 3 | AC4: ='Reglas de CI'!B23 ->  | AT4: 2021-04-01 | AU4: Jueves Santo | AV4: 1
A5: ='Simulador '!U3 -> INDIVIDUAL | B5: =_xlfn.XLOOKUP(A5,B2:B3,A2:A3,"x",0,1) -> 2 | D5: =_xlfn.XLOOKUP(D6,D2:D3,C2:C3,"x",0,1) -> 1 | G5: 4 | H5: SUPERFACIL | I5: SUPERFACIL | J5: LOCAL COMERCIAL | K5: 4 | L5: CON DEVOLUCIÓN | N5: 4 | O5: 6 | P5: 4 | R5: 3 Meses | AB5: 4 | AC5: ='Reglas de CI'!B24 ->  | AO5: ='Simulador '!U10 -> TEM (Tasa Efectiva Mensual) | AP5: =_xlfn.XLOOKUP(AO5,AP2:AP3,AO2:AO3,"x",0,1) -> 2 | AT5: 2021-04-02 | AU5: Viernes Santo | AV5: 1
D6: ='Simulador '!U4 -> SOLES | G6: 5 | H6: ACTIVO FIJO | I6: ACTIVO FIJO | J6: EMPRESARIO | K6: =VLOOKUP(L6,K2:L5,2,FALSE) -> CON SEGURO | L6: =_xlfn.XLOOKUP(L7,L2:L5,K2:K5,"x",0,1) -> 1 | N6: 5 | O6: 8 | P6: 5 | AB6: 5 | AC6: ='Reglas de CI'!B25 ->  | AT6: 2021-05-01 | AU6: Día del Trabajo | AV6: 1
G7: 6 | H7: AGRO | I7: AGRO | J7: VIVIENDA | L7: ='Simulador '!U12 -> CON SEGURO | N7: 6 | O7: 10 | P7: 6 | U7: =IF(I21=I16,$Y$2,'Simulador '!U13) -> CADA 28 DIAS (CG) | V7: =_xlfn.XLOOKUP(U7,V2:V5,U2:U5,"x",0,1) -> x | AB7: 6 | AC7: ='Reglas de CI'!B26 ->  | AT7: 2021-05-13 | AU7: Ascensión | AV7: 1
G8: 7 | H8: EMPRESARIO | I8: EMPRESARIO | N8: 7 | O8: 12 | P8: 7 | U8: ='Simulador '!AO2 -> MENSUAL | AB8: 7 | AC8: ='Reglas de CI'!B27 ->  | AT8: 2021-06-29 | AU8: San Pedro y San Pablo | AV8: 1
G9: 8 | H9: PYME | I9: PYME | N9: 8 | O9: 14 | P9: 8 | AB9: 8 | AC9: ='Reglas de CI'!B28 ->  | AT9: 2021-07-28 | AU9: Independencia del Perú | AV9: 1
G10: 9 | H10: COMPRA DE DEUDA | I10: COMPRA DE DEUDA | N10: 9 | O10: 16 | P10: 9 | AB10: 9 | AC10: ='Reglas de CI'!B29 ->  | AT10: 2021-07-29 | AU10: Día de las Fuerzas Armadas | AV10: 1
G11: 10 | H11: IMPULSA PERU | I11: IMPULSA PERU | N11: 10 | O11: 18 | P11: 10 | AT11: 2021-08-30 | AU11: Santa Rosa de Lima | AV11: 1
G12: 11 | H12: CASH | I12: CASH | N12: 11 | O12: 20 | P12: 11 | AB12: =IF(AC12="x",0,VLOOKUP(AC12,AB2:AD10,3)) -> 0 | AC12: =_xlfn.XLOOKUP(AC13,AC2:AC10,AB2:AB10,"x",0,1) -> x | AT12: 2021-10-08 | AU12: Combate Naval de Angamos | AV12: 1
G13: 12 | H13: VUELVE | I13: VUELVE | N13: 12 | O13: 22 | P13: 12 | AC13: ='Simulador '!U14 -> 180 | AT13: 2021-11-01 | AU13: Día de Todos los Santos | AV13: 1
G14: 13 | H14: LÍNEA DE CRÉDITO | I14: LÍNEA DE CRÉDITO | N14: 13 | O14: 24 | P14: 13 | AT14: 2021-12-08 | AU14: Día de la Inmaculada Concepción | AV14: 1
G15: 14 | H15: LÍNEA DE CRÉDITO CREDITIENDA | I15: LÍNEA DE CRÉDITO CREDITIENDA | N15: 14 | O15: =IF(AND($I$21=$I$15,$U$7=$Y$3),Q47,IF(AND($I$21=$I$15,$U$7=$Y$4),P47,O47)) ->  | P15: 14 | AT15: 2021-12-25 | AU15: Navidad | AV15: 1
G16: 15 | I16: CRECE Y MEJORA | N16: 15 | P16: 15 | AT16: 2022-01-01 | AU16: Año Nuevo | AV16: 1
G17: 16 | I17: CREDITO GRUPAL | N17: 16 | P17: 16 | AT17: 2022-02-28 | AU17: Carnaval (Lunes) | AV17: 1
N18: 17 | P18: 17 | AT18: 2022-04-14 | AU18: Jueves Santo | AV18: 1
A19: =IF(H21=I14,B2,IF(A5=B2,B2,A5)) -> INDIVIDUAL | H19: =_xlfn.XLOOKUP(H21,H2:H16,G2:G16,"x",0,1) -> x | N19: 18 | P19: 18 | AT19: 2022-04-15 | AU19: Viernes Santo | AV19: 1
N20: 19 | P20: 19 | AT20: 2022-05-01 | AU20: Día del Trabajo | AV20: 1
H21: ='Simulador '!U5 -> CRECE Y MEJORA | I21: ='Simulador '!AM2 -> VIVIENDA | N21: 20 | P21: 20 | AT21: 2022-05-26 | AU21: Ascensión | AV21: 1
N22: 21 | P22: 21 | AT22: 2022-06-29 | AU22: San Pedro y San Pablo | AV22: 1
AT23: 2022-07-28 | AU23: Independencia del Perú | AV23: 1
N24: =IFERROR(IF(A5=$B$3,LEFT(VLOOKUP(O24,N2:O22,2,FALSE),2)*1,VLOOKUP(O24,N2:O22,2,FALSE)),0) -> 16 | O24: =VLOOKUP(P25,O2:P22,2,FALSE) -> 9 | AT24: 2022-07-29 | AU24: Día de las Fuerzas Armadas | AV24: 1
H25: FILTROS | O25: ='Simulador '!U9 -> 16 | P25: ='Simulador '!AN2 -> 16 | AT25: 2022-08-30 | AU25: Santa Rosa de Lima | AV25: 1
AT26: 2022-10-08 | AU26: Combate Naval de Angamos | AV26: 1
H27: VIVIENDA | I27: INDIVIDUAL | N27: =IF(AND($H$21=$I$16,$U$7=$Y$3),Q34,IF(AND($H$21=$I$16,$U$7=$Y$4),P34,O34)) -> 28 Primer Pago | AT27: 2022-11-01 | AU27: Día de Todos los Santos | AV27: 1
H28: LOCAL COMERCIAL | I28: INDIVIDUAL | N28: =IFERROR(IF(A5=$B$3,LEFT(VLOOKUP(O24,N2:O22,2,FALSE),2)*1,VLOOKUP(O24,N2:O22,2,FALSE)),0) -> 16 | AT28: 2022-12-08 | AU28: Día de la Inmaculada Concepción | AV28: 1
H29: EFECTIVO | I29: INDIVIDUAL | AT29: 2022-12-25 | AU29: Navidad | AV29: 1
H30: SUPERFACIL | I30: INDIVIDUAL | AT30: 2023-01-01 | AU30: Año Nuevo | AV30: 1
H31: ACTIVO FIJO | I31: INDIVIDUAL | AT31: 2023-02-20 | AU31: Carnaval (Lunes) | AV31: 1
H32: AGRO | I32: INDIVIDUAL | AT32: 2023-04-06 | AU32: Jueves Santo | AV32: 1
H33: EMPRESARIO | I33: INDIVIDUAL | O33: INDIVIDUAL | P33: GRUPAL 28 DIAS | Q33: GRUPAL 14 DIAS | AT33: 2023-04-07 | AU33: Viernes Santo | AV33: 1
H34: PYME | I34: INDIVIDUAL | O34: 2 | P34: 28 Primer Pago | Q34: 14 Primer Pago | AT34: 2023-05-01 | AU34: Día del Trabajo | AV34: 1
H35: COMPRA DE DEUDA | I35: INDIVIDUAL | O35: 3 | AT35: 2023-05-18 | AU35: Ascensión | AV35: 1
H36: IMPULSA PERU | I36: INDIVIDUAL | O36: 4 | AT36: 2023-06-29 | AU36: San Pedro y San Pablo | AV36: 1
H37: CASH | I37: INDIVIDUAL | O37: 6 | AT37: 2023-07-28 | AU37: Independencia del Perú | AV37: 1
H38: VUELVE | I38: INDIVIDUAL | O38: =O37+2 -> 8 | AT38: 2023-07-29 | AU38: Día de las Fuerzas Armadas | AV38: 1
H39: LÍNEA DE CRÉDITO | I39: INDIVIDUAL | O39: =O38+2 -> 10 | AT39: 2023-08-30 | AU39: Santa Rosa de Lima | AV39: 1
H40: LÍNEA DE CRÉDITO CREDITIENDA | I40: INDIVIDUAL | O40: 12 | AT40: 2023-10-08 | AU40: Combate Naval de Angamos | AV40: 1
H41: CRECE Y MEJORA | I41: GRUPAL | O41: 14 | AT41: 2023-11-01 | AU41: Día de Todos los Santos | AV41: 1
H42: CREDITO GRUPAL | I42: GRUPAL | O42: 16 | AT42: 2023-12-08 | AU42: Día de la Inmaculada Concepción | AV42: 1
O43: 18 | AT43: 2023-12-25 | AU43: Navidad | AV43: 1
O44: 20 | AT44: 2024-01-01 | AU44: Año Nuevo | AV44: 1
O45: 22 | AT45: 2024-02-12 | AU45: Carnaval (Lunes) | AV45: 1
H46: 2 | I46: INDIVIDUAL | O46: 24 | AT46: 2024-03-28 | AU46: Jueves Santo | AV46: 1
H47: 3 | I47: INDIVIDUAL | AT47: 2024-03-29 | AU47: Viernes Santo | AV47: 1
H48: 4 | I48: INDIVIDUAL | AT48: 2024-05-01 | AU48: Día del Trabajo | AV48: 1
H49: 6 | I49: INDIVIDUAL | AT49: 2024-05-09 | AU49: Ascensión | AV49: 1
H50: 8 | I50: INDIVIDUAL | AT50: 2024-06-29 | AU50: San Pedro y San Pablo | AV50: 1
H51: 10 | I51: INDIVIDUAL | AT51: 2024-07-28 | AU51: Independencia del Perú | AV51: 1
H52: 12 | I52: INDIVIDUAL | AT52: 2024-07-29 | AU52: Día de las Fuerzas Armadas | AV52: 1
H53: 14 | I53: INDIVIDUAL | AT53: 2024-08-30 | AU53: Santa Rosa de Lima | AV53: 1
H54: 16 | I54: INDIVIDUAL | AT54: 2024-10-08 | AU54: Combate Naval de Angamos | AV54: 1
H55: 18 | I55: INDIVIDUAL | AT55: 2024-11-01 | AU55: Día de Todos los Santos | AV55: 1
H56: 20 | I56: INDIVIDUAL | AT56: 2024-12-08 | AU56: Día de la Inmaculada Concepción | AV56: 1
H57: 22 | I57: INDIVIDUAL | AT57: 2024-12-25 | AU57: Navidad | AV57: 1
H58: 24 | I58: INDIVIDUAL | AT58: 2025-01-01 | AU58: Año Nuevo | AV58: 1
H59: 28 Primer Pago | I59: GRUPAL | AT59: 2025-04-17 | AU59: Jueves Santo | AV59: 1
H60: 14 Primer Pago | I60: GRUPAL | AT60: 2025-04-18 | AU60: Viernes Santo | AV60: 1
AT61: 2025-05-01 | AU61: Día del Trabajo | AV61: 1
H62: MENSUAL | I62: INDIVIDUAL | AT62: 2025-06-29 | AU62: San Pedro y San Pablo | AV62: 1
H63: CADA 14 DIAS (CG) | I63: GRUPAL | AT63: 2025-07-28 | AU63: Independencia del Perú | AV63: 1
H64: CADA 28 DIAS (CG) | I64: GRUPAL | AT64: 2025-07-29 | AU64: Día de las Fuerzas Armadas | AV64: 1
AT65: 2025-08-30 | AU65: Santa Rosa de Lima | AV65: 1
AT66: 2025-10-08 | AU66: Combate Naval de Angamos | AV66: 1
AT67: 2025-11-01 | AU67: Día de Todos los Santos | AV67: 1
AT68: 2025-12-08 | AU68: Día de la Inmaculada Concepción | AV68: 1
AT69: 2025-12-25 | AU69: Navidad | AV69: 1

Sheet Tabla Consolidada
A1: 1 | B1: =+A1+1 -> 2 | C1: =+B1+1 -> 3 | D1: 4 | E1: 5 | F1: 6 | G1: 7 | H1: 8 | I1: 9 | J1: 10 | K1: 11 | L1: 12 | M1: 13 | N1: 14 | O1: 15
H2: TEA | N2: TEM | Q2: Antes:
B3: Producto | C3: Frecuencia | D3: Monto mínimo | E3: Monto máximo | F3: Plazo mínimo (meses) | G3: Plazo máximo (meses) | H3: Tasa mínima soles | I3: Tasa máxima soles | J3: Tasa mínima dólares | K3: Tasa máxima dólares | L3: Monto mínimo USD | M3: Monto máximo USD | N3: Tasa mínima soles | O3: Tasa máxima soles
A4: =CONCATENATE(B4,C4) -> CREDITO GRUPALMENSUAL | B4: CREDITO GRUPAL | C4: =Listas!V2 -> MENSUAL | D4: 1,000 | E4: 13,000 | F4: 8 | G4: 10 | H4: 109.83% | I4: 112.98% | J4: 0 | K4: 0 | N4: =+ROUND((1+H4)^(0.0833333333333333)-1,6) -> 6.3708% | O4: =+ROUND((1+I4)^(0.0833333333333333)-1,6) -> 6.5029%
A5: =CONCATENATE(B5,C5) -> CREDITO GRUPAL | B5: CREDITO GRUPAL | C5: =Listas!V3 ->  | D5: 1,000 | E5: 13,000 | F5: 4 | G5: 8 | H5: 109.83% | I5: 112.98% | J5: 0 | K5: 0 | N5: 6.3708% | O5: =+ROUND((1+I5)^(0.0833333333333333)-1,6) -> 6.5029%
A6: CRECE Y MEJORA | B6: CRECE Y MEJORA | D6: 1,300 | E6: 10,000 | F6: 6 | G6: 18 | H6: 50.00% | I6: 82.00% | J6: 0 | K6: 0 | N6: =+ROUND((1+H6)^(0.0833333333333333)-1,6) -> 3.4366% | O6: =+ROUND((1+I6)^(0.0833333333333333)-1,6) -> 5.1169%
A8: SUPERFACIL | B8: SUPERFACIL | D8: 1,000 | E8: 30,000 | F8: 6 | G8: 18 | H8: 24.52% | I8: 109.82% | J8: 0 | K8: 0 | N8: 1.8444% | O8: 6.3703%
A9: EFECTIVO | B9: EFECTIVO | D9: 1,000 | E9: 20,000 | F9: 6 | G9: 24 | H9: 22.69% | I9: 109.80% | J9: 0 | K9: 0 | N9: 1.7190% | O9: 6.3695%
A10: PYME | B10: PYME | D10: 1,000 | E10: 50,000 | F10: 1 | G10: 24 | H10: 18.55% | I10: 88.46% | J10: 0 | K10: 0 | L10: =D10/'Simulador '!$T$120 ->  | M10: =E10/'Simulador '!$T$120 ->  | N10: 1.4284% | O10: 5.4229%
A11: ACTIVO FIJO | B11: ACTIVO FIJO | D11: 1,000 | E11: 50,000 | F11: 6 | G11: 72 | H11: 18.55% | I11: 88.46% | J11: 0 | K11: 0 | L11: =D11/'Simulador '!$T$120 ->  | M11: =E11/'Simulador '!$T$120 ->  | N11: 1.4284% | O11: 5.4229%
A12: COMPRA DE DEUDA | B12: COMPRA DE DEUDA | D12: 1,000 | E12: 280,000 | F12: 6 | G12: 72 | H12: 18.55% | I12: 88.46% | J12: 0 | K12: 0 | L12: =D12/'Simulador '!$T$120 ->  | M12: =E12/'Simulador '!$T$120 ->  | N12: 1.4284% | O12: 5.4229%
A13: LOCAL COMERCIAL | B13: LOCAL COMERCIAL | D13: 1,000 | E13: 300,000 | F13: 6 | G13: 72 | H13: 18.55% | I13: 88.46% | J13: 0 | K13: 0 | L13: =D13/'Simulador '!$T$120 ->  | M13: =E13/'Simulador '!$T$120 ->  | N13: 1.4284% | O13: 5.4229%
A14: EMPRESARIO | B14: EMPRESARIO | D14: 1,000 | E14: 300,000 | F14: 1 | G14: 60 | H14: 17.96% | I14: 88.46% | J14: 0 | K14: 0 | L14: =D14/'Simulador '!$T$120 ->  | M14: =E14/'Simulador '!$T$120 ->  | N14: 1.3857% | O14: 5.4229%
A15: VIVIENDA | B15: VIVIENDA | D15: 1,000 | E15: 300,000 | F15: 6 | G15: 72 | H15: 18.55% | I15: 88.46% | J15: 0 | K15: 0 | L15: =D15/'Simulador '!$T$120 ->  | M15: =E15/'Simulador '!$T$120 ->  | N15: 1.4284% | O15: 5.4229%
A16: IMPULSA PERU | B16: IMPULSA PERU | D16: 1,000 | E16: 300,000 | F16: 12 | G16: 54 | H16: 11.50% | I16: 14.00% | N16: =+ROUND((1+H16)^(0.0833333333333333)-1,6) -> 0.9112% | O16: =+ROUND((1+I16)^(0.0833333333333333)-1,6) -> 1.0979%
A17: AGRO | B17: AGRO | D17: 1,000 | E17: 30,000 | F17: 1 | G17: 8 | H17: 18.55% | I17: 88.46% | J17: 0 | K17: 0 | N17: 1.4284% | O17: 5.4229%
A18: CASH | B18: CASH | D18: 1,000 | E18: 50,000 | F18: 12 | G18: 18 | H18: 18.55% | I18: 88.46% | J18: 0 | K18: 0 | N18: 1.4284% | O18: 5.4229%
A19: VUELVE | B19: VUELVE | D19: 1,000 | E19: 50,000 | F19: 6 | G19: 18 | H19: 18.55% | I19: 88.46% | J19: 0 | K19: 0 | N19: 1.4284% | O19: 5.4229%
A20: LÍNEA DE CRÉDITO | B20: LÍNEA DE CRÉDITO | D20: 1,000 | E20: 120,000 | F20: 6 | G20: 24 | H20: 22.00% | I20: 73.00% | N20: 1.6708% | O20: 4.6736%
A21: LÍNEA DE CRÉDITO CREDITIENDA | B21: LÍNEA DE CRÉDITO CREDITIENDA | D21: 10 | E21: 10,000 | F21: 4 | G21: 12 | H21: 70.00% | I21: 104.00% | N21: =+ROUND((1+H21)^(0.0833333333333333)-1,6) -> 4.5211% | O21: =+ROUND((1+I21)^(0.0833333333333333)-1,6) -> 6.1213%

Sheet RangoTasa

Sheet Hoja1

Sheet Reglas de CI
A3: 1 | B3: 2 | C3: 3 | D3: 4 | E3: 5 | F3: 6 | G3: 7 | H3: 8 | I3: 9 | J3: 10 | K3: 11 | L3: 12 | M3: 13 | N3: 14 | O3: 15 | P3: 16 | Q3: 17 | R3: 18 | S3: 19 | T3: 20 | U3: 21 | V3: 22 | W3: 23
A4: Producto | B4: Monto mínimo | C4: Monto máximo | D4: Plazo mínimo (meses) | E4: Plazo máximo (meses) | F4: Tasa mínima soles | G4: Tasa máxima soles | H4: Tasa mínima dólares | I4: Tasa máxima dólares | J4: PRIMERA CUOTA 59 DIAS | K4: periodo Libre | U4: Periodo de Gracia
A5: SUPERFACIL | B5: 1,000 | C5: 20,000 | D5: 6 | E5: 18 | F5: 22.82% | G5: 87.91% | H5: No aplica | I5: No aplica | J5: Aplica | K5: No
A6: EFECTIVO | B6: 1,000 | C6: 30,000 | D6: 6 | E6: 24 | F6: 22.82% | G6: 87.91% | H6: No aplica | I6: No aplica | J6: Aplica | K6: No
A7: PYME | B7: 1,000 | C7: 50,000 | D7: 1 | E7: 24 | F7: 17.70% | G7: 87.91% | H7: No aplica | I7: No aplica | J7: Aplica | K7: No | L7: 30 | M7: 60
A8: ACTIVO FIJO | B8: 1,000 | C8: 50,000 | D8: 6 | E8: 36 a sola firma / 72 con garantía real | F8: 17.70% | G8: 87.91% | H8: No aplica | I8: No aplica | J8: Aplica | K8: No | L8: 30 | M8: 60 | U8: 1 | V8: 2 | W8: 3
A9: COMPRA DE DEUDA | B9: 1,000 | C9: Microempresa: S/50,000 | D9: 6 | E9: Capital de Trabajo: 18 meses. Activo Fijo: A sola firma: 36 meses. Con garantía real: Hasta 72 meses. | F9: 17.70% | G9: 87.91% | H9: No aplica | I9: No aplica | J9: Aplica | K9: No
A10: LOCAL COMERCIAL | B10: 1,000 | C10: Pequeña Empresa: | D10: 6 | E10: A sola firma: hasta 48 meses Con garantía real: hasta 72 meses | F10: 17.70% | G10: 87.91% | H10: No aplica | I10: No aplica | J10: Aplica | K10: No | L10: 30 | M10: 60 | U10: 1 | V10: 2 | W10: 3
A11: EMPRESARIO | B11: 1,000 | C11: Capital de Trabajo: S/220,000 | D11: 1 | E11: Capital de Trabajo: Hasta 18 meses. *Score A 24 meses de S/50,000 hasta S/120,000 Activo Fijo: A sola firma: 36 meses. Con garantía real: Hasta 72 meses | F11: 17.70% | G11: 87.91% | H11: No aplica | I11: No aplica | J11: Aplica | K11: No | L11: 30 | M11: 60 | N11: 90 | U11: 1 | V11: 2 | W11: 3
A12: VIVIENDA | B12: 1,000 | C12: Activo Fijo: S/280,000 | D12: 6 | E12: Dependientes Formales y Microempresa: 36 Pequeña empresa: Sin garantía Hipotecaria 48 meses Con Garantía Real: 72 meses | F12: 17.70% | G12: 87.91% | H12: No aplica | I12: No aplica | J12: Aplica | K12: No | L12: 30 | M12: 60 | N12: 90 | U12: 1 | V12: 2 | W12: 3
A13: IMPULSA PERU | B13: 1,000 | K13: No | L13: 180
A14: AGRO | B14: 1,000 | C14: Microempresa: S/50,000 | D14: 1 | E14: 6 cuotas campaña chica / 8 cuotas campaña grande | F14: 17.70% | G14: 87.91% | H14: No aplica | I14: No aplica | J14: Aplica | K14: No | L14: 30 | M14: 60 | N14: 90 | O14: 120 | P14: 150 | Q14: 180 | R14: 210 | S14: 240 | U14: 1 | V14: 2 | W14: 3
A17: PRODUCTO | B17: =Listas!H21 -> CRECE Y MEJORA | M17: Se agrega el periodo como gracia
A18: LINEA | B18: =Listas!A5 -> INDIVIDUAL
B20: RANGO GRACIA | C20: Dias adicionales
A21: 1 | B21: =IFERROR(VLOOKUP($B$17,$A$4:$S$14,K3,FALSE),"No") -> No | C21: =IF(B21="No",0,B21) -> 0
A22: 2 | B22: =IFERROR(VLOOKUP($B$17,$A$4:$S$14,L3,FALSE),"") ->  | C22: =IF(B22="No",0,B22) -> 
A23: 3 | B23: =IFERROR(VLOOKUP($B$17,$A$4:$S$14,M3,FALSE),"") -> 
A24: 4 | B24: =IFERROR(VLOOKUP($B$17,$A$4:$S$14,N3,FALSE),"") -> 
A25: 5 | B25: =IFERROR(VLOOKUP($B$17,$A$4:$S$14,O3,FALSE),"") -> 
A26: 6 | B26: =IFERROR(VLOOKUP($B$17,$A$4:$S$14,P3,FALSE),"") -> 
A27: 7 | B27: =IFERROR(VLOOKUP($B$17,$A$4:$S$14,Q3,FALSE),"") -> 
A28: 8 | B28: =IFERROR(VLOOKUP($B$17,$A$4:$S$14,R3,FALSE),"") -> 
A29: 9 | B29: =IFERROR(VLOOKUP($B$17,$A$4:$S$14,S3,FALSE),"") -> 
